{"text_format":"1","workbook":"xlsx","n_sheets":7,"sheets":["Capa","0-Inic","0-Proj","1-Inic","1-Proj","Extintores","Tabelas"],"not_rendered":{"charts":4,"images":2,"macros":1,"external_links":0,"defined_names":7,"comments":0,"pivot_tables":0},"unopened":[],"bounds":{"document_bytes":16777216,"sheet_cells":100000,"rows_first":2000,"rows_last":500,"rows_between":2000,"halvings":0,"cell_chars":16384,"cell_head_chars":4096},"cells_cut":0,"cells_raw":0,"read":"whole","date_system":"1900"}

{"sheet":"Capa","index":0,"n_rows":50,"n_cols":16,"rows_kept":50,"cut":false,"hidden":false,"merged":[[10,5,10,6],[12,4,12,5],[13,5,13,6],[27,7,27,8],[17,4,17,5],[15,6,15,8],[26,7,26,8],[22,7,22,8],[19,5,19,8],[24,5,24,8],[20,7,20,8],[25,7,25,8],[5,4,5,7],[6,5,6,6],[7,5,7,6],[8,5,8,6],[9,5,9,6],[37,5,37,6],[38,5,38,6],[36,4,36,5],[29,7,29,8],[29,5,29,6],[30,4,30,8],[31,4,31,8],[33,4,33,5],[34,4,34,8]]}
[]
[]
[null,null,null,null,{"$f":"Tabelas!B4","v":"ARICA:2019"},null,null,null,null,null,null,{"$f":"Tabelas!B71","v":"Condições iniciais"},1,null,null,{"$f":"Tabelas!B6","v":"Comentários (não não visíveis no relatório)"}]
[null,null,null,null,{"$f":"Tabelas!$B$5","v":"MÉTODO DE AVALIAÇÃO DA SEGURANÇA AO INCÊNDIO EM EDIFÍCIOS EXISTENTES"},null,null,null,"Folha de cálculo versão 1.2",null,null,{"$f":"Tabelas!B73","v":"Condições de projeto"},1]
[]
[null,null,"A.",null,{"$f":"Tabelas!B24","v":"Identificação"}]
[null,null,null,null,{"$f":"Tabelas!B26","v":"Dono de obra"}]
[null,null,null,null,{"$f":"Tabelas!B27","v":"Rua/Av."},null,null,{"$f":"Tabelas!B31","v":"Andar"}]
[null,null,null,null,{"$f":"Tabelas!B28","v":"Localidade"},null,null,{"$f":"Tabelas!B30","v":"N.º/Lote"}]
[null,null,null,null,{"$f":"Tabelas!B32","v":"Freguesia"}]
[null,null,null,null,{"$f":"Tabelas!B29","v":"Código postal"}]
[]
[null,null,{"$f":"Tabelas!A34","v":"B."},null,{"$f":"Tabelas!B34","v":"Caraterísticas da intervenção"}]
[null,null,null,null,{"$f":"Tabelas!B39","v":"Extensão da intervenção"},null,null,{"$f":"Tabelas!B36","v":"Altura do edifício"}]
[]
[null,null,null,null,{"$f":"Tabelas!B43","v":"Tipo de intervenção"},null,{"$f":"IF(F16=Tabelas!C44, Tabelas!B44,IF(F16=Tabelas!C45,Tabelas!B45,IF(F16=Tabelas!C46,Tabelas!B46,IF(F16=Tabelas!C47,Tabelas!B47,\"\"))))","v":""}]
[]
[null,null,"C.",null,{"$f":"Tabelas!B49","v":"Resultados"}]
[]
[null,null,null,null,{"$f":"Tabelas!B71","v":"Condições iniciais"}]
[null,null,null,null,null,"Unidade de análise 1",null,{"$f":"'1-Inic'!G43","v":0}]
[]
[null,null,null,null,null,{"$f":"Tabelas!B54","v":"Índice de segurança ao incêndio "},null,{"$f":"MIN(H20:I22)","v":0}]
[]
[null,null,null,null,{"$f":"Tabelas!B73","v":"Condições de projeto"}]
[null,null,null,null,null,"Unidade de análise 1",null,{"$f":"'1-Proj'!G43","v":0}]
[]
[null,null,null,null,null,{"$f":"Tabelas!B54","v":"Índice de segurança ao incêndio "},null,{"$f":"MIN(H25:I27)","v":0}]
[]
[null,null,null,null,null,{"$f":"Tabelas!B55&\" (\"&IF(F$16=Tabelas!C$44,F44,IF(F$16=Tabelas!C$45,F46,IF(F$16=Tabelas!C$46,F48,IF(F$16=Tabelas!C$47,F50,\"\"))))&\")\"","v":"Desempenho global mínimo ()"},null,{"$f":"IF(F$16=Tabelas!C$44,E44,IF(F$16=Tabelas!C$45,E46,IF(F$16=Tabelas!C$46,E48,IF(F$16=Tabelas!C$47,E50,\"\"))))","v":""}]
[]
[null,null,null,null,{"$f":"IF(F$16=Tabelas!C$47,Tabelas!B21,\"\")","v":""}]
[]
[null,null,{"$f":"Tabelas!A57","v":"D."},null,{"$f":"Tabelas!B57","v":"Observações"}]
[]
[]
[null,null,{"$f":"Tabelas!A59","v":"E."},null,{"$f":"Tabelas!B59","v":"Técnico"}]
[null,null,null,null,{"$f":"Tabelas!B60","v":"Projetista"},null,null,{"$f":"Tabelas!B64","v":"Data"}]
[null,null,null,null,{"$f":"Tabelas!B61","v":"Ordem"},null,null,{"$f":"Tabelas!B63","v":"n.º"}]
[]
[]
[]
[null,null,{"$f":"Tabelas!C44","v":1},null,"Intervenção-tipo"]
[null,null,null,null,{"$f":"IF(H28=0,Tabelas!B$19,IF(AND(H23=0,H28<1),Tabelas!B$19,IF(H28<G44,Tabelas!B$19,Tabelas!B$18)))","v":"NÃO VERIFICA"},{"$f":"\"Isi>=\"&TEXT(G44,\"0,00\")","v":"Isi>=0,70"},{"$f":"IF(H44<1,H44,1)","v":0.7},{"$f":"0.391*H23^2 - 0.055*H23 + 0.7","v":0.7}]
[null,null,{"$f":"Tabelas!C$45","v":2},null,{"$f":"E43","v":"Intervenção-tipo"}]
[null,null,null,null,{"$f":"IF(H28=0,Tabelas!B$19,IF(AND(H23=0,H28<1),Tabelas!B$19,IF(H28<G46,Tabelas!B$19,Tabelas!B$18)))","v":"NÃO VERIFICA"},{"$f":"\"Isi>=\"&TEXT(G46,\"0,00\")","v":"Isi>=0,80"},{"$f":"IF(H46<1,H46,1)","v":0.8},{"$f":"0.391*H23^2 - 0.055*H23 + 0.8","v":0.8}]
[null,null,{"$f":"Tabelas!C$46","v":3},null,{"$f":"E43","v":"Intervenção-tipo"}]
[null,null,null,null,{"$f":"IF(H28=0,Tabelas!B$19,IF(H28>=1,Tabelas!B$18,Tabelas!B$19))","v":"NÃO VERIFICA"},"Isi>=1,0"]
[null,null,{"$f":"Tabelas!C$47","v":4},null,{"$f":"E43","v":"Intervenção-tipo"}]
[null,null,null,null,{"$f":"IF(H28=0,\"INCOMPLETO\",\"*\")","v":"INCOMPLETO"},"Não aplicável"]

{"sheet":"0-Inic","index":1,"n_rows":189,"n_cols":15,"rows_kept":189,"cut":false,"hidden":true,"merged":[[2,6,3,6],[64,6,65,6],[101,6,102,6],[155,6,156,6]]}
[]
[]
[null,null,null,null,{"$f":"Tabelas!$B$4","v":"ARICA:2019"},null,"0"]
[null,null,null,null,{"$f":"Tabelas!$B$70","v":"CONDIÇÕES INICIAIS"},null,null,null,null,null,null,null,null,null,{"$f":"Tabelas!$B$6","v":"Comentários (não não visíveis no relatório)"}]
[]
[null,null,null,null,{"$f":"Tabelas!B75","v":"Carateristicas da unidade"}]
[null,null,null,null,{"$f":"Tabelas!$B$77","v":"Tipo de local de risco"}]
[null,null,null,null,{"$f":"Tabelas!$B$91","v":"Utilização tipo"}]
[null,null,null,null,{"$f":"Tabelas!B85","v":"Categoria de risco"}]
[]
[null,null,null,null,{"$f":"Tabelas!B105","v":"Resumo"}]
[null,null,{"$f":"Tabelas!A109","v":"1."},null,{"$f":"Tabelas!B109","v":"Início do incêndio"},null,{"$f":"G68","v":""}]
[null,null,null,null,{"$f":"IF(OR(G13=\"\",G13=\"-\"),\"-\",F13)","v":"-"},{"$f":"Tabelas!$B$111","v":"Anomalias que podem provocar um incêndio"},{"$f":"G69","v":""}]
[null,null,null,null,{"$f":"IF(OR(G14=\"\",G14=\"-\"),\"-\",F14)","v":"-"},{"$f":"Tabelas!$B$117","v":"Instalações técnicas"},{"$f":"G70","v":""}]
[]
[null,null,{"$f":"Tabelas!A154","v":"2."},null,{"$f":"Tabelas!B154","v":"Desenvolvimento e propagação do incêndio"},null,{"$f":"G79","v":""}]
[null,null,null,null,{"$f":"IF(OR(G17=\"\",G17=\"-\"),\"-\",F17)","v":"-"},{"$f":"Tabelas!$B$156","v":"Materiais de revestimento do local de risco"},{"$f":"G80","v":""}]
[null,null,null,null,{"$f":"IF(OR(G18=\"\",G18=\"-\"),\"-\",F18)","v":"-"},{"$f":"Tabelas!$B177","v":"Materiais de revestimento das vias de evacuação"},{"$f":"G83","v":""}]
[null,null,null,null,{"$f":"IF(OR(G19=\"\",G19=\"-\"),\"-\",F19)","v":"-"},{"$f":"Tabelas!$B$198","v":"Isolamento e proteção do local de risco"},{"$f":"G86","v":""}]
[null,null,null,null,"-",{"$f":"Tabelas!$B$221","v":"Compartimentação geral corta-fogo da área de intervenção"},{"$f":"G89","v":""}]
[null,null,null,null,"-",{"$f":"Tabelas!B226","v":"Isolamento e proteção entre utilizações-tipo distintas"},{"$f":"G90","v":""}]
[null,null,null,null,"-",{"$f":"Tabelas!$B$236","v":"Equipas de segurança"},{"$f":"G91","v":""}]
[null,null,null,null,"-",{"$f":"Tabelas!$B$249","v":"Deteção, alerta e alarme de incêndio"},{"$f":"G92","v":""}]
[null,null,null,null,"-",{"$f":"Tabelas!$B$266","v":"Propagação pelo exterior"},{"$f":"G95","v":""}]
[]
[null,null,{"$f":"Tabelas!A294","v":"3."},null,{"$f":"Tabelas!B294","v":"Evacuação em caso de incêndio"},null,{"$f":"G105","v":""}]
[null,null,null,null,{"$f":"IF(OR(G27=\"\",G27=\"-\"),\"-\",F27)","v":"-"},{"$f":"Tabelas!$B$301","v":"Saídas do local de risco"},{"$f":"G107","v":""}]
[null,null,null,null,{"$f":"IF(OR(G28=\"\",G28=\"-\"),\"-\",F28)","v":"-"},{"$f":"Tabelas!$B$330","v":"Dimensões dos locais e das vias horizontais de evacuação"},{"$f":"G114","v":""}]
[null,null,null,null,{"$f":"IF(OR(G29=\"\",G29=\"-\"),\"-\",F29)","v":"-"},{"$f":"Tabelas!$B$407","v":"Dimensões das vias verticais de evacuação"},{"$f":"G142","v":""}]
[null,null,null,null,"-",{"$f":"Tabelas!$B$432","v":"Isolamento e proteção das vias de evacuação"},{"$f":"G159","v":""}]
[null,null,null,null,"-",{"$f":"Tabelas!$B$445","v":"Controlo de fumo na unidade de análise"},{"$f":"G162","v":""}]
[null,null,null,null,"-",{"$f":"Tabelas!$B$463","v":"Sinalização de emergência na unidade de análise"},{"$f":"G165","v":""}]
[null,null,null,null,"-",{"$f":"Tabelas!$B$483","v":"Iluminação de emergência na unidade de análise"},{"$f":"G168","v":""}]
[null,null,null,null,"-",{"$f":"Tabelas!$B$503","v":"Equipas de segurança"},{"$f":"G171","v":""}]
[null,null,null,null,"-",{"$f":"Tabelas!$B$505","v":"Deteção, alerta e alarme de incêndio"},{"$f":"G172","v":""}]
[null,null,null,null,"-",{"$f":"Tabelas!$B$513","v":"Simulacros de evacuação "},{"$f":"G173","v":""}]
[]
[null,null,{"$f":"Tabelas!A521","v":"4."},null,{"$f":"Tabelas!B521","v":"Combate ao incêndio"},null,{"$f":"G175","v":""}]
[null,null,null,null,{"$f":"IF(OR(G39=\"\",G39=\"-\"),\"-\",F39)","v":"-"},{"$f":"Tabelas!$B$522","v":"Acessibilidade e meios de intervenção não automáticos"},{"$f":"G176","v":""}]
[null,null,null,null,{"$f":"IF(OR(G40=\"\",G40=\"-\"),\"-\",F40)","v":"-"},{"$f":"Tabelas!$B$566","v":"Meios de extinção automáticos"},{"$f":"G188","v":""}]
[null,null,null,null,{"$f":"IF(OR(G41=\"\",G41=\"-\"),\"-\",F41)","v":"-"},{"$f":"Tabelas!$B$575","v":"Equipas de segurança"},{"$f":"G189","v":""}]
[]
[null,null,null,null,{"$f":"Tabelas!B54","v":"Índice de segurança ao incêndio "},null,{"$f":"IF(OR(G12=\"\",G16=\"\",G26=\"\",G38=\"\"),0,AVERAGE(G12,G16,G26,G38))","v":0}]
[]
[]
[]
[]
[]
[]
[]
[]
[]
[]
[]
[]
[]
[]
[]
[]
[]
[]
[]
[]
[]
[null,null,null,null,{"$f":"Tabelas!$B$4","v":"ARICA:2019"},{"$f":"$F$3","v":0},{"$f":"$G$3","v":"0"}]
[null,null,null,null,{"$f":"Tabelas!$B$70","v":"CONDIÇÕES INICIAIS"},null,null,null,null,null,{"$f":"IF(AND(K68=\"\",K79=\"\"),Tabelas!B$10,Tabelas!B$9)","v":"Incompleto"},null,{"$f":"Tabelas!B$8","v":"Avisos"},null,{"$f":"Tabelas!$B$6","v":"Comentários (não não visíveis no relatório)"}]
[]
[null,null,{"$f":"Tabelas!A109","v":"1."},null,{"$f":"Tabelas!B109","v":"Início do incêndio"},null,{"$f":"IF(OR(G69=\"\",G70=\"\"),\"\",AVERAGE(G69,G70))","v":""},null,null," ",{"$f":"IF(G68=\"\",Tabelas!B$12,\"\")","v":"Sem dados"}]
[null,null,{"$f":"Tabelas!A111","v":"1.1"},null,{"$f":"Tabelas!B111","v":"Anomalias que podem provocar um incêndio"},null,{"$f":"IF(F69=\"\",\"\",VLOOKUP(F69,Tabelas!B112:C115,2,FALSE))","v":""},null,null," ",{"$f":"IF(F69=\"\",Tabelas!B$12,\"\")","v":"Sem dados"}]
[null,null,{"$f":"Tabelas!A117","v":"1.2"},null,{"$f":"Tabelas!B117","v":"Instalações técnicas"},null,{"$f":"IF(J78=0,\"-\",IF(J78=\"\",\"\",MIN(G71:G77)-(0.0213*(SUM(G71:G77)-MIN(G71:G77)))))","v":""},null,null," ",{"$f":"IF(G70=\"\",Tabelas!B$12,\"\")","v":"Sem dados"}]
[null,null,{"$f":"Tabelas!A119","v":"1.2.1"},null,{"$f":"Tabelas!B119","v":"Instalações elétricas"},null,{"$f":"IF(F71=\"\",\"\",VLOOKUP(F71,Tabelas!B120:C122,2,FALSE))","v":""},null,null," ",{"$f":"IF(F71=\"\",Tabelas!B$12,\"\")","v":"Sem dados"}]
[null,null,{"$f":"Tabelas!A124","v":"1.2.2"},null,{"$f":"Tabelas!B124","v":"Instalações de gás"},null,{"$f":"IF(F72=\"\",\"\",VLOOKUP(F72,Tabelas!B125:C127,2,FALSE))","v":""},null,null," ",{"$f":"IF(F72=\"\",Tabelas!B$12,\"\")","v":"Sem dados"}]
[null,null,{"$f":"Tabelas!A129","v":"1.2.3"},null,{"$f":"Tabelas!B129","v":"Instalações de aquecimento – Centrais térmicas"},null,{"$f":"IF(F73=\"\",\"\",VLOOKUP(F73,Tabelas!B130:C132,2,FALSE))","v":""},null,null," ",{"$f":"IF(F73=\"\",Tabelas!B$12,\"\")","v":"Sem dados"}]
[null,null,{"$f":"Tabelas!A134","v":"1.2.4"},null,{"$f":"Tabelas!B134","v":"Instalações de aquecimento – Aparelhagem"},null,{"$f":"IF(F74=\"\",\"\",VLOOKUP(F74,Tabelas!B135:C137,2,FALSE))","v":""},null,null," ",{"$f":"IF(F74=\"\",Tabelas!B$12,\"\")","v":"Sem dados"}]
[null,null,{"$f":"Tabelas!A139","v":"1.2.5"},null,{"$f":"Tabelas!B139","v":"Instalações de confeção e conservação de alimentos"},null,{"$f":"IF(F75=\"\",\"\",VLOOKUP(F75,Tabelas!B140:C142,2,FALSE))","v":""},null,null," ",{"$f":"IF(F75=\"\",Tabelas!B$12,\"\")","v":"Sem dados"}]
[null,null,{"$f":"Tabelas!A144","v":"1.2.6"},null,{"$f":"Tabelas!B144","v":"Instalações de evacuação de efluentes de combustão"},null,{"$f":"IF(F76=\"\",\"\",VLOOKUP(F76,Tabelas!B140:C142,2,FALSE))","v":""},null,null," ",{"$f":"IF(F76=\"\",Tabelas!B$12,\"\")","v":"Sem dados"}]
[null,null,{"$f":"Tabelas!A149","v":"1.2.7"},null,{"$f":"Tabelas!B149","v":"Instalações de ventilação e condicionamento de ar"},null,{"$f":"IF(F77=\"\",\"\",VLOOKUP(F77,Tabelas!B150:C152,2,FALSE))","v":""},null,null," ",{"$f":"IF(F77=\"\",Tabelas!B$12,\"\")","v":"Sem dados"}]
[null,null,null,null,null,null,null,null,null,{"$f":"IF(OR(G71=\"\",G72=\"\",G73=\"\",G74=\"\",G75=\"\",G76=\"\",G77=\"\"),\"\",7-COUNTIF(G71:G77,Tabelas!C122))","v":""}]
[null,null,{"$f":"Tabelas!A154","v":"2."},null,{"$f":"Tabelas!B154","v":"Desenvolvimento e propagação do incêndio"},null,{"$f":"IF(OR(G80=\"\",G83=\"\",G86=\"\",G89=\"\",G90=\"\",G91=\"\",G92=\"\",G95=\"\"),\"\",IF(AND(G80=\"-\",G83=\"-\",G86=\"-\",G89=\"-\",G90=\"-\",G91=\"-\",G92=\"-\",G95=\"-\"),\"-\",AVERAGE(G80,G83,G86,G89,G90,G91,G92,G95)))","v":""},null,null," ",{"$f":"IF(G79=\"\",Tabelas!B$12,\"\")","v":"Sem dados"}]
[null,null,{"$f":"Tabelas!A156","v":"2.1"},null,{"$f":"Tabelas!B156","v":"Materiais de revestimento do local de risco"},null,{"$f":"IF(OR(G81=\"\",G82=\"\"),\"\",IF(AND(G81=\"-\",G82=\"-\"),\"-\",MIN(G81,G82)))","v":""},null,null," ",{"$f":"IF(G80=\"\",Tabelas!B$12,\"\")","v":"Sem dados"}]
[null,null,{"$f":"Tabelas!A158","v":"2.1.1"},null,{"$f":"Tabelas!B158","v":"Classe de reação ao fogo dos revestimentos interiores das paredes e tetos"},null,{"$f":"IF(F81=\"\",\"\",VLOOKUP(F81,Tabelas!B159:C164,2,FALSE))","v":""},null,null,null,{"$f":"IF(F81=\"\",Tabelas!B$12,\"\")","v":"Sem dados"}]
[null,null,{"$f":"Tabelas!A166","v":"2.1.2"},null,{"$f":"Tabelas!B166","v":"Classe de reação ao fogo dos revestimentos interiores dos pavimentos"},null,{"$f":"IF(F82=\"\",\"\",VLOOKUP(F82,Tabelas!B167:C172,2,FALSE))","v":""},null,null,null,{"$f":"IF(F82=\"\",Tabelas!B$12,\"\")","v":"Sem dados"}]
[null,null,{"$f":"Tabelas!A177","v":"2.2"},null,{"$f":"Tabelas!B177","v":"Materiais de revestimento das vias de evacuação"},null,{"$f":"IF(OR(G84=\"\",G85=\"\"),\"\",IF(AND(G84=\"-\",G85=\"-\"),\"-\",MIN(G84,G85)))","v":""},null,null,null,{"$f":"IF(G83=\"\",Tabelas!B$12,\"\")","v":"Sem dados"}]
[null,null,{"$f":"Tabelas!A179","v":"2.2.1"},null,{"$f":"Tabelas!B179","v":"Classe de reação ao fogo dos revestimentos interiores das paredes e tetos"},null,{"$f":"IF(F84=\"\",\"\",VLOOKUP(F84,Tabelas!B180:C185,2,FALSE))","v":""},null,null,null,{"$f":"IF(F84=\"\",Tabelas!B$12,\"\")","v":"Sem dados"}]
[null,null,{"$f":"Tabelas!A187","v":"2.2.2"},null,{"$f":"Tabelas!B187","v":"Classe de reação ao fogo dos revestimentos interiores dos pavimentos"},null,{"$f":"IF(F85=\"\",\"\",VLOOKUP(F85,Tabelas!B188:C193,2,FALSE))","v":""},null,null,null,{"$f":"IF(F85=\"\",Tabelas!B$12,\"\")","v":"Sem dados"}]
[null,null,{"$f":"Tabelas!A198","v":"2.3"},null,{"$f":"Tabelas!B198","v":"Isolamento e proteção do local de risco"},null,{"$f":"IF(F86=\"\",\"\",IF(F86=Tabelas!B202,J87,VLOOKUP(F86,Tabelas!B199:C203,2,FALSE)))","v":""},null,null,null,{"$f":"IF(F86=\"\",Tabelas!B$12,\"\")","v":"Sem dados"}]
[null,null,null,null,{"$f":"Tabelas!B214","v":"Escalão de tempo exigido na regulamentação"},null,null,null,null,{"$f":"IF(OR(F87=\"\",F88=\"\"),\"\",IF(F87<=F88,\"\",1/(1+(0.0087*(F87-F88)/F87+0.05/F87)*100)))","v":""},{"$f":"IF(F87=\"\",Tabelas!B$12,\"\")","v":"Sem dados"}]
[null,null,null,null,{"$f":"Tabelas!B215","v":"Escalão de tempo do elemento mais condicionante"},null,null,null,null,null,{"$f":"IF(F88=\"\",Tabelas!B$12,\"\")","v":"Sem dados"},null,{"$f":"IF(OR(F88=\"\",F87=\"\"),\"\",IF(F87<=F88,Tabelas!B$216,\"\"))","v":""}]
[null,null,{"$f":"Tabelas!A221","v":"2.4"},null,{"$f":"Tabelas!B221","v":"Compartimentação geral corta-fogo da área de intervenção"},null,{"$f":"IF(F89=\"\",\"\",VLOOKUP(F89,Tabelas!B222:C224,2,FALSE))","v":""},null,null,null,{"$f":"IF(F89=\"\",Tabelas!B$12,\"\")","v":"Sem dados"}]
[null,null,{"$f":"Tabelas!A226","v":"2.5"},null,{"$f":"Tabelas!B226","v":"Isolamento e proteção entre utilizações-tipo distintas"},null,{"$f":"IF(F90=\"\",\"\",VLOOKUP(F90,Tabelas!B227:C231,2,FALSE))","v":""},null,null,null,{"$f":"IF(F90=\"\",Tabelas!B$12,\"\")","v":"Sem dados"}]
[null,null,{"$f":"Tabelas!A236","v":"2.6"},null,{"$f":"Tabelas!B236","v":"Equipas de segurança"},null,{"$f":"IF(F91=\"\",\"\",VLOOKUP(F91,Tabelas!B237:C241,2,FALSE))","v":""},null,null," ",{"$f":"IF(F91=\"\",Tabelas!B$12,\"\")","v":"Sem dados"}]
[null,null,{"$f":"Tabelas!A249","v":"2.7"},null,{"$f":"Tabelas!B249","v":"Deteção, alerta e alarme de incêndio"},null,{"$f":"IF(F92=\"\",\"\",IF(F92=Tabelas!$B$257,J94,VLOOKUP(F92,Tabelas!$B$250:$C$258,2,FALSE)))","v":""},null,null," ",{"$f":"IF(F92=\"\",Tabelas!B$12,\"\")","v":"Sem dados"},null,{"$f":"IF(OR(F91=\"\",F91=Tabelas!B241,F91=Tabelas!B240),Tabelas!B264,\"\")","v":"Apenas se considera que a UA dispõe um sistema de deteção de incêndio, se existir uma equipa de segurança ou um contrato de prestação de serviços para manutenção do sistema"}]
[null,null,null,null,{"$f":"Tabelas!B259","v":"Número de locais onde a regulamentação exige sistema de deteção de incêndio"},null,null,null,null,{"$f":"IF(OR(F93=\"\",F94=\"\"),\"\",(F94/F93)/2+0.5)","v":""},{"$f":"IF(F93=\"\",Tabelas!B$12,\"\")","v":"Sem dados"}]
[null,null,null,null,{"$f":"Tabelas!B260","v":"Número de locais onde existe sistema de deteção de incêndio"},null,null,null,null,{"$f":"IF(J93=\"\",\"\",IF(J93<Tabelas!$C$261,Tabelas!$C$261,IF(J93>Tabelas!$C$262,Tabelas!$C$262,J93)))","v":""},{"$f":"IF(F94=\"\",Tabelas!B$12,\"\")","v":"Sem dados"},null,{"$f":"IF(J94=\"\",\"\",IF(J93>J94,Tabelas!B$13,IF(J93<J94,Tabelas!B$14,\"\")))","v":""}]
[null,null,{"$f":"Tabelas!A266","v":"2.8"},null,{"$f":"Tabelas!B266","v":"Propagação pelo exterior"},null,{"$f":"IF(OR(G96=\"\",G97=\"\"),\"\",IF(AND(G96=\"-\",G97=\"-\"),\"-\",AVERAGE(G96,G97)))","v":""},null,null,null,{"$f":"IF(G95=\"\",Tabelas!B$12,\"\")","v":"Sem dados"}]
[null,null,{"$f":"Tabelas!A268","v":"2.8.1"},null,{"$f":"Tabelas!B268","v":"Materiais de revestimento exteriores"},null,{"$f":"IF(F96=\"\",\"\",VLOOKUP(F96,Tabelas!B269:C272,2,FALSE))","v":""},null,null,null,{"$f":"IF(F96=\"\",Tabelas!B$12,\"\")","v":"Sem dados"}]
[null,null,{"$f":"Tabelas!A281","v":"2.8.2"},null,{"$f":"Tabelas!B281","v":"Afastamento de vãos das fachadas"},null,{"$f":"IF(F97=\"\",\"\",IF(F97=Tabelas!B283,J99,VLOOKUP(F97,Tabelas!B282:C285,2,FALSE)))","v":""},null,null," ",{"$f":"IF(F97=\"\",Tabelas!B$12,\"\")","v":"Sem dados"}]
[null,null,null,null,{"$f":"Tabelas!B287","v":"Afastamento regulamentar entre vãos\nna mesma prumada (m)"},null,null,null,null,{"$f":"IF(OR(F99=\"\",F98=\"\"),\"\",F99/F98)","v":""},{"$f":"IF(F98=\"\",Tabelas!B$12,\"\")","v":"Sem dados"}]
[null,null,null,null,{"$f":"Tabelas!B288","v":"Menor afastamento existente entre vãos\nna mesma prumada (m)"},null,null,null,null,{"$f":"IF(J98=\"\",\"\",IF(J98<Tabelas!C289,Tabelas!C289,IF(J98>Tabelas!C290,Tabelas!C290,J98)))","v":""},{"$f":"IF(F99=\"\",Tabelas!B$12,\"\")","v":"Sem dados"},null,{"$f":"IF(J99=\"\",\"\",IF(J98>J99,Tabelas!B$13,IF(J98<J99,Tabelas!B$14,\"\")))","v":""}]
[null,null,null,null,null,null,null,null,null," "]
[null,null,null,null,null,null,null,null,null," "]
[null,null,null,null,{"$f":"Tabelas!$B$4","v":"ARICA:2019"},{"$f":"$F$3","v":0},{"$f":"$G$3","v":"0"},null,null," "]
[null,null,null,null,{"$f":"Tabelas!$B$70","v":"CONDIÇÕES INICIAIS"},null,null,null,null," ",{"$f":"IF(K127=\"\",Tabelas!B$10,Tabelas!B$9)","v":"Incompleto"},null,{"$f":"Tabelas!B$8","v":"Avisos"},null,{"$f":"Tabelas!$B$6","v":"Comentários (não não visíveis no relatório)"}]
[]
[null,null,{"$f":"Tabelas!$A$294","v":"3."},null,{"$f":"Tabelas!$B$294","v":"Evacuação em caso de incêndio"},null,{"$f":"IF(J105=\"\",\"\",IF(J105=\"-\",\"-\",IF(J105<Tabelas!$C$295,Tabelas!$C$295,IF(J105>Tabelas!$C$296,Tabelas!$C$296,J105))))","v":""},null,null,{"$f":"IF(OR(G106=\"\",G114=\"\",G142=\"\",G159=\"\",G162=\"\",G165=\"\",G168=\"\",G171=\"\",G172=\"\",G173=\"\"),\"\",IF(AND(G106=\"-\",G114=\"-\",G142=\"-\",G159=\"-\",G162=\"-\",G165=\"-\",G168=\"-\",G171=\"-\",G172=\"-\",G173=\"-\"),\"-\",IF(AND(G159=\"-\",G162=\"-\",G165=\"-\",G168=\"-\",G171=\"-\",G172=\"-\",G173=\"-\"),AVERAGE(G106,G114,G142),AVERAGE(G106,G114,G142,AVERAGE(G159,G162,G165,G168,G171,G172,G173)))))","v":""},{"$f":"IF(G105=\"\",Tabelas!B$12,\"\")","v":"Sem dados"},null,{"$f":"IF(G105=\"\",\"\",IF(J105>G105,Tabelas!B$13,IF(J105<G105,Tabelas!B$14,\"\")))","v":""}]
[null,null,"3.1",null,{"$f":"Tabelas!$B$301","v":"Saídas do local de risco"},null,{"$f":"IF(J106=\"\",\"\",IF(J106=\"-\",\"-\",IF(J106<Tabelas!$C$302,Tabelas!$C$302,IF(J106>Tabelas!$C$303,Tabelas!$C$303,J106))))","v":""},null,null,{"$f":"IF(G107=\"-\",\"-\",IF(OR(G107=\"\",G110=\"\"),\"\",G107*G110))","v":""},{"$f":"IF(G106=\"\",Tabelas!B$12,\"\")","v":"Sem dados"},null,{"$f":"IF(G106=\"\",\"\",IF(J106>G106,Tabelas!B$13,IF(J106<G106,Tabelas!B$14,\"\")))","v":""}]
[null,null,{"$f":"Tabelas!$A$305","v":"3.1.1"},null,{"$f":"Tabelas!$B$305","v":"Número de saídas do local de risco"},null,{"$f":"IF(F107=\"\",\"\",IF(F107=Tabelas!B306,J109,VLOOKUP(F107,Tabelas!$B$307:$C$310,2,FALSE)))","v":""},null,null,null,{"$f":"IF(F107=\"\",Tabelas!B$12,\"\")","v":"Sem dados"}]
[null,null,null,null,{"$f":"Tabelas!B311","v":"Número de saídas do LR exigidas na regulamentação"},null,null,null,null,{"$f":"IF(OR(F108=\"\",F109=\"\"),\"\",IF(F108>=F109,\"\",1+(F109-F108)*0.15))","v":""},{"$f":"IF(F108=\"\",Tabelas!B$12,\"\")","v":"Sem dados"}]
[null,null,null,null,{"$f":"Tabelas!B312","v":"Número de saídas do LR"},null,null,null,null,{"$f":"IF(J108=\"\",\"\",IF(J108<Tabelas!$C$313,Tabelas!$C$313,IF(J108>Tabelas!$C$314,Tabelas!$C$314,J108)))","v":""},{"$f":"IF(F109=\"\",Tabelas!B$12,\"\")","v":"Sem dados"}]
[null,null,{"$f":"Tabelas!$A$319","v":"3.1.2"},null,{"$f":"Tabelas!$B$319","v":"Largura total das saídas do local de risco"},null,{"$f":"IF(J110=\"\",\"\",IF(J110<Tabelas!$C$323,Tabelas!$C$323,IF(J110>Tabelas!$C$324,Tabelas!$C$324,J110)))","v":""},null,null,{"$f":"IF(OR(F112=\"\",F113=\"\"),\"\",F112/F113)","v":""},{"$f":"IF(G110=\"\",Tabelas!B$12,\"\")","v":"Sem dados"},null,{"$f":"IF(G110=\"\",\"\",IF(J110>G110,Tabelas!B$13,IF(J110<G110,Tabelas!B$14,\"\")))","v":""}]
[null,null,null,null,{"$f":"Tabelas!B320","v":"Efetivo do local de risco"},null,null,null,null,null,{"$f":"IF(F111=\"\",Tabelas!B$12,\"\")","v":"Sem dados"}]
[null,null,null,null,{"$f":"Tabelas!B321","v":"Somatório da largura das saídas (m)"},null,null,null,null,null,{"$f":"IF(F112=\"\",Tabelas!B$12,\"\")","v":"Sem dados"}]
[null,null,null,null,{"$f":"Tabelas!B322","v":"Largura de ref. do somatório das larguras das saídas (m)"},{"$f":"IF(F111=\"\",\"\",IF(F111<Tabelas!$B$340,Tabelas!$C$340,IF(F111<Tabelas!$B$341,Tabelas!$C$341,IF(F111<Tabelas!$B$342,Tabelas!$C$342,IF(F111<Tabelas!$B$343,Tabelas!$C$343,IF(F111<Tabelas!$B$344,Tabelas!$C$344,IF(F111<Tabelas!$B$345,Tabelas!$C$345,IF(F111<Tabelas!$B$346,Tabelas!$C$346,IF(F111<Tabelas!$B$347,Tabelas!$C$347,IF(F111<Tabelas!$B$348,Tabelas!$C$348,IF(F111<Tabelas!$B$349,Tabelas!$C$349,Tabelas!$C$350)))))))))))","v":""},null,null,null,{"$f":"IF(F111=\"\",\"\",IF(F111<Tabelas!$B$340,Tabelas!$D$340,IF(F111<Tabelas!$B$341,Tabelas!$D$341,IF(F111<Tabelas!$B$342,Tabelas!$D$342,IF(F111<Tabelas!$B$343,Tabelas!$D$343,IF(F111<Tabelas!$B$344,Tabelas!$D$344,IF(F111<Tabelas!$B$345,Tabelas!$D$345,IF(F111<Tabelas!$B$346,Tabelas!$D$346,IF(F111<Tabelas!$B$347,Tabelas!$D$347,IF(F111<Tabelas!$B$348,Tabelas!$D$348,IF(F111<Tabelas!$B$349,Tabelas!$D$349,IF(F111<Tabelas!$B$350,Tabelas!$D$350,Tabelas!$D$351))))))))))))","v":""},{"$f":"IF(F113=\"\",Tabelas!B$12,\"\")","v":"Sem dados"}]
[null,null,{"$f":"Tabelas!A330","v":"3.2"},null,{"$f":"Tabelas!B330","v":"Dimensões dos locais e das vias horizontais de evacuação"},null,{"$f":"IF(J114=\"\",\"\",IF(J114=\"-\",\"-\",IF(J114<Tabelas!$C$331,Tabelas!$C$331,IF(J114>Tabelas!$C$332,Tabelas!$C$332,J114))))","v":""},null,null,{"$f":"IF(OR(G115=\"\",G132=\"\"),\"\",IF(OR(G115=\"-\",G132=\"-\"),\"-\",AVERAGE(G115,G132)))","v":""},{"$f":"IF(G115=\"\",Tabelas!B$12,\"\")","v":"Sem dados"},null,{"$f":"IF(G114=\"\",\"\",IF(J114>G114,Tabelas!B$13,IF(J114<G114,Tabelas!B$14,\"\")))","v":""}]
[null,null,{"$f":"Tabelas!A334","v":"3.2.1"},null,{"$f":"Tabelas!B334","v":"Larguras dos vãos e das vias horizontais de evacuação"},null,{"$f":"IF(J115=\"\",\"\",IF(J115=\"-\",\"-\",IF(J115<Tabelas!$C$335,Tabelas!$C$335,IF(J115>Tabelas!$D$336,Tabelas!$D$336,J115))))","v":""},null,null,{"$f":"IF(OR(G118=\"\",G122=\"\",G123=\"\",G128=\"\",G129=\"\"),\"\",IF(AND(G118=\"-\",G122=\"-\",G123=\"-\",G128=\"-\",G129=\"-\"),\"-\",AVERAGE(G118,G122,G123,G128,G129)))","v":""},{"$f":"IF(G115=\"\",Tabelas!B$12,\"\")","v":"Sem dados"},null,{"$f":"IF(G115=\"\",\"\",IF(J115>G115,Tabelas!B$13,IF(J115<G115,Tabelas!B$14,\"\")))","v":""}]
[null,null,null,null,{"$f":"Tabelas!$B$374","v":"Local de risco"},null,null,null,null,null,{"$f":"IF(F116=\"\",Tabelas!B$12,\"\")","v":"Sem dados"}]
[null,null,null,null,{"$f":"Tabelas!B375","v":"Efetivo do local de risco que sai pelo vão em análise"},null,null,null,null,{"$f":"IF(OR(J118<1,J122<1,J123<1,J128<1,J129<1,J148<1,J149<1),Tabelas!C336,Tabelas!D336)","v":3},{"$f":"IF(F117=\"\",Tabelas!B$12,\"\")","v":"Sem dados"}]
[null,null,null,null,{"$f":"Tabelas!$B$376","v":"Largura medida do vão em análise (m)"},null,{"$f":"IF(J118=\"\",\"\",IF(J118=\"-\",\"-\",IF(J118>J117,J117,J118)))","v":""},null,null,{"$f":"IF(F116=\"\",\"\",IF(F116=Tabelas!B$373,\"-\",IF(OR(F118=\"\",F119=\"\"),\"\",F118/F119)))","v":""},{"$f":"IF(F118=\"\",Tabelas!B$12,\"\")","v":"Sem dados"}]
[null,null,null,null,{"$f":"Tabelas!$B$377","v":"Largura de referência do vão em análise (m)"},{"$f":"IF(F117=\"\",\"\",IF(F117<Tabelas!$B$340,Tabelas!$C$340,IF(F117<Tabelas!$B$341,Tabelas!$C$341,IF(F117<Tabelas!$B$342,Tabelas!$C$342,IF(F117<Tabelas!$B$343,Tabelas!$C$343,IF(F117<Tabelas!$B$344,Tabelas!$C$344,IF(F117<Tabelas!$B$345,Tabelas!$C$345,IF(F117<Tabelas!$B$346,Tabelas!$C$346,IF(F117<Tabelas!$B$347,Tabelas!$C$347,IF(F117<Tabelas!$B$348,Tabelas!$C$348,IF(F117<Tabelas!$B$349,Tabelas!$C$349,Tabelas!$C$350)))))))))))","v":""},null,null,null,{"$f":"IF(F117=\"\",\"\",IF(F117<Tabelas!$B$340,Tabelas!$D$340,IF(F117<Tabelas!$B$341,Tabelas!$D$341,IF(F117<Tabelas!$B$342,Tabelas!$D$342,IF(F117<Tabelas!$B$343,Tabelas!$D$343,IF(F117<Tabelas!$B$344,Tabelas!$D$344,IF(F117<Tabelas!$B$345,Tabelas!$D$345,IF(F117<Tabelas!$B$346,Tabelas!$D$346,IF(F117<Tabelas!$B$347,Tabelas!$D$347,IF(F117<Tabelas!$B$348,Tabelas!$D$348,IF(F117<Tabelas!$B$349,Tabelas!$D$349,Tabelas!$D$350)))))))))))","v":""},{"$f":"IF(F119=\"\",Tabelas!B$12,\"\")","v":"Sem dados"}]
[null,null,null,null,{"$f":"Tabelas!$B$381","v":"Via horizontal no piso do local de risco"},null,null,null,null,null,{"$f":"IF(F120=\"\",Tabelas!B$12,\"\")","v":"Sem dados"}]
[null,null,null,null,{"$f":"Tabelas!B382","v":"Efetivo da via horizontal"},null,null,null,null,null,{"$f":"IF(F121=\"\",Tabelas!B$12,\"\")","v":"Sem dados"}]
[null,null,null,null,{"$f":"Tabelas!$B$383","v":"Largura medida da via horizontal (m)"},null,{"$f":"IF(J122=\"\",\"\",IF(J122=\"-\",\"-\",IF(J122>J117,J117,J122)))","v":""},null,null,{"$f":"IF(F120=\"\",\"\",IF(F120=Tabelas!B$373,\"-\",IF(OR(F122=\"\",F124=\"\"),\"\",F122/F124)))","v":""},{"$f":"IF(F122=\"\",Tabelas!B$12,\"\")","v":"Sem dados"}]
[null,null,null,null,{"$f":"Tabelas!$B$385","v":"Largura medida do vão (m)"},null,{"$f":"IF(J123=\"\",\"\",IF(J123=\"-\",\"-\",IF(J123>J117,J117,J123)))","v":""},null,null,{"$f":"IF(F120=\"\",\"\",IF(F120=Tabelas!B$373,\"-\",IF(OR(F123=\"\",F125=\"\"),\"\",F123/F125)))","v":""},{"$f":"IF(F123=\"\",Tabelas!B$12,\"\")","v":"Sem dados"}]
[null,null,null,null,{"$f":"Tabelas!$B$384","v":"Largura de referência da via horizontal (m)"},{"$f":"IF(F121=\"\",\"\",IF(F121<Tabelas!$B$340,Tabelas!$C$340,IF(F121<Tabelas!$B$341,Tabelas!$C$341,IF(F121<Tabelas!$B$342,Tabelas!$C$342,IF(F121<Tabelas!$B$343,Tabelas!$C$343,IF(F121<Tabelas!$B$344,Tabelas!$C$344,IF(F121<Tabelas!$B$345,Tabelas!$C$345,IF(F121<Tabelas!$B$346,Tabelas!$C$346,IF(F121<Tabelas!$B$347,Tabelas!$C$347,IF(F121<Tabelas!$B$348,Tabelas!$C$348,IF(F121<Tabelas!$B$349,Tabelas!$C$349,IF(F121<Tabelas!$B$350,Tabelas!$C$350,Tabelas!$C$351))))))))))))","v":""},null,null,null,{"$f":"IF(F121=\"\",\"\",IF(F121<Tabelas!$B$340,Tabelas!$D$340,IF(F121<Tabelas!$B$341,Tabelas!$D$341,IF(F121<Tabelas!$B$342,Tabelas!$D$342,IF(F121<Tabelas!$B$343,Tabelas!$D$343,IF(F121<Tabelas!$B$344,Tabelas!$D$344,IF(F121<Tabelas!$B$345,Tabelas!$D$345,IF(F121<Tabelas!$B$346,Tabelas!$D$346,IF(F121<Tabelas!$B$347,Tabelas!$D$347,IF(F121<Tabelas!$B$348,Tabelas!$D$348,IF(F121<Tabelas!$B$349,Tabelas!$D$349,IF(F121<Tabelas!$B$350,Tabelas!$D$350,Tabelas!$D$351))))))))))))","v":""},{"$f":"IF(F124=\"\",Tabelas!B$12,\"\")","v":"Sem dados"}]
[null,null,null,null,{"$f":"Tabelas!$B$386","v":"Largura de referência do vão (m)"},{"$f":"F124","v":""},null,null,null,{"$f":"J124","v":""},{"$f":"IF(F125=\"\",Tabelas!B$12,\"\")","v":"Sem dados"}]
[null,null,null,null,{"$f":"Tabelas!$B$387","v":"Via horizontal até à saída para o exterior"},null,null,null,null,null,{"$f":"IF(F126=\"\",Tabelas!B$12,\"\")","v":"Sem dados"}]
[null,null,null,null,{"$f":"Tabelas!B388","v":"Efetivo da via horizontal"},null,null,null,null,null,{"$f":"IF(F127=\"\",Tabelas!B$12,\"\")","v":"Sem dados"}]
[null,null,null,null,{"$f":"Tabelas!B389","v":"Largura medida da via horizontal (m)"},null,{"$f":"IF(J128=\"\",\"\",IF(J128=\"-\",\"-\",IF(J128>J117,J117,J128)))","v":""},null,null,{"$f":"IF(F126=\"\",\"\",IF(F126=Tabelas!B$373,\"-\",IF(AND(F149=F150,F127<F148),\"\",IF(OR(F128=\"\",F130=\"\"),\"\",F128/F130))))","v":""},{"$f":"IF(F128=\"\",Tabelas!B$12,\"\")","v":"Sem dados"}]
[null,null,null,null,{"$f":"Tabelas!$B$391","v":"Largura medida do vão de saída para o exterior (m)"},null,{"$f":"IF(J129=\"\",\"\",IF(J129=\"-\",\"-\",IF(J129>J117,J117,J129)))","v":""},null,null,{"$f":"IF(F126=\"\",\"\",IF(F126=Tabelas!B$373,\"-\",IF(AND(F149=F150,F127<F148),\"\",IF(OR(F129=\"\",F131=\"\"),\"\",F129/F131))))","v":""},{"$f":"IF(F129=\"\",Tabelas!B$12,\"\")","v":"Sem dados"}]
[null,null,null,null,{"$f":"Tabelas!B390","v":"Largura de referência da via horizontal (m)"},{"$f":"IF(F127=\"\",\"\",IF(F127<Tabelas!$B$340,Tabelas!$C$340,IF(F127<Tabelas!$B$341,Tabelas!$C$341,IF(F127<Tabelas!$B$342,Tabelas!$C$342,IF(F127<Tabelas!$B$343,Tabelas!$C$343,IF(F127<Tabelas!$B$344,Tabelas!$C$344,IF(F127<Tabelas!$B$345,Tabelas!$C$345,IF(F127<Tabelas!$B$346,Tabelas!$C$346,IF(F127<Tabelas!$B$347,Tabelas!$C$347,IF(F127<Tabelas!$B$348,Tabelas!$C$348,IF(F127<Tabelas!$B$349,Tabelas!$C$349,IF(F127<Tabelas!$B$350,Tabelas!$C$350,Tabelas!$C$351))))))))))))","v":""},null,null,null,{"$f":"IF(F127=\"\",\"\",IF(F127<Tabelas!$B$340,Tabelas!$D$340,IF(F127<Tabelas!$B$341,Tabelas!$D$341,IF(F127<Tabelas!$B$342,Tabelas!$D$342,IF(F127<Tabelas!$B$343,Tabelas!$D$343,IF(F127<Tabelas!$B$344,Tabelas!$D$344,IF(F127<Tabelas!$B$345,Tabelas!$D$345,IF(F127<Tabelas!$B$346,Tabelas!$D$346,IF(F127<Tabelas!$B$347,Tabelas!$D$347,IF(F127<Tabelas!$B$348,Tabelas!$D$348,IF(F127<Tabelas!$B$349,Tabelas!$D$349,IF(F127<Tabelas!$B$350,Tabelas!$D$350,Tabelas!$D$351))))))))))))","v":""},{"$f":"IF(F130=\"\",Tabelas!B$12,\"\")","v":"Sem dados"}]
[null,null,null,null,{"$f":"Tabelas!$B$392","v":"Largura de referência do vão de saída para o exterior (m)"},{"$f":"F130","v":""},null,null,null,{"$f":"J130","v":""},{"$f":"IF(F131=\"\",Tabelas!B$12,\"\")","v":"Sem dados"}]
[null,null,{"$f":"Tabelas!$A$394","v":"3.2.2"},null,{"$f":"Tabelas!$B$394","v":"Distância a percorrer nas vias horizontais de evacuação"},null,{"$f":"IF(J132=\"\",\"\",IF(J132=\"-\",\"-\",IF(J132<Tabelas!$C$395,Tabelas!$C$395,IF(J132>Tabelas!$C$396,Tabelas!$C$396,J132))))","v":""},null,null,{"$f":"IF(AND(F133=Tabelas!B373,F136=Tabelas!B373,F139=Tabelas!B373),\"-\",IF(OR(J134=\"\",J135=\"\",J137=\"\",J138=\"\",J140=\"\",J141=\"\"),\"\",IF(J134+J137+J140=0,1,(J135+J138+J141)/(J134+J137+J140))))","v":""},{"$f":"IF(G132=\"\",Tabelas!B$12,\"\")","v":"Sem dados"},null,{"$f":"IF(G132=\"\",\"\",IF(J132>G132,Tabelas!B$13,IF(J132<G132,Tabelas!B$14,\"\")))","v":""}]
[null,null,null,null,{"$f":"Tabelas!B397","v":"Percurso no interior do local de risco até à porta"},{"$f":"IF(F116=\"\",\"\",F116)","v":""},null,null,null,null,{"$f":"IF(F133=\"\",Tabelas!B$12,\"\")","v":"Sem dados"}]
[null,null,null,null,{"$f":"Tabelas!$B$398","v":"Distância medida (m)"},null,null,null,null,{"$f":"IF(F133=\"\",\"\",IF(F133=Tabelas!B$373,0,IF(F134=\"\",\"\",F134)))","v":""},{"$f":"IF(F134=\"\",Tabelas!B$12,\"\")","v":"Sem dados"}]
[null,null,null,null,{"$f":"Tabelas!$B$399","v":"Distância regulamentar (m)"},null,null,null,null,{"$f":"IF(F133=\"\",\"\",IF(F133=Tabelas!B$373,0,IF(F135=\"\",\"\",F135)))","v":""},{"$f":"IF(F135=\"\",Tabelas!B$12,\"\")","v":"Sem dados"}]
[null,null,null,null,{"$f":"Tabelas!B400","v":"Percurso na via horizontal no piso do local de risco"},{"$f":"IF(F120=\"\",\"\",F120)","v":""},null,null,null,null,{"$f":"IF(F136=\"\",Tabelas!B$12,\"\")","v":"Sem dados"}]
[null,null,null,null,{"$f":"Tabelas!$B$401","v":"Distância medida (m)"},null,null,null,null,{"$f":"IF(F136=\"\",\"\",IF(F136=Tabelas!B$373,0,IF(F137=\"\",\"\",F137)))","v":""},{"$f":"IF(F137=\"\",Tabelas!B$12,\"\")","v":"Sem dados"}]
[null,null,null,null,{"$f":"Tabelas!$B$402","v":"Distância regulamentar (m)"},null,null,null,null,{"$f":"IF(F136=\"\",\"\",IF(F136=Tabelas!B$373,0,IF(F138=\"\",\"\",F138)))","v":""},{"$f":"IF(F138=\"\",Tabelas!B$12,\"\")","v":"Sem dados"}]
[null,null,null,null,{"$f":"Tabelas!B403","v":"Percurso na via horizontal até à saída para o exterior"},{"$f":"IF(F126=\"\",\"\",F126)","v":""},null,null,null,null,{"$f":"IF(F139=\"\",Tabelas!B$12,\"\")","v":"Sem dados"}]
[null,null,null,null,{"$f":"Tabelas!$B$404","v":"Distância medida (m)"},null,null,null,null,{"$f":"IF(F139=\"\",\"\",IF(F139=Tabelas!B$373,0,IF(F140=\"\",\"\",F140)))","v":""},{"$f":"IF(F140=\"\",Tabelas!B$12,\"\")","v":"Sem dados"}]
[null,null,null,null,{"$f":"Tabelas!$B$405","v":"Distância regulamentar (m)"},null,null,null,null,{"$f":"IF(F139=\"\",\"\",IF(F139=Tabelas!B$373,0,IF(F141=\"\",\"\",F141)))","v":""},{"$f":"IF(F141=\"\",Tabelas!B$12,\"\")","v":"Sem dados"}]
[null,null,{"$f":"Tabelas!A407","v":"3.3"},null,{"$f":"Tabelas!B407","v":"Dimensões das vias verticais de evacuação"},null,{"$f":"IF(J142=\"\",\"\",IF(J142=\"-\",\"-\",IF(J142<Tabelas!$C$408,Tabelas!$C$408,IF(J142>Tabelas!$C$409,Tabelas!$C$409,J142))))","v":""},null,null,{"$f":"IF(F142=Tabelas!B$373,\"-\",IF(OR(G143=\"\",G146=\"\",G152=\"\",G153=\"\"),\"\",G143*AVERAGE(G146,G152)*G153))","v":""},{"$f":"IF(G142=\"\",Tabelas!B$12,\"\")","v":"Sem dados"},null,{"$f":"IF(G142=\"\",\"\",IF(J142>G142,Tabelas!B$13,IF(J142<G142,Tabelas!B$14,\"\")))","v":""}]
[null,null,{"$f":"Tabelas!A411","v":"3.3.1"},null,{"$f":"Tabelas!B411","v":"Número de vias verticais de evacuação"},null,{"$f":"IF(F144=\"\",\"\",IF(F144=F145,1,IF(F144>F145,0.5,IF(F145>F144,IF(F145-F144>2,1.45,1+0.15*(F145-F144))))))","v":""},null,null,null,{"$f":"IF(G143=\"\",Tabelas!B$12,\"\")","v":"Sem dados"}]
[null,null,null,null,{"$f":"Tabelas!B412","v":"Número de vias verticais exigidas na regulamentação"},null,null,null,null,null,{"$f":"IF(F144=\"\",Tabelas!B$12,\"\")","v":"Sem dados"}]
[null,null,null,null,{"$f":"Tabelas!B413","v":"Número de vias verticais que servem o local de risco"},null,null,null,null,null,{"$f":"IF(F145=\"\",Tabelas!B$12,\"\")","v":"Sem dados"}]
[null,null,{"$f":"Tabelas!A415","v":"3.3.2"},null,{"$f":"Tabelas!B415","v":"Larguras das vias verticais de evacuação"},null,{"$f":"IF(OR(G148=\"\",G149=\"\"),\"\",AVERAGE(G148,G149))","v":""},null,null,{"$f":"IF(OR(J118<1,J122<1,J123<1,J128<1,J129<1,J148<1,J149<1),Tabelas!C423,Tabelas!D423)","v":2.5},{"$f":"IF(G146=\"\",Tabelas!B$12,\"\")","v":"Sem dados"}]
[null,null,null,null,{"$f":"Tabelas!B417","v":"Efetivo da via vertical"},null,null,null,null,null,{"$f":"IF(F147=\"\",Tabelas!B$12,\"\")","v":"Sem dados"}]
[null,null,null,null,{"$f":"Tabelas!$B$418","v":"Largura medida da via vertical (m)"},null,{"$f":"IF(J148=\"\",\"\",IF(J148>J146,J146,J148))","v":""},null,null,{"$f":"IF(F142=\"\",\"\",IF(F142=Tabelas!B$373,1,IF(AND(F123=F124,F147<F122),\"\",IF(OR(F148=\"\",F150=\"\"),\"\",F148/F150))))","v":""},{"$f":"IF(F148=\"\",Tabelas!B$12,\"\")","v":"Sem dados"}]
[null,null,null,null,{"$f":"Tabelas!$B$420","v":"Largura medida do vão (m)"},null,{"$f":"IF(J149=\"\",\"\",IF(J149>J146,J146,J149))","v":""},null,null,{"$f":"IF(F142=\"\",\"\",IF(F142=Tabelas!B$373,1,IF(AND(F123=F124,F147<F122),\"\",IF(OR(F149=\"\",F151=\"\"),\"\",F149/F151))))","v":""},{"$f":"IF(F149=\"\",Tabelas!B$12,\"\")","v":"Sem dados"}]
[null,null,null,null,{"$f":"Tabelas!$B$419","v":"Largura de referência da via vertical (m)"},{"$f":"IF(F147=\"\",\"\",IF(F147<Tabelas!$B$354,Tabelas!$C$354,IF(F147<Tabelas!$B$355,Tabelas!$C$355,IF(F147<Tabelas!$B$356,Tabelas!$C$356,IF(F147<Tabelas!$B$357,Tabelas!$C$357,IF(F147<Tabelas!$B$358,Tabelas!$C$358,IF(F147<Tabelas!$B$359,Tabelas!$C$359,IF(F147<Tabelas!$B$360,Tabelas!$C$360,IF(F147<Tabelas!$B$361,Tabelas!$C$361,IF(F147<Tabelas!$B$362,Tabelas!$C$362,IF(F147<Tabelas!$B$363,Tabelas!$C$363,IF(F147<Tabelas!$B$364,Tabelas!$C$364,IF(F147<Tabelas!$B$365,Tabelas!$C$365,IF(F147<Tabelas!$B$366,Tabelas!$C$366,IF(F147<Tabelas!$B$367,Tabelas!$C$367,IF(F147<Tabelas!$B$368,Tabelas!$C$368,Tabelas!$C$369))))))))))))))))","v":""},null,null,null,{"$f":"IF(F147=\"\",\"\",IF(F147<Tabelas!$B$354,Tabelas!$D$354,IF(F147<Tabelas!$B$355,Tabelas!$D$355,IF(F147<Tabelas!$B$356,Tabelas!$D$356,IF(F147<Tabelas!$B$357,Tabelas!$D$357,IF(F147<Tabelas!$B$358,Tabelas!$D$358,IF(F147<Tabelas!$B$359,Tabelas!$D$359,IF(F147<Tabelas!$B$360,Tabelas!$D$360,IF(F147<Tabelas!$B$361,Tabelas!$D$361,IF(F147<Tabelas!$B$362,Tabelas!$D$362,IF(F147<Tabelas!$B$363,Tabelas!$D$363,IF(F147<Tabelas!$B$364,Tabelas!$D$364,IF(F147<Tabelas!$B$365,Tabelas!$D$365,IF(F147<Tabelas!$B$366,Tabelas!$D$366,IF(F147<Tabelas!$B$367,Tabelas!$D$367,IF(F147<Tabelas!$B$368,Tabelas!$D$368,Tabelas!$C$369))))))))))))))))","v":""},{"$f":"IF(F150=\"\",Tabelas!B$12,\"\")","v":"Sem dados"}]
[null,null,null,null,{"$f":"Tabelas!$B$421","v":"Largura de referência do vão (m)"},{"$f":"IF(F147=\"\",\"\",IF(F147<Tabelas!$B$354,Tabelas!$C$354,IF(F147<Tabelas!$B$355,Tabelas!$C$355,IF(F147<Tabelas!$B$356,Tabelas!$C$356,IF(F147<Tabelas!$B$357,Tabelas!$C$357,IF(F147<Tabelas!$B$358,Tabelas!$C$358,IF(F147<Tabelas!$B$359,Tabelas!$C$359,IF(F147<Tabelas!$B$360,Tabelas!$C$360,IF(F147<Tabelas!$B$361,Tabelas!$C$361,IF(F147<Tabelas!$B$362,Tabelas!$C$362,IF(F147<Tabelas!$B$363,Tabelas!$C$363,IF(F147<Tabelas!$B$364,Tabelas!$C$364,IF(F147<Tabelas!$B$365,Tabelas!$C$365,IF(F147<Tabelas!$B$366,Tabelas!$C$366,IF(F147<Tabelas!$B$367,Tabelas!$C$367,IF(F147<Tabelas!$B$368,Tabelas!$C$368,Tabelas!$C$369))))))))))))))))","v":""},null,null,null,{"$f":"IF(F147=\"\",\"\",IF(F147<Tabelas!$B$340,Tabelas!$D$340,IF(F147<Tabelas!$B$341,Tabelas!$D$341,IF(F147<Tabelas!$B$342,Tabelas!$D$342,IF(F147<Tabelas!$B$343,Tabelas!$D$343,IF(F147<Tabelas!$B$344,Tabelas!$D$344,IF(F147<Tabelas!$B$345,Tabelas!$D$345,IF(F147<Tabelas!$B$346,Tabelas!$D$346,IF(F147<Tabelas!$B$347,Tabelas!$D$347,IF(F147<Tabelas!$B$348,Tabelas!$D$348,IF(F147<Tabelas!$B$349,Tabelas!$D$349,IF(F147<Tabelas!$B$350,Tabelas!$D$350,Tabelas!$D$351))))))))))))","v":""},{"$f":"IF(F151=\"\",Tabelas!B$12,\"\")","v":"Sem dados"}]
[null,null,{"$f":"Tabelas!A425","v":"3.3.3"},null,{"$f":"Tabelas!B425","v":"Inclinação das vias verticais de evacuação (graus)"},null,{"$f":"IF(F152=\"\",\"\",IF(F152<27,1.5,IF(F152>60,0.3,0.001*F152^2-0.123*F152+4.132)))","v":""},null,null,null,{"$f":"IF(F152=\"\",Tabelas!B$12,\"\")","v":"Sem dados"}]
[null,null,{"$f":"Tabelas!A427","v":"3.3.4"},null,{"$f":"Tabelas!B427","v":"Piso em que se encontra a unidade de análise\n(diferença entre LR e saida para o exterior)"},null,{"$f":"IF(OR(G143=\"\",G146=\"\",G152=\"\"),\"\",IF(OR(G143<1,G146<1,G152<1), 1-(0.104*F153^2+ 0.417*F153)/100,1))","v":""},null,null,null,{"$f":"IF(F153=\"\",Tabelas!B$12,\"\")","v":"Sem dados"}]
[null,null,null,null,null,null,null,null,null," "]
[null,null,null,null,null,null,null,null,null," "]
[null,null,null,null,{"$f":"Tabelas!$B$4","v":"ARICA:2019"},{"$f":"$F$3","v":0},{"$f":"$G$3","v":"0"},null,null," "]
[null,null,null,null,{"$f":"Tabelas!$B$70","v":"CONDIÇÕES INICIAIS"},null,null,null,null," ",{"$f":"IF(K175=\"\",Tabelas!B$10,Tabelas!B$9)","v":"Incompleto"},null,{"$f":"Tabelas!B$8","v":"Avisos"},null,{"$f":"Tabelas!$B$6","v":"Comentários (não não visíveis no relatório)"}]
[null,null,null,null,null,null,null,null,null," "]
[null,null,{"$f":"Tabelas!$A$432","v":"3.4"},null,{"$f":"Tabelas!$B$432","v":"Isolamento e proteção das vias de evacuação"},"Existem elementos com um escalão de tempo inferior ao exigido na regulamentação",{"$f":"IF(F159=\"\",\"\",IF(F159=Tabelas!$B$436,J160,VLOOKUP(F159,Tabelas!$B$433:$C$438,2,FALSE)))","v":""},null,null," ",{"$f":"IF(G159=\"\",Tabelas!B$12,\"\")","v":"Sem dados"}]
[null,null,null,null,{"$f":"Tabelas!$B$439","v":"Escalão de tempo estabelecido na regulamentação"},null,null,null,null,{"$f":"IF(OR(F160=\"\",F161=\"\"),\"\",IF(F160<=F161,\"\",1/(1+(0.0087*(F160-F161)/F160+0.05/F160)*100)))","v":""},{"$f":"IF(F160=\"\",Tabelas!B$12,\"\")","v":"Sem dados"},null,{"$f":"IF(J161=\"\",\"\",IF(J160>J161,Tabelas!B$13,IF(J160<J161,Tabelas!B$14,\"\")))","v":""}]
[null,null,null,null,{"$f":"Tabelas!$B$440","v":"Escalão de tempo do elemento mais condicionante "},null,null,null,null,null,{"$f":"IF(F161=\"\",Tabelas!B$12,\"\")","v":"Sem dados"},null,{"$f":"IF(F159=Tabelas!$B$436,IF(OR(F161=\"\",F160=\"\"),\"\",IF(F160<=F161,Tabelas!B$216,\"\")),\"\")","v":""}]
[null,null,{"$f":"Tabelas!$A$445","v":"3.5"},null,{"$f":"Tabelas!$B$445","v":"Controlo de fumo na unidade de análise"},null,{"$f":"IF(OR(F163=\"\",F164=\"\"),\"\",IF(AND(G163=\"-\",G164=\"-\"),\"-\",AVERAGE(G163:G164)))","v":""},null,null," ",{"$f":"IF(G162=\"\",Tabelas!B$12,\"\")","v":"Sem dados"}]
[null,null,{"$f":"Tabelas!A447","v":"3.5.1"},null,{"$f":"Tabelas!B447","v":"Controlo de fumo no local de risco"},null,{"$f":"IF(F163=\"\",\"\",VLOOKUP(F163,Tabelas!$B$448:$C$453,2,FALSE))","v":""},null,null,null,{"$f":"IF(G163=\"\",Tabelas!B$12,\"\")","v":"Sem dados"}]
[null,null,{"$f":"Tabelas!A455","v":"3.5.2"},null,{"$f":"Tabelas!B455","v":"Controlo de fumo nas vias de evacuação"},null,{"$f":"IF(F164=\"\",\"\",VLOOKUP(F164,Tabelas!$B$456:$C$461,2,FALSE))","v":""},null,null,null,{"$f":"IF(G164=\"\",Tabelas!B$12,\"\")","v":"Sem dados"}]
[null,null,{"$f":"Tabelas!$A$463","v":"3.6"},null,{"$f":"Tabelas!$B$463","v":"Sinalização de emergência na unidade de análise"},null,{"$f":"IF(OR(F166=\"\",F167=\"\"),\"\",IF(AND(G166=\"-\",G167=\"-\"),\"-\",AVERAGE(G166:G167)))","v":""},null,null," ",{"$f":"IF(G165=\"\",Tabelas!B$12,\"\")","v":"Sem dados"}]
[null,null,{"$f":"Tabelas!A465","v":"3.6.1"},null,{"$f":"Tabelas!B465","v":"Sinalização de emergência no local de risco"},null,{"$f":"IF(F166=\"\",\"\",VLOOKUP(F166,Tabelas!B467:C472,2,FALSE))","v":""},null,null,null,{"$f":"IF(G166=\"\",Tabelas!B$12,\"\")","v":"Sem dados"}]
[null,null,{"$f":"Tabelas!A474","v":"3.6.2"},null,{"$f":"Tabelas!B474","v":"Sinalização de emergência nas vias de evacuação"},null,{"$f":"IF(F167=\"\",\"\",VLOOKUP(F167,Tabelas!B476:C481,2,FALSE))","v":""},null,null,null,{"$f":"IF(G167=\"\",Tabelas!B$12,\"\")","v":"Sem dados"}]
[null,null,{"$f":"Tabelas!$A$483","v":"3.7"},null,{"$f":"Tabelas!$B$483","v":"Iluminação de emergência na unidade de análise"},null,{"$f":"IF(OR(F169=\"\",F170=\"\"),\"\",IF(AND(G169=\"-\",G170=\"-\"),\"-\",AVERAGE(G169:G170)))","v":""},null,null," ",{"$f":"IF(G168=\"\",Tabelas!B$12,\"\")","v":"Sem dados"}]
[null,null,{"$f":"Tabelas!A485","v":"3.7.1"},null,{"$f":"Tabelas!B485","v":"Iluminação de emergência no local de risco"},null,{"$f":"IF(F169=\"\",\"\",VLOOKUP(F169,Tabelas!B487:C492,2,FALSE))","v":""},null,null,null,{"$f":"IF(G169=\"\",Tabelas!B$12,\"\")","v":"Sem dados"}]
[null,null,{"$f":"Tabelas!A494","v":"3.7.2"},null,{"$f":"Tabelas!B494","v":"Iluminação de emergência nas vias de evacuação"},null,{"$f":"IF(F170=\"\",\"\",VLOOKUP(F170,Tabelas!B496:C501,2,FALSE))","v":""},null,null,null,{"$f":"IF(G170=\"\",Tabelas!B$12,\"\")","v":"Sem dados"}]
[null,null,{"$f":"Tabelas!$A$503","v":"3.8"},null,{"$f":"Tabelas!$B$503","v":"Equipas de segurança"},{"$f":"IF(F91=\"\",\"\",F91)","v":""},{"$f":"$G$91","v":""},null,null," ",{"$f":"IF(G171=\"\",Tabelas!B$12,\"\")","v":"Sem dados"},null,"(Igual a 2.6)"]
[null,null,{"$f":"Tabelas!$A$505","v":"3.9"},null,{"$f":"Tabelas!$B$505","v":"Deteção, alerta e alarme de incêndio"},{"$f":"IF(F92=\"\",\"\",F92)","v":""},{"$f":"$G$92","v":""},null,null," ",{"$f":"IF(G172=\"\",Tabelas!B$12,\"\")","v":"Sem dados"},null,"(Igual a 2.7)"]
[null,null,{"$f":"Tabelas!$A$513","v":"3.10"},null,{"$f":"Tabelas!$B$513","v":"Simulacros de evacuação "},null,{"$f":"IF(J173=\"\",\"\",IF(J173=\"-\",\"-\",IF(AND(OR(F91=\"\",F91=Tabelas!B$240,F91=Tabelas!B$241),OR(F173=Tabelas!B$508,F173=Tabelas!B$509)),\"\",J173)))","v":""},null,null,{"$f":"IF(F173=\"\",\"\",VLOOKUP(F173,Tabelas!B508:C511,2,FALSE))","v":""},{"$f":"IF(G173=\"\",Tabelas!B$12,\"\")","v":"Sem dados"},null,{"$f":"IF(AND(OR(F91=\"\",F91=Tabelas!B$240,F91=Tabelas!B$241),OR(F173=Tabelas!B$508,F173=Tabelas!B$509)),Tabelas!B518,\"\")","v":""}]
[]
[null,null,{"$f":"Tabelas!A521","v":"4."},null,{"$f":"Tabelas!B521","v":"Combate ao incêndio"},null,{"$f":"IF(OR(G176=\"\",G188=\"\",G189=\"\"),\"\",IF(AND(G176=\"-\",G188=\"-\",G189=\"-\"),\"-\",AVERAGE(G176,G188,G189)))","v":""},null,null," ",{"$f":"IF(G175=\"\",Tabelas!B$12,\"\")","v":"Sem dados"}]
[null,null,{"$f":"Tabelas!A522","v":"4.1"},null,{"$f":"Tabelas!B522","v":"Acessibilidade e meios de intervenção não automáticos"},null,{"$f":"IF(OR(G177=\"\",G178=\"\",G181=\"\",G182=\"\",G187=\"\"),\"\",IF(AND(G177=\"-\",G178=\"-\",G181=\"-\",G182=\"-\",G187=\"-\"),\"-\",AVERAGE(G177,G178,G181,G182,G187)))","v":""},null,null," ",{"$f":"IF(G176=\"\",Tabelas!B$12,\"\")","v":"Sem dados"}]
[null,null,{"$f":"Tabelas!A523","v":"4.1.1"},null,{"$f":"Tabelas!B523","v":"Acessibilidade ao edifício"},null,{"$f":"IF(F177=\"\",\"\",VLOOKUP(F177,Tabelas!B524:$C$527,2,FALSE))","v":""},null,null," ",{"$f":"IF(G177=\"\",Tabelas!B$12,\"\")","v":"Sem dados"}]
[null,null,{"$f":"Tabelas!A529","v":"4.1.2"},null,{"$f":"Tabelas!B529","v":"Hidrantes exteriores"},null,{"$f":"IF(F178=\"\",\"\",IF(F178=Tabelas!$B$533,J180,VLOOKUP(F178,Tabelas!$B$530:$C$534,2,FALSE)))","v":""},null,null," ",{"$f":"IF(G178=\"\",Tabelas!B$12,\"\")","v":"Sem dados"},null,{"$f":"IF(F178=Tabelas!$B$533,IF(J180=\"\",\"\",IF(J179>J180,Tabelas!B$13,IF(J179<J180,Tabelas!B$14,\"\"))),\"\")","v":""}]
[null,null,null,null,{"$f":"Tabelas!B535","v":"Distância regulamentar entre um hidrante exterior e qualquer das saídas do edifício (m)"},null,null,null,null,{"$f":"IF(OR(F180=\"\", F180=0,F179=\"\",F179=0),\"\",F179/F180)","v":""},{"$f":"IF(F179=\"\",Tabelas!B$12,\"\")","v":"Sem dados"}]
[null,null,null,null,{"$f":"Tabelas!B536","v":"Menor distância entre um hidrante exterior e qualquer das saídas do edifício (m)"},null,null,null,null,{"$f":"IF(OR(J179=\"\", J179=0),\"\",(IF(J179<Tabelas!$C$537,Tabelas!$C$537,IF(J179>Tabelas!$C$538,Tabelas!$C$538,J179))))","v":""},{"$f":"IF(F180=\"\",Tabelas!B$12,\"\")","v":"Sem dados"}]
[null,null,{"$f":"Tabelas!A540","v":"4.1.3"},null,{"$f":"Tabelas!B540","v":"Redes secas ou húmidas"},null,{"$f":"IF(F181=\"\",\"\",VLOOKUP(F181,Tabelas!$B$541:$C$544,2,FALSE))","v":""},null,null," ",{"$f":"IF(G181=\"\",Tabelas!B$12,\"\")","v":"Sem dados"}]
[null,null,{"$f":"Tabelas!A546","v":"4.1.4"},null,{"$f":"Tabelas!B546","v":"Extintores"},null,{"$f":"IF(F182=\"\",\"\",IF(F182=Tabelas!$B$551,J184,VLOOKUP(F182,Tabelas!$B$547:C552,2,FALSE)))","v":""},null,null," ",{"$f":"IF(G182=\"\",Tabelas!B$12,\"\")","v":"Sem dados"},null,{"$f":"IF(F182=Tabelas!$B$551,IF(J184=\"\",\"\",IF(J183>J184,Tabelas!B$13,IF(J183<J184,Tabelas!B$14,\"\"))),\"\")","v":""}]
[null,null,null,null,{"$f":"Tabelas!B553","v":"Número total de extintores necessários para cumprir as exigências da regulamentação"},null,null,null,null,{"$f":"IF(OR(F183=\"\",F184=\"\",F185=\"\",F186=\"\"),\"\",F184/F183*F186/F185*0.2+0.8)","v":""},{"$f":"IF(F183=\"\",Tabelas!B$12,\"\")","v":"Sem dados"}]
[null,null,null,null,{"$f":"Tabelas!B554","v":"Número total de extintores existentes na UA"},null,null,null,null,{"$f":"IF(J183=\"\",\"\",IF(J183<Tabelas!$C$557,Tabelas!$C$557,IF(J183>Tabelas!$C$558,Tabelas!$C$558,J183)))","v":""},{"$f":"IF(F184=\"\",Tabelas!B$12,\"\")","v":"Sem dados"}]
[null,null,null,null,{"$f":"Tabelas!B555","v":"Quantidade total de agente extintor exigido na regulament. (l)"},null,null,null,null,null,{"$f":"IF(F185=\"\",Tabelas!B$12,\"\")","v":"Sem dados"}]
[null,null,null,null,{"$f":"Tabelas!B556","v":"Quantidade total de agente extintor existente na UA (l)"},null,null,null,null,null,{"$f":"IF(F186=\"\",Tabelas!B$12,\"\")","v":"Sem dados"}]
[null,null,{"$f":"Tabelas!A560","v":"4.1.5"},null,{"$f":"Tabelas!B560","v":"Redes de incêndio armadas"},null,{"$f":"IF(F187=\"\",\"\",VLOOKUP(F187,Tabelas!$B$561:$C$564,2,FALSE))","v":""},null,null," ",{"$f":"IF(G187=\"\",Tabelas!B$12,\"\")","v":"Sem dados"}]
[null,null,{"$f":"Tabelas!A566","v":"4.2"},null,{"$f":"Tabelas!B566","v":"Meios de extinção automáticos"},null,{"$f":"IF(J188=\"\",\"\",IF(J188=\"-\",\"-\",IF(AND(OR(F91=\"\",F91=Tabelas!B$240,F91=Tabelas!B$241),OR(F188=Tabelas!B$567,F188=Tabelas!B$568,F188=Tabelas!B$569)),\"\",J188)))","v":""},null,null,{"$f":"IF(F188=\"\",\"\",VLOOKUP(F188,Tabelas!$B$567:$C$571,2,FALSE))","v":""},{"$f":"IF(G188=\"\",Tabelas!B$12,\"\")","v":"Sem dados"},null,{"$f":"IF(OR(F91=\"\",F91=Tabelas!B247,F91=Tabelas!B246),Tabelas!B572,\"\")","v":"Apenas se considera que a UA dispõe um sistema de extinção, se existir uma equipa de segurança ou um contrato de prestação de serviços para manutenção do sistema"}]
[null,null,{"$f":"Tabelas!A575","v":"4.3"},null,{"$f":"Tabelas!B575","v":"Equipas de segurança"},{"$f":"IF(F91=\"\",\"\",F91)","v":""},{"$f":"G91","v":""},null,null," ",{"$f":"IF(G189=\"\",Tabelas!B$12,\"\")","v":"Sem dados"},null,{"$f":"M171","v":"(Igual a 2.6)"}]

{"sheet":"0-Proj","index":2,"n_rows":240,"n_cols":15,"rows_kept":240,"cut":false,"hidden":true,"merged":[[199,4,199,6],[2,6,3,6],[64,6,65,6],[101,6,102,6],[155,6,156,6],[191,6,192,6],[215,4,215,6],[200,4,200,6],[203,4,203,6],[204,4,204,6],[207,4,207,6],[208,4,208,6],[211,4,211,6],[212,4,212,6],[231,4,231,6],[216,4,216,6],[219,4,219,6],[220,4,220,6],[223,4,223,6],[224,4,224,6],[227,4,227,6],[228,4,228,6],[240,4,240,6],[232,4,232,6],[235,4,235,6],[236,4,236,6],[239,4,239,6]]}
[]
[]
[null,null,null,null,{"$f":"Tabelas!$B$4","v":"ARICA:2019"},null,"0"]
[null,null,null,null,{"$f":"Tabelas!$B$72","v":"CONDIÇÕES DE PROJETO"},null,null,null,null,null,null,null,null,null,{"$f":"Tabelas!$B$6","v":"Comentários (não não visíveis no relatório)"}]
[]
[null,null,null,null,{"$f":"Tabelas!B75","v":"Carateristicas da unidade"}]
[null,null,null,null,{"$f":"Tabelas!$B$77","v":"Tipo de local de risco"}]
[null,null,null,null,{"$f":"Tabelas!$B$91","v":"Utilização tipo"}]
[null,null,null,null,{"$f":"Tabelas!B85","v":"Categoria de risco"}]
[]
[null,null,null,null,{"$f":"Tabelas!B105","v":"Resumo"}]
[null,null,{"$f":"Tabelas!A109","v":"1."},null,{"$f":"Tabelas!B109","v":"Início do incêndio"},null,{"$f":"G68","v":""}]
[null,null,null,null,{"$f":"IF(OR(G13=\"\",G13=\"-\"),\"-\",F13)","v":"-"},{"$f":"Tabelas!$B$111","v":"Anomalias que podem provocar um incêndio"},{"$f":"G69","v":""}]
[null,null,null,null,{"$f":"IF(OR(G14=\"\",G14=\"-\"),\"-\",F14)","v":"-"},{"$f":"Tabelas!$B$117","v":"Instalações técnicas"},{"$f":"G70","v":""}]
[]
[null,null,{"$f":"Tabelas!A154","v":"2."},null,{"$f":"Tabelas!B154","v":"Desenvolvimento e propagação do incêndio"},null,{"$f":"G79","v":""}]
[null,null,null,null,{"$f":"IF(OR(G17=\"\",G17=\"-\"),\"-\",F17)","v":"-"},{"$f":"Tabelas!$B$156","v":"Materiais de revestimento do local de risco"},{"$f":"G80","v":""}]
[null,null,null,null,{"$f":"IF(OR(G18=\"\",G18=\"-\"),\"-\",F18)","v":"-"},{"$f":"Tabelas!$B177","v":"Materiais de revestimento das vias de evacuação"},{"$f":"G83","v":""}]
[null,null,null,null,{"$f":"IF(OR(G19=\"\",G19=\"-\"),\"-\",F19)","v":"-"},{"$f":"Tabelas!$B$198","v":"Isolamento e proteção do local de risco"},{"$f":"G86","v":""}]
[null,null,null,null,"-",{"$f":"Tabelas!$B$221","v":"Compartimentação geral corta-fogo da área de intervenção"},{"$f":"G89","v":""}]
[null,null,null,null,"-",{"$f":"Tabelas!B226","v":"Isolamento e proteção entre utilizações-tipo distintas"},{"$f":"G90","v":""}]
[null,null,null,null,"-",{"$f":"Tabelas!$B$236","v":"Equipas de segurança"},{"$f":"G91","v":""}]
[null,null,null,null,"-",{"$f":"Tabelas!$B$249","v":"Deteção, alerta e alarme de incêndio"},{"$f":"G92","v":""}]
[null,null,null,null,"-",{"$f":"Tabelas!$B$266","v":"Propagação pelo exterior"},{"$f":"G95","v":""}]
[]
[null,null,{"$f":"Tabelas!A294","v":"3."},null,{"$f":"Tabelas!B294","v":"Evacuação em caso de incêndio"},null,{"$f":"G105","v":""}]
[null,null,null,null,{"$f":"IF(OR(G27=\"\",G27=\"-\"),\"-\",F27)","v":"-"},{"$f":"Tabelas!$B$301","v":"Saídas do local de risco"},{"$f":"G106","v":""}]
[null,null,null,null,{"$f":"IF(OR(G28=\"\",G28=\"-\"),\"-\",F28)","v":"-"},{"$f":"Tabelas!$B$330","v":"Dimensões dos locais e das vias horizontais de evacuação"},{"$f":"G114","v":""}]
[null,null,null,null,{"$f":"IF(OR(G29=\"\",G29=\"-\"),\"-\",F29)","v":"-"},{"$f":"Tabelas!$B$407","v":"Dimensões das vias verticais de evacuação"},{"$f":"G142","v":""}]
[null,null,null,null,"-",{"$f":"Tabelas!$B$432","v":"Isolamento e proteção das vias de evacuação"},{"$f":"G159","v":""}]
[null,null,null,null,"-",{"$f":"Tabelas!$B$445","v":"Controlo de fumo na unidade de análise"},{"$f":"G162","v":""}]
[null,null,null,null,"-",{"$f":"Tabelas!$B$463","v":"Sinalização de emergência na unidade de análise"},{"$f":"G165","v":""}]
[null,null,null,null,"-",{"$f":"Tabelas!$B$483","v":"Iluminação de emergência na unidade de análise"},{"$f":"G168","v":""}]
[null,null,null,null,"-",{"$f":"Tabelas!$B$503","v":"Equipas de segurança"},{"$f":"G171","v":""}]
[null,null,null,null,"-",{"$f":"Tabelas!$B$505","v":"Deteção, alerta e alarme de incêndio"},{"$f":"G172","v":""}]
[null,null,null,null,"-",{"$f":"Tabelas!$B$513","v":"Simulacros de evacuação "},{"$f":"G173","v":""}]
[]
[null,null,{"$f":"Tabelas!A521","v":"4."},null,{"$f":"Tabelas!B521","v":"Combate ao incêndio"},null,{"$f":"G175","v":""}]
[null,null,null,null,{"$f":"IF(OR(G39=\"\",G39=\"-\"),\"-\",F39)","v":"-"},{"$f":"Tabelas!$B$522","v":"Acessibilidade e meios de intervenção não automáticos"},{"$f":"G176","v":""}]
[null,null,null,null,{"$f":"IF(OR(G40=\"\",G40=\"-\"),\"-\",F40)","v":"-"},{"$f":"Tabelas!$B$566","v":"Meios de extinção automáticos"},{"$f":"G188","v":""}]
[null,null,null,null,{"$f":"IF(OR(G41=\"\",G41=\"-\"),\"-\",F41)","v":"-"},{"$f":"Tabelas!$B$575","v":"Equipas de segurança"},{"$f":"G189","v":""}]
[]
[null,null,null,null,{"$f":"Tabelas!B54","v":"Índice de segurança ao incêndio "},null,{"$f":"IF(OR(G12=\"\",G16=\"\",G26=\"\",G38=\"\"),0,AVERAGE(G12,G16,G26,G38))","v":0}]
[]
[]
[]
[]
[]
[]
[]
[]
[]
[]
[]
[]
[]
[]
[]
[]
[]
[]
[]
[]
[]
[null,null,null,null,{"$f":"Tabelas!$B$4","v":"ARICA:2019"},{"$f":"$F$3","v":0},{"$f":"$G$3","v":"0"}]
[null,null,null,null,{"$f":"Tabelas!$B$72","v":"CONDIÇÕES DE PROJETO"},null,null,null,null,null,{"$f":"IF(AND(K68=\"\",K79=\"\"),Tabelas!B$10,Tabelas!B$9)","v":"Incompleto"},null,{"$f":"Tabelas!B$8","v":"Avisos"},null,{"$f":"Tabelas!$B$6","v":"Comentários (não não visíveis no relatório)"}]
[]
[null,null,{"$f":"Tabelas!A109","v":"1."},null,{"$f":"Tabelas!B109","v":"Início do incêndio"},null,{"$f":"IF(OR(G69=\"\",G70=\"\"),\"\",AVERAGE(G69,G70))","v":""},null,null," ",{"$f":"IF(G68=\"\",Tabelas!B$12,\"\")","v":"Sem dados"}]
[null,null,{"$f":"Tabelas!A111","v":"1.1"},null,{"$f":"Tabelas!B111","v":"Anomalias que podem provocar um incêndio"},null,{"$f":"IF(F69=\"\",\"\",VLOOKUP(F69,Tabelas!B112:C115,2,FALSE))","v":""},null,null," ",{"$f":"IF(F69=\"\",Tabelas!B$12,\"\")","v":"Sem dados"}]
[null,null,{"$f":"Tabelas!A117","v":"1.2"},null,{"$f":"Tabelas!B117","v":"Instalações técnicas"},null,{"$f":"IF(J78=0,\"-\",IF(J78=\"\",\"\",MIN(G71:G77)-(0.0213*(SUM(G71:G77)-MIN(G71:G77)))))","v":""},null,null," ",{"$f":"IF(G70=\"\",Tabelas!B$12,\"\")","v":"Sem dados"}]
[null,null,{"$f":"Tabelas!A119","v":"1.2.1"},null,{"$f":"Tabelas!B119","v":"Instalações elétricas"},null,{"$f":"IF(F71=\"\",\"\",VLOOKUP(F71,Tabelas!B120:C122,2,FALSE))","v":""},null,null," ",{"$f":"IF(F71=\"\",Tabelas!B$12,\"\")","v":"Sem dados"}]
[null,null,{"$f":"Tabelas!A124","v":"1.2.2"},null,{"$f":"Tabelas!B124","v":"Instalações de gás"},null,{"$f":"IF(F72=\"\",\"\",VLOOKUP(F72,Tabelas!B125:C127,2,FALSE))","v":""},null,null," ",{"$f":"IF(F72=\"\",Tabelas!B$12,\"\")","v":"Sem dados"}]
[null,null,{"$f":"Tabelas!A129","v":"1.2.3"},null,{"$f":"Tabelas!B129","v":"Instalações de aquecimento – Centrais térmicas"},null,{"$f":"IF(F73=\"\",\"\",VLOOKUP(F73,Tabelas!B130:C132,2,FALSE))","v":""},null,null," ",{"$f":"IF(F73=\"\",Tabelas!B$12,\"\")","v":"Sem dados"}]
[null,null,{"$f":"Tabelas!A134","v":"1.2.4"},null,{"$f":"Tabelas!B134","v":"Instalações de aquecimento – Aparelhagem"},null,{"$f":"IF(F74=\"\",\"\",VLOOKUP(F74,Tabelas!B135:C137,2,FALSE))","v":""},null,null," ",{"$f":"IF(F74=\"\",Tabelas!B$12,\"\")","v":"Sem dados"}]
[null,null,{"$f":"Tabelas!A139","v":"1.2.5"},null,{"$f":"Tabelas!B139","v":"Instalações de confeção e conservação de alimentos"},null,{"$f":"IF(F75=\"\",\"\",VLOOKUP(F75,Tabelas!B140:C142,2,FALSE))","v":""},null,null," ",{"$f":"IF(F75=\"\",Tabelas!B$12,\"\")","v":"Sem dados"}]
[null,null,{"$f":"Tabelas!A144","v":"1.2.6"},null,{"$f":"Tabelas!B144","v":"Instalações de evacuação de efluentes de combustão"},null,{"$f":"IF(F76=\"\",\"\",VLOOKUP(F76,Tabelas!B140:C142,2,FALSE))","v":""},null,null," ",{"$f":"IF(F76=\"\",Tabelas!B$12,\"\")","v":"Sem dados"}]
[null,null,{"$f":"Tabelas!A149","v":"1.2.7"},null,{"$f":"Tabelas!B149","v":"Instalações de ventilação e condicionamento de ar"},null,{"$f":"IF(F77=\"\",\"\",VLOOKUP(F77,Tabelas!B150:C152,2,FALSE))","v":""},null,null," ",{"$f":"IF(F77=\"\",Tabelas!B$12,\"\")","v":"Sem dados"}]
[null,null,null,null,null,null,null,null,null,{"$f":"IF(OR(G71=\"\",G72=\"\",G73=\"\",G74=\"\",G75=\"\",G76=\"\",G77=\"\"),\"\",7-COUNTIF(G71:G77,Tabelas!C122))","v":""}]
[null,null,{"$f":"Tabelas!A154","v":"2."},null,{"$f":"Tabelas!B154","v":"Desenvolvimento e propagação do incêndio"},null,{"$f":"IF(OR(G80=\"\",G83=\"\",G86=\"\",G89=\"\",G90=\"\",G91=\"\",G92=\"\",G95=\"\"),\"\",IF(AND(G80=\"-\",G83=\"-\",G86=\"-\",G89=\"-\",G90=\"-\",G91=\"-\",G92=\"-\",G95=\"-\"),\"-\",AVERAGE(G80,G83,G86,G89,G90,G91,G92,G95)))","v":""},null,null," ",{"$f":"IF(G79=\"\",Tabelas!B$12,\"\")","v":"Sem dados"}]
[null,null,{"$f":"Tabelas!A156","v":"2.1"},null,{"$f":"Tabelas!B156","v":"Materiais de revestimento do local de risco"},null,{"$f":"IF(OR(G81=\"\",G82=\"\"),\"\",IF(AND(G81=\"-\",G82=\"-\"),\"-\",IF(AND(OR(F81=Tabelas!B170,F82=Tabelas!B183),Capa!F16<>Tabelas!C47), \"\", MIN(G81,G82))))","v":""},null,null," ",{"$f":"IF(G80=\"\",Tabelas!B$12,\"\")","v":"Sem dados"},null,{"$f":"IF(OR(F81=Tabelas!B162,F82=Tabelas!B170), Tabelas!B173,\"\")","v":""}]
[null,null,{"$f":"Tabelas!A158","v":"2.1.1"},null,{"$f":"Tabelas!B158","v":"Classe de reação ao fogo dos revestimentos interiores das paredes e tetos"},null,{"$f":"IF(F81=\"\",\"\",VLOOKUP(F81,Tabelas!B159:C164,2,FALSE))","v":""},null,null,null,{"$f":"IF(F81=\"\",Tabelas!B$12,\"\")","v":"Sem dados"}]
[null,null,{"$f":"Tabelas!A166","v":"2.1.2"},null,{"$f":"Tabelas!B166","v":"Classe de reação ao fogo dos revestimentos interiores dos pavimentos"},null,{"$f":"IF(F82=\"\",\"\",VLOOKUP(F82,Tabelas!B167:C172,2,FALSE))","v":""},null,null,null,{"$f":"IF(F82=\"\",Tabelas!B$12,\"\")","v":"Sem dados"}]
[null,null,{"$f":"Tabelas!A177","v":"2.2"},null,{"$f":"Tabelas!B177","v":"Materiais de revestimento das vias de evacuação"},null,{"$f":"IF(OR(G84=\"\",G85=\"\"),\"\",IF(AND(G84=\"-\",G85=\"-\"),\"-\",IF(AND(OR(F84=Tabelas!B183,F85=Tabelas!B191),Capa!F16<>Tabelas!C47), \"\", MIN(G84,G85))))","v":""},null,null," ",{"$f":"IF(G83=\"\",Tabelas!B$12,\"\")","v":"Sem dados"},null,{"$f":"IF(OR(F84=Tabelas!B183,F85=Tabelas!B191), Tabelas!B194,\"\")","v":""}]
[null,null,{"$f":"Tabelas!A179","v":"2.2.1"},null,{"$f":"Tabelas!B179","v":"Classe de reação ao fogo dos revestimentos interiores das paredes e tetos"},null,{"$f":"IF(F84=\"\",\"\",VLOOKUP(F84,Tabelas!B180:C185,2,FALSE))","v":""},null,null," ",{"$f":"IF(F84=\"\",Tabelas!B$12,\"\")","v":"Sem dados"}]
[null,null,{"$f":"Tabelas!A187","v":"2.2.2"},null,{"$f":"Tabelas!B187","v":"Classe de reação ao fogo dos revestimentos interiores dos pavimentos"},null,{"$f":"IF(F85=\"\",\"\",VLOOKUP(F85,Tabelas!B188:C193,2,FALSE))","v":""},null,null," ",{"$f":"IF(F85=\"\",Tabelas!B$12,\"\")","v":"Sem dados"}]
[null,null,{"$f":"Tabelas!A198","v":"2.3"},null,{"$f":"Tabelas!B198","v":"Isolamento e proteção do local de risco"},null,{"$f":"IF(F86=\"\",\"\",IF(F86=Tabelas!B202,J87,IF(AND(F86=Tabelas!B201, Capa!F16<>4),\"\",VLOOKUP(F86,Tabelas!B199:C203,2,FALSE))))","v":""},null,null,null,{"$f":"IF(F86=\"\",Tabelas!B$12,\"\")","v":"Sem dados"},null,{"$f":"IF(F86=Tabelas!B201,Tabelas!B217,\"\")","v":""}]
[null,null,null,null,{"$f":"Tabelas!B214","v":"Escalão de tempo exigido na regulamentação"},null,null,null,null,{"$f":"IF(OR(F87=\"\",F88=\"\"),\"\",IF(F87<=F88,\"\",1/(1+(0.0087*(F87-F88)/F87+0.05/F87)*100)))","v":""},{"$f":"IF(F87=\"\",Tabelas!B$12,\"\")","v":"Sem dados"}]
[null,null,null,null,{"$f":"Tabelas!B215","v":"Escalão de tempo do elemento mais condicionante"},null,null,null,null,null,{"$f":"IF(F88=\"\",Tabelas!B$12,\"\")","v":"Sem dados"},null,{"$f":"IF(OR(F88=\"\",F87=\"\"),\"\",IF(F87<=F88,Tabelas!B$216,\"\"))","v":""}]
[null,null,{"$f":"Tabelas!A221","v":"2.4"},null,{"$f":"Tabelas!B221","v":"Compartimentação geral corta-fogo da área de intervenção"},null,{"$f":"IF(F89=\"\",\"\",VLOOKUP(F89,Tabelas!B222:C224,2,FALSE))","v":""},null,null," ",{"$f":"IF(F89=\"\",Tabelas!B$12,\"\")","v":"Sem dados"}]
[null,null,{"$f":"Tabelas!A226","v":"2.5"},null,{"$f":"Tabelas!B226","v":"Isolamento e proteção entre utilizações-tipo distintas"},null,{"$f":"IF(F90=\"\",\"\",IF(AND(F90=Tabelas!B229,Capa!F16<>Tabelas!$C$47),\"\",VLOOKUP(F90,Tabelas!B227:C231,2,FALSE)))","v":""},null,null,null,{"$f":"IF(F90=\"\",Tabelas!B$12,\"\")","v":"Sem dados"},null,{"$f":"IF(OR(F90=Tabelas!B229), Tabelas!B232,\"\")","v":""}]
[null,null,{"$f":"Tabelas!A236","v":"2.6"},null,{"$f":"Tabelas!B236","v":"Equipas de segurança"},null,{"$f":"IF(F91=\"\",\"\",VLOOKUP(F91,Tabelas!B244:C247,2,FALSE))","v":""},null,null,null,{"$f":"IF(F91=\"\",Tabelas!B$12,\"\")","v":"Sem dados"}]
[null,null,{"$f":"Tabelas!A249","v":"2.7"},null,{"$f":"Tabelas!B249","v":"Deteção, alerta e alarme de incêndio"},null,{"$f":"IF(F92=\"\",\"\",IF(F92=Tabelas!B257,J94,VLOOKUP(F92,Tabelas!B250:C258,2,FALSE)))","v":""},null,null,null,{"$f":"IF(F92=\"\",Tabelas!B$12,\"\")","v":"Sem dados"},null,{"$f":"IF(OR(F91=\"\",F91=Tabelas!B247,F91=Tabelas!B246),Tabelas!B263,\"\")","v":"Apenas se considera que a UA dispõe um sistema de deteção de incêndio, se estiver prevista a constituição de uma equipa de segurança ou a celebração de um contrato de prestação de serviços para manutenção do sistema"}]
[null,null,null,null,{"$f":"Tabelas!B259","v":"Número de locais onde a regulamentação exige sistema de deteção de incêndio"},null,null,null,null,{"$f":"IF(OR(F93=\"\",F94=\"\"),\"\",(F94/F93)/2+0.5)","v":""},{"$f":"IF(F93=\"\",Tabelas!B$12,\"\")","v":"Sem dados"}]
[null,null,null,null,{"$f":"Tabelas!B260","v":"Número de locais onde existe sistema de deteção de incêndio"},null,null,null,null,{"$f":"IF(J93=\"\",\"\",IF(J93<Tabelas!C261,Tabelas!C261,IF(J93>Tabelas!C262,Tabelas!C262,J93)))","v":""},{"$f":"IF(F94=\"\",Tabelas!B$12,\"\")","v":"Sem dados"},null,{"$f":"IF(J94=\"\",\"\",IF(J93>J94,Tabelas!B$13,IF(J93<J94,Tabelas!B$14,\"\")))","v":""}]
[null,null,{"$f":"Tabelas!A266","v":"2.8"},null,{"$f":"Tabelas!B266","v":"Propagação pelo exterior"},null,{"$f":"IF(OR(G96=\"\",G97=\"\"),\"\",IF(AND(G96=\"-\",G97=\"-\"),\"-\",AVERAGE(G96,G97)))","v":""},null,null,null,{"$f":"IF(G95=\"\",Tabelas!B$12,\"\")","v":"Sem dados"}]
[null,null,{"$f":"Tabelas!A268","v":"2.8.1"},null,{"$f":"Tabelas!B268","v":"Materiais de revestimento exteriores"},null,{"$f":"IF(F96=\"\",\"\",IF(OR(F96=Tabelas!B269,F96=Tabelas!B270,F96=Tabelas!B272, AND(F96=Tabelas!B271,Capa!F16=Tabelas!C47)),VLOOKUP(F96,Tabelas!B269:C272,2,FALSE),\"\"))","v":""},null,null,null,{"$f":"IF(F96=\"\",Tabelas!B$12,\"\")","v":"Sem dados"},null,{"$f":"IF(F96=Tabelas!B271,Tabelas!B277,\"\")","v":""}]
[null,null,{"$f":"Tabelas!A281","v":"2.8.2"},null,{"$f":"Tabelas!B281","v":"Afastamento de vãos das fachadas"},null,{"$f":"IF(F97=\"\",\"\",IF(F97=Tabelas!B283,J99,VLOOKUP(F97,Tabelas!B282:C285,2,FALSE)))","v":""},null,null,null,{"$f":"IF(F97=\"\",Tabelas!B$12,\"\")","v":"Sem dados"}]
[null,null,null,null,{"$f":"Tabelas!B287","v":"Afastamento regulamentar entre vãos\nna mesma prumada (m)"},null,null,null,null,{"$f":"IF(OR(F99=\"\",F98=\"\"),\"\",F99/F98)","v":""},{"$f":"IF(F98=\"\",Tabelas!B$12,\"\")","v":"Sem dados"}]
[null,null,null,null,{"$f":"Tabelas!B288","v":"Menor afastamento existente entre vãos\nna mesma prumada (m)"},null,null,null,null,{"$f":"IF(J98=\"\",\"\",IF(J98<Tabelas!C289,Tabelas!C289,IF(J98>Tabelas!C290,Tabelas!C290,J98)))","v":""},{"$f":"IF(F99=\"\",Tabelas!B$12,\"\")","v":"Sem dados"},null,{"$f":"IF(J99=\"\",\"\",IF(J98>J99,Tabelas!B$13,IF(J98<J99,Tabelas!B$14,\"\")))","v":""}]
[null,null,null,null,null,null,null,null,null," "]
[null,null,null,null,null,null,null,null,null," "]
[null,null,null,null,{"$f":"Tabelas!$B$4","v":"ARICA:2019"},{"$f":"$F$3","v":0},{"$f":"$G$3","v":"0"},null,null," "]
[null,null,null,null,{"$f":"Tabelas!$B$72","v":"CONDIÇÕES DE PROJETO"},null,null,null,null," ",{"$f":"IF(K105=\"\",Tabelas!B$10,Tabelas!B$9)","v":"Incompleto"},null,{"$f":"Tabelas!B$8","v":"Avisos"},null,{"$f":"Tabelas!$B$6","v":"Comentários (não não visíveis no relatório)"}]
[null,null,null,null,null,null,null,null,null,{"$f":"IF(J105=\"\",\"\",IF(J105=\"-\",\"-\",IF(J105<Tabelas!$C$295,Tabelas!$C$295,IF(J105>Tabelas!$C$296,Tabelas!$C$296,J105))))","v":""}]
[null,null,{"$f":"Tabelas!$A$294","v":"3."},null,{"$f":"Tabelas!$B$294","v":"Evacuação em caso de incêndio"},null,{"$f":"IF(J104=\"\",\"\",IF(J104=\"-\",\"-\",IF(OR(J104>=0.75,AND(J104<0.75,Capa!F16=Tabelas!C47)),J104,\"\")))","v":""},null,null,{"$f":"IF(OR(G106=\"\",G114=\"\",G142=\"\",G159=\"\",G162=\"\",G165=\"\",G168=\"\",G171=\"\",G172=\"\",G173=\"\"),\"\",IF(AND(G106=\"-\",G114=\"-\",G142=\"-\",G159=\"-\",G162=\"-\",G165=\"-\",G168=\"-\",G171=\"-\",G172=\"-\",G173=\"-\"),\"-\",IF(AND(G159=\"-\",G162=\"-\",G165=\"-\",G168=\"-\",G171=\"-\",G172=\"-\",G173=\"-\"),AVERAGE(G106,G114,G142),AVERAGE(G106,G114,G142,AVERAGE(G159,G162,G165,G168,G171,G172,G173)))))","v":""},{"$f":"IF(G105=\"\",Tabelas!B$12,\"\")","v":"Sem dados"},null,{"$f":"IF(J104<0.75,Tabelas!B297,IF(G105=\"\",\"\",IF(J105>G105,Tabelas!B$13,IF(J105<G105,Tabelas!B$14,\"\"))))","v":""}]
[null,null,"3.1",null,{"$f":"Tabelas!$B$301","v":"Saídas do local de risco"},null,{"$f":"IF(J106=\"\",\"\",IF(J106=\"-\",\"-\",IF(J106<Tabelas!$C$302,Tabelas!$C$302,IF(J106>Tabelas!$C$303,Tabelas!$C$303,J106))))","v":""},null,null,{"$f":"IF(G107=\"-\",\"-\",IF(OR(G107=\"\",G110=\"\"),\"\",G107*G110))","v":""},{"$f":"IF(G106=\"\",Tabelas!B$12,\"\")","v":"Sem dados"},null,{"$f":"IF(G106=\"\",\"\",IF(J106>G106,Tabelas!B$13,IF(J106<G106,Tabelas!B$14,\"\")))","v":""}]
[null,null,{"$f":"Tabelas!$A$305","v":"3.1.1"},null,{"$f":"Tabelas!$B$305","v":"Número de saídas do local de risco"},null,{"$f":"IF(F107=\"\",\"\",IF(AND(F107=Tabelas!B309,Capa!F16<>Tabelas!C47),\"\",IF(F107=Tabelas!B306,J109,VLOOKUP(F107,Tabelas!$B$307:$C$310,2,FALSE))))","v":""},null,null,null,{"$f":"IF(F107=\"\",Tabelas!B$12,\"\")","v":"Sem dados"},null,{"$f":"IF(F107=Tabelas!B309,Tabelas!B317,\"\")","v":""}]
[null,null,null,null,{"$f":"Tabelas!B311","v":"Número de saídas do LR exigidas na regulamentação"},null,null,null,null,{"$f":"IF(OR(F108=\"\",F109=\"\"),\"\",IF(F108>=F109,\"\",1+(F109-F108)*0.15))","v":""},{"$f":"IF(F108=\"\",Tabelas!B$12,\"\")","v":"Sem dados"}]
[null,null,null,null,{"$f":"Tabelas!B312","v":"Número de saídas do LR"},null,null,null,null,{"$f":"IF(J108=\"\",\"\",IF(J108<Tabelas!$C$313,Tabelas!$C$313,IF(J108>Tabelas!$C$314,Tabelas!$C$314,J108)))","v":""},{"$f":"IF(F109=\"\",Tabelas!B$12,\"\")","v":"Sem dados"}]
[null,null,{"$f":"Tabelas!$A$319","v":"3.1.2"},null,{"$f":"Tabelas!$B$319","v":"Largura total das saídas do local de risco"},null,{"$f":"IF(J110=\"\",\"\",IF(J110<Tabelas!$C$323,Tabelas!$C$323,IF(J110>Tabelas!$C$324,Tabelas!$C$324,J110)))","v":""},null,null,{"$f":"IF(OR(F112=\"\",F113=\"\"),\"\",IF(AND(F112<J113,Capa!F16<>4),\"\",F112/F113))","v":""},{"$f":"IF(G110=\"\",Tabelas!B$12,\"\")","v":"Sem dados"},null,{"$f":"IF(G110=\"\",\"\",IF(J110>G110,Tabelas!B$13,IF(J110<G110,Tabelas!B$14,\"\")))","v":""}]
[null,null,null,null,{"$f":"Tabelas!B320","v":"Efetivo do local de risco"},null,null,null,null,null,{"$f":"IF(F111=\"\",Tabelas!B$12,\"\")","v":"Sem dados"}]
[null,null,null,null,{"$f":"Tabelas!B321","v":"Somatório da largura das saídas (m)"},null,null,null,null,null,{"$f":"IF(F112=\"\",Tabelas!B$12,\"\")","v":"Sem dados"},null,{"$f":"IF(F112<J113,Tabelas!$B$326,IF(G110<J110,Tabelas!$B$13,\"\"))","v":""}]
[null,null,null,null,{"$f":"Tabelas!B322","v":"Largura de ref. do somatório das larguras das saídas (m)"},{"$f":"IF(F111=\"\",\"\",IF(F111<Tabelas!$B$340,Tabelas!$C$340,IF(F111<Tabelas!$B$341,Tabelas!$C$341,IF(F111<Tabelas!$B$342,Tabelas!$C$342,IF(F111<Tabelas!$B$343,Tabelas!$C$343,IF(F111<Tabelas!$B$344,Tabelas!$C$344,IF(F111<Tabelas!$B$345,Tabelas!$C$345,IF(F111<Tabelas!$B$346,Tabelas!$C$346,IF(F111<Tabelas!$B$347,Tabelas!$C$347,IF(F111<Tabelas!$B$348,Tabelas!$C$348,IF(F111<Tabelas!$B$349,Tabelas!$C$349,Tabelas!$C$350)))))))))))","v":""},null,null,null,{"$f":"IF(F111=\"\",\"\",IF(F111<Tabelas!$B$340,Tabelas!$D$340,IF(F111<Tabelas!$B$341,Tabelas!$D$341,IF(F111<Tabelas!$B$342,Tabelas!$D$342,IF(F111<Tabelas!$B$343,Tabelas!$D$343,IF(F111<Tabelas!$B$344,Tabelas!$D$344,IF(F111<Tabelas!$B$345,Tabelas!$D$345,IF(F111<Tabelas!$B$346,Tabelas!$D$346,IF(F111<Tabelas!$B$347,Tabelas!$D$347,IF(F111<Tabelas!$B$348,Tabelas!$D$348,IF(F111<Tabelas!$B$349,Tabelas!$D$349,IF(F111<Tabelas!$B$350,Tabelas!$D$350,Tabelas!$D$351))))))))))))","v":""},{"$f":"IF(F113=\"\",Tabelas!B$12,\"\")","v":"Sem dados"}]
[null,null,{"$f":"Tabelas!A330","v":"3.2"},null,{"$f":"Tabelas!B330","v":"Dimensões dos locais e das vias horizontais de evacuação"},null,{"$f":"IF(J114=\"\",\"\",IF(J114=\"-\",\"-\",IF(J114<Tabelas!$C$331,Tabelas!$C$331,IF(J114>Tabelas!$C$332,Tabelas!$C$332,J114))))","v":""},null,null,{"$f":"IF(OR(G115=\"\",G132=\"\"),\"\",IF(OR(G115=\"-\",G132=\"-\"),\"-\",AVERAGE(G115,G132)))","v":""},{"$f":"IF(G115=\"\",Tabelas!B$12,\"\")","v":"Sem dados"},null,{"$f":"IF(G114=\"\",\"\",IF(J114>G114,Tabelas!B$13,IF(J114<G114,Tabelas!B$14,\"\")))","v":""}]
[null,null,{"$f":"Tabelas!A334","v":"3.2.1"},null,{"$f":"Tabelas!B334","v":"Larguras dos vãos e das vias horizontais de evacuação"},null,{"$f":"IF(J115=\"\",\"\",IF(J115=\"-\",\"-\",IF(J115<Tabelas!$C$335,Tabelas!$C$335,IF(J115>Tabelas!$D$336,Tabelas!$D$336,J115))))","v":""},null,null,{"$f":"IF(OR(G118=\"\",G122=\"\",G123=\"\",G128=\"\",G129=\"\"),\"\",IF(AND(G118=\"-\",G122=\"-\",G123=\"-\",G128=\"-\",G129=\"-\"),\"-\",AVERAGE(G118,G122,G123,G128,G129)))","v":""},{"$f":"IF(G115=\"\",Tabelas!B$12,\"\")","v":"Sem dados"},null,{"$f":"IF(G115=\"\",\"\",IF(J115>G115,Tabelas!B$13,IF(J115<G115,Tabelas!B$14,\"\")))","v":""}]
[null,null,null,null,{"$f":"Tabelas!$B$374","v":"Local de risco"},null,null,null,null,null,{"$f":"IF(F116=\"\",Tabelas!B$12,\"\")","v":"Sem dados"}]
[null,null,null,null,{"$f":"Tabelas!$B$375","v":"Efetivo do local de risco que sai pelo vão em análise"},null,null,null,null,{"$f":"IF(OR(J118<1,J122<1,J123<1,J128<1,J129<1,J148<1,J149<1),Tabelas!C336,Tabelas!D336)","v":3},{"$f":"IF(F117=\"\",Tabelas!B$12,\"\")","v":"Sem dados"}]
[null,null,null,null,{"$f":"Tabelas!$B$376","v":"Largura medida do vão em análise (m)"},null,{"$f":"IF(J118=\"\",\"\",IF(J118=\"-\",\"-\",IF(J118>J117,J117,J118)))","v":""},null,null,{"$f":"IF(F116=\"\",\"\",IF(F116=Tabelas!B$373,\"-\",IF(OR(F118=\"\",F119=\"\"),\"\",IF(OR(F118>=J119,Capa!$F$16=4),F118/F119,\"\"))))","v":""},{"$f":"IF(F118=\"\",Tabelas!B$12,\"\")","v":"Sem dados"},null,{"$f":"IF(F118<J119,Tabelas!$B$378,IF(G118<J118,Tabelas!$B$13,\"\"))","v":""}]
[null,null,null,null,{"$f":"Tabelas!$B$377","v":"Largura de referência do vão em análise (m)"},{"$f":"IF(F117=\"\",\"\",IF(F117<Tabelas!$B$340,Tabelas!$C$340,IF(F117<Tabelas!$B$341,Tabelas!$C$341,IF(F117<Tabelas!$B$342,Tabelas!$C$342,IF(F117<Tabelas!$B$343,Tabelas!$C$343,IF(F117<Tabelas!$B$344,Tabelas!$C$344,IF(F117<Tabelas!$B$345,Tabelas!$C$345,IF(F117<Tabelas!$B$346,Tabelas!$C$346,IF(F117<Tabelas!$B$347,Tabelas!$C$347,IF(F117<Tabelas!$B$348,Tabelas!$C$348,IF(F117<Tabelas!$B$349,Tabelas!$C$349,Tabelas!$C$350)))))))))))","v":""},null,null,null,{"$f":"IF(F117=\"\",\"\",IF(F117<Tabelas!$B$340,Tabelas!$D$340,IF(F117<Tabelas!$B$341,Tabelas!$D$341,IF(F117<Tabelas!$B$342,Tabelas!$D$342,IF(F117<Tabelas!$B$343,Tabelas!$D$343,IF(F117<Tabelas!$B$344,Tabelas!$D$344,IF(F117<Tabelas!$B$345,Tabelas!$D$345,IF(F117<Tabelas!$B$346,Tabelas!$D$346,IF(F117<Tabelas!$B$347,Tabelas!$D$347,IF(F117<Tabelas!$B$348,Tabelas!$D$348,IF(F117<Tabelas!$B$349,Tabelas!$D$349,IF(F117<Tabelas!$B$350,Tabelas!$D$350,Tabelas!$D$351))))))))))))","v":""},{"$f":"IF(F119=\"\",Tabelas!B$12,\"\")","v":"Sem dados"}]
[null,null,null,null,{"$f":"Tabelas!$B$381","v":"Via horizontal no piso do local de risco"},null,null,null,null,null,{"$f":"IF(F120=\"\",Tabelas!B$12,\"\")","v":"Sem dados"}]
[null,null,null,null,{"$f":"Tabelas!B382","v":"Efetivo da via horizontal"},null,null,null,null,null,{"$f":"IF(F121=\"\",Tabelas!B$12,\"\")","v":"Sem dados"}]
[null,null,null,null,{"$f":"Tabelas!$B$383","v":"Largura medida da via horizontal (m)"},null,{"$f":"IF(J122=\"\",\"\",IF(J122=\"-\",\"-\",IF(J122>J117,J117,J122)))","v":""},null,null,{"$f":"IF(F120=\"\",\"\",IF(F120=Tabelas!B$373,\"-\",IF(OR(F122=\"\",F124=\"\"),\"\",IF(OR(F122>=J124,Capa!$F$16=4),F122/F124,\"\"))))","v":""},{"$f":"IF(F122=\"\",Tabelas!B$12,\"\")","v":"Sem dados"},null,{"$f":"IF(F122<J124,Tabelas!$B$378,IF(G122<J122,Tabelas!$B$13,\"\"))","v":""}]
[null,null,null,null,{"$f":"Tabelas!$B$385","v":"Largura medida do vão (m)"},null,{"$f":"IF(J123=\"\",\"\",IF(J123=\"-\",\"-\",IF(J123>J117,J117,J123)))","v":""},null,null,{"$f":"IF(F120=\"\",\"\",IF(F120=Tabelas!B$373,\"-\",IF(OR(F123=\"\",F125=\"\"),\"\",IF(OR(F123>=J125,Capa!$F$16=4),F123/F125,\"\"))))","v":""},{"$f":"IF(F123=\"\",Tabelas!B$12,\"\")","v":"Sem dados"},null,{"$f":"IF(F123<J125,Tabelas!$B$378,IF(G123<J123,Tabelas!$B$13,\"\"))","v":""}]
[null,null,null,null,{"$f":"Tabelas!$B$384","v":"Largura de referência da via horizontal (m)"},{"$f":"IF(F121=\"\",\"\",IF(F121<Tabelas!$B$340,Tabelas!$C$340,IF(F121<Tabelas!$B$341,Tabelas!$C$341,IF(F121<Tabelas!$B$342,Tabelas!$C$342,IF(F121<Tabelas!$B$343,Tabelas!$C$343,IF(F121<Tabelas!$B$344,Tabelas!$C$344,IF(F121<Tabelas!$B$345,Tabelas!$C$345,IF(F121<Tabelas!$B$346,Tabelas!$C$346,IF(F121<Tabelas!$B$347,Tabelas!$C$347,IF(F121<Tabelas!$B$348,Tabelas!$C$348,IF(F121<Tabelas!$B$349,Tabelas!$C$349,IF(F121<Tabelas!$B$350,Tabelas!$C$350,Tabelas!$C$351))))))))))))","v":""},null,null,null,{"$f":"IF(F121=\"\",\"\",IF(F121<Tabelas!$B$340,Tabelas!$D$340,IF(F121<Tabelas!$B$341,Tabelas!$D$341,IF(F121<Tabelas!$B$342,Tabelas!$D$342,IF(F121<Tabelas!$B$343,Tabelas!$D$343,IF(F121<Tabelas!$B$344,Tabelas!$D$344,IF(F121<Tabelas!$B$345,Tabelas!$D$345,IF(F121<Tabelas!$B$346,Tabelas!$D$346,IF(F121<Tabelas!$B$347,Tabelas!$D$347,IF(F121<Tabelas!$B$348,Tabelas!$D$348,IF(F121<Tabelas!$B$349,Tabelas!$D$349,IF(F121<Tabelas!$B$350,Tabelas!$D$350,Tabelas!$D$351))))))))))))","v":""},{"$f":"IF(F124=\"\",Tabelas!B$12,\"\")","v":"Sem dados"}]
[null,null,null,null,{"$f":"Tabelas!$B$386","v":"Largura de referência do vão (m)"},{"$f":"F124","v":""},null,null,null,{"$f":"J124","v":""},{"$f":"IF(F125=\"\",Tabelas!B$12,\"\")","v":"Sem dados"}]
[null,null,null,null,{"$f":"Tabelas!$B$387","v":"Via horizontal até à saída para o exterior"},null,null,null,null,null,{"$f":"IF(F126=\"\",Tabelas!B$12,\"\")","v":"Sem dados"}]
[null,null,null,null,{"$f":"Tabelas!B388","v":"Efetivo da via horizontal"},null,null,null,null,null,{"$f":"IF(F127=\"\",Tabelas!B$12,\"\")","v":"Sem dados"}]
[null,null,null,null,{"$f":"Tabelas!B389","v":"Largura medida da via horizontal (m)"},null,{"$f":"IF(J128=\"\",\"\",IF(J128=\"-\",\"-\",IF(J128>J117,J117,J128)))","v":""},null,null,{"$f":"IF(F126=\"\",\"\",IF(F126=Tabelas!B$373,\"-\",IF(AND(F149=F150,F127<F148),\"\",IF(OR(F128=\"\",F130=\"\"),\"\",IF(OR(F128>=J130,Capa!$F$16=4),F128/F130,\"\")))))","v":""},{"$f":"IF(F128=\"\",Tabelas!B$12,\"\")","v":"Sem dados"},null,{"$f":"IF(F128<J130,Tabelas!$B$378,IF(G128<J128,Tabelas!$B$13,\"\"))","v":""}]
[null,null,null,null,{"$f":"Tabelas!$B$391","v":"Largura medida do vão de saída para o exterior (m)"},null,{"$f":"IF(J129=\"\",\"\",IF(J129=\"-\",\"-\",IF(J129>J117,J117,J129)))","v":""},null,null,{"$f":"IF(F126=\"\",\"\",IF(F126=Tabelas!B$373,\"-\",IF(AND(F149=F150,F127<F148),\"\",IF(OR(F129=\"\",F131=\"\"),\"\",IF(OR(F129>=J131,Capa!$F$16=4),F129/F131,\"\")))))","v":""},{"$f":"IF(F129=\"\",Tabelas!B$12,\"\")","v":"Sem dados"},null,{"$f":"IF(F129<J131,Tabelas!$B$378,IF(G129<J129,Tabelas!$B$13,\"\"))","v":""}]
[null,null,null,null,{"$f":"Tabelas!B390","v":"Largura de referência da via horizontal (m)"},{"$f":"IF(F127=\"\",\"\",IF(F127<Tabelas!$B$340,Tabelas!$C$340,IF(F127<Tabelas!$B$341,Tabelas!$C$341,IF(F127<Tabelas!$B$342,Tabelas!$C$342,IF(F127<Tabelas!$B$343,Tabelas!$C$343,IF(F127<Tabelas!$B$344,Tabelas!$C$344,IF(F127<Tabelas!$B$345,Tabelas!$C$345,IF(F127<Tabelas!$B$346,Tabelas!$C$346,IF(F127<Tabelas!$B$347,Tabelas!$C$347,IF(F127<Tabelas!$B$348,Tabelas!$C$348,IF(F127<Tabelas!$B$349,Tabelas!$C$349,IF(F127<Tabelas!$B$350,Tabelas!$C$350,Tabelas!$C$351))))))))))))","v":""},null,null,null,{"$f":"IF(F127=\"\",\"\",IF(F127<Tabelas!$B$340,Tabelas!$D$340,IF(F127<Tabelas!$B$341,Tabelas!$D$341,IF(F127<Tabelas!$B$342,Tabelas!$D$342,IF(F127<Tabelas!$B$343,Tabelas!$D$343,IF(F127<Tabelas!$B$344,Tabelas!$D$344,IF(F127<Tabelas!$B$345,Tabelas!$D$345,IF(F127<Tabelas!$B$346,Tabelas!$D$346,IF(F127<Tabelas!$B$347,Tabelas!$D$347,IF(F127<Tabelas!$B$348,Tabelas!$D$348,IF(F127<Tabelas!$B$349,Tabelas!$D$349,IF(F127<Tabelas!$B$350,Tabelas!$D$350,Tabelas!$D$351))))))))))))","v":""},{"$f":"IF(F130=\"\",Tabelas!B$12,\"\")","v":"Sem dados"}]
[null,null,null,null,{"$f":"Tabelas!$B$392","v":"Largura de referência do vão de saída para o exterior (m)"},{"$f":"F130","v":""},null,null,null,{"$f":"J130","v":""},{"$f":"IF(F131=\"\",Tabelas!B$12,\"\")","v":"Sem dados"}]
[null,null,{"$f":"Tabelas!$A$394","v":"3.2.2"},null,{"$f":"Tabelas!$B$394","v":"Distância a percorrer nas vias horizontais de evacuação"},null,{"$f":"IF(J132=\"\",\"\",IF(J132=\"-\",\"-\",IF(J132<Tabelas!$C$395,Tabelas!$C$395,IF(J132>Tabelas!$C$396,Tabelas!$C$396,J132))))","v":""},null,null,{"$f":"IF(AND(F133=Tabelas!B373,F136=Tabelas!B373,F139=Tabelas!B373),\"-\",IF(OR(J134=\"\",J135=\"\",J137=\"\",J138=\"\",J140=\"\",J141=\"\"),\"\",IF(J134+J137+J140=0,1,(J135+J138+J141)/(J134+J137+J140))))","v":""},{"$f":"IF(G132=\"\",Tabelas!B$12,\"\")","v":"Sem dados"},null,{"$f":"IF(G132=\"\",\"\",IF(J132>G132,Tabelas!B$13,IF(J132<G132,Tabelas!B$14,\"\")))","v":""}]
[null,null,null,null,{"$f":"Tabelas!B397","v":"Percurso no interior do local de risco até à porta"},{"$f":"IF(F116=\"\",\"\",F116)","v":""},null,null,null,null,{"$f":"IF(F133=\"\",Tabelas!B$12,\"\")","v":"Sem dados"}]
[null,null,null,null,{"$f":"Tabelas!$B$398","v":"Distância medida (m)"},null,null,null,null,{"$f":"IF(F133=\"\",\"\",IF(F133=Tabelas!B$373,0,IF(F134=\"\",\"\",F134)))","v":""},{"$f":"IF(F134=\"\",Tabelas!B$12,\"\")","v":"Sem dados"}]
[null,null,null,null,{"$f":"Tabelas!$B$399","v":"Distância regulamentar (m)"},null,null,null,null,{"$f":"IF(F133=\"\",\"\",IF(F133=Tabelas!B$373,0,IF(F135=\"\",\"\",F135)))","v":""},{"$f":"IF(F135=\"\",Tabelas!B$12,\"\")","v":"Sem dados"}]
[null,null,null,null,{"$f":"Tabelas!B400","v":"Percurso na via horizontal no piso do local de risco"},{"$f":"IF(F120=\"\",\"\",F120)","v":""},null,null,null,null,{"$f":"IF(F136=\"\",Tabelas!B$12,\"\")","v":"Sem dados"}]
[null,null,null,null,{"$f":"Tabelas!$B$401","v":"Distância medida (m)"},null,null,null,null,{"$f":"IF(F136=\"\",\"\",IF(F136=Tabelas!B$373,0,IF(F137=\"\",\"\",F137)))","v":""},{"$f":"IF(F137=\"\",Tabelas!B$12,\"\")","v":"Sem dados"}]
[null,null,null,null,{"$f":"Tabelas!$B$402","v":"Distância regulamentar (m)"},null,null,null,null,{"$f":"IF(F136=\"\",\"\",IF(F136=Tabelas!B$373,0,IF(F138=\"\",\"\",F138)))","v":""},{"$f":"IF(F138=\"\",Tabelas!B$12,\"\")","v":"Sem dados"}]
[null,null,null,null,{"$f":"Tabelas!B403","v":"Percurso na via horizontal até à saída para o exterior"},{"$f":"IF(F126=\"\",\"\",F126)","v":""},null,null,null,null,{"$f":"IF(F139=\"\",Tabelas!B$12,\"\")","v":"Sem dados"}]
[null,null,null,null,{"$f":"Tabelas!$B$404","v":"Distância medida (m)"},null,null,null,null,{"$f":"IF(F139=\"\",\"\",IF(F139=Tabelas!B$373,0,IF(F140=\"\",\"\",F140)))","v":""},{"$f":"IF(F140=\"\",Tabelas!B$12,\"\")","v":"Sem dados"}]
[null,null,null,null,{"$f":"Tabelas!$B$405","v":"Distância regulamentar (m)"},null,null,null,null,{"$f":"IF(F139=\"\",\"\",IF(F139=Tabelas!B$373,0,IF(F141=\"\",\"\",F141)))","v":""},{"$f":"IF(F141=\"\",Tabelas!B$12,\"\")","v":"Sem dados"}]
[null,null,{"$f":"Tabelas!A407","v":"3.3"},null,{"$f":"Tabelas!B407","v":"Dimensões das vias verticais de evacuação"},null,{"$f":"IF(J142=\"\",\"\",IF(J142=\"-\",\"-\",IF(J142<Tabelas!$C$408,Tabelas!$C$408,IF(J142>Tabelas!$C$409,Tabelas!$C$409,J142))))","v":""},null,null,{"$f":"IF(F142=Tabelas!B$373,\"-\",IF(OR(G143=\"\",G146=\"\",G152=\"\",G153=\"\"),\"\",G143*AVERAGE(G146,G152)*G153))","v":""},{"$f":"IF(G142=\"\",Tabelas!B$12,\"\")","v":"Sem dados"},null,{"$f":"IF(G142=\"\",\"\",IF(J142>G142,Tabelas!B$13,IF(J142<G142,Tabelas!B$14,\"\")))","v":""}]
[null,null,{"$f":"Tabelas!A411","v":"3.3.1"},null,{"$f":"Tabelas!B411","v":"Número de vias verticais de evacuação"},null,{"$f":"IF(F144=\"\",\"\",IF(F144=F145,1,IF(F144>F145,0.5,IF(F145>F144,IF(F145-F144>2,1.45,1+0.15*(F145-F144))))))","v":""},null,null,null,{"$f":"IF(G143=\"\",Tabelas!B$12,\"\")","v":"Sem dados"}]
[null,null,null,null,{"$f":"Tabelas!B412","v":"Número de vias verticais exigidas na regulamentação"},null,null,null,null,null,{"$f":"IF(F144=\"\",Tabelas!B$12,\"\")","v":"Sem dados"}]
[null,null,null,null,{"$f":"Tabelas!B413","v":"Número de vias verticais que servem o local de risco"},null,null,null,null,null,{"$f":"IF(F145=\"\",Tabelas!B$12,\"\")","v":"Sem dados"}]
[null,null,{"$f":"Tabelas!A415","v":"3.3.2"},null,{"$f":"Tabelas!B415","v":"Larguras das vias verticais de evacuação"},null,{"$f":"IF(OR(G148=\"\",G149=\"\"),\"\",AVERAGE(G148,G149))","v":""},null,null,{"$f":"IF(OR(J118<1,J122<1,J123<1,J128<1,J129<1,J148<1,J149<1),Tabelas!C423,Tabelas!D423)","v":2.5},{"$f":"IF(G146=\"\",Tabelas!B$12,\"\")","v":"Sem dados"}]
[null,null,null,null,{"$f":"Tabelas!B417","v":"Efetivo da via vertical"},null,null,null,null,null,{"$f":"IF(F147=\"\",Tabelas!B$12,\"\")","v":"Sem dados"}]
[null,null,null,null,{"$f":"Tabelas!$B$418","v":"Largura medida da via vertical (m)"},null,{"$f":"IF(J148=\"\",\"\",IF(J148>J146,J146,J148))","v":""},null,null,{"$f":"IF(F142=\"\",\"\",IF(F142=Tabelas!B$373,1,IF(AND(F123=F124,F147<F122),\"\",IF(OR(F148=\"\",F150=\"\"),\"\",IF(OR(F148>=J150,Capa!$F$16=4),F148/F150,\"\")))))","v":""},{"$f":"IF(F148=\"\",Tabelas!B$12,\"\")","v":"Sem dados"},null,{"$f":"IF(F148<J150,Tabelas!$B$378,IF(G148<J148,Tabelas!$B$13,\"\"))","v":""}]
[null,null,null,null,{"$f":"Tabelas!$B$420","v":"Largura medida do vão (m)"},null,{"$f":"IF(J149=\"\",\"\",IF(J149>J146,J146,J149))","v":""},null,null,{"$f":"IF(F142=\"\",\"\",IF(F142=Tabelas!B$373,1,IF(AND(F123=F124,F147<F122),\"\",IF(OR(F149=\"\",F151=\"\"),\"\",IF(OR(F149>=J151,Capa!$F$16=4),F149/F151,\"\")))))","v":""},{"$f":"IF(F149=\"\",Tabelas!B$12,\"\")","v":"Sem dados"},null,{"$f":"IF(F149<J151,Tabelas!$B$378,IF(G149<J149,Tabelas!$B$13,\"\"))","v":""}]
[null,null,null,null,{"$f":"Tabelas!$B$419","v":"Largura de referência da via vertical (m)"},{"$f":"IF(F147=\"\",\"\",IF(F147<Tabelas!$B$354,Tabelas!$C$354,IF(F147<Tabelas!$B$355,Tabelas!$C$355,IF(F147<Tabelas!$B$356,Tabelas!$C$356,IF(F147<Tabelas!$B$357,Tabelas!$C$357,IF(F147<Tabelas!$B$358,Tabelas!$C$358,IF(F147<Tabelas!$B$359,Tabelas!$C$359,IF(F147<Tabelas!$B$360,Tabelas!$C$360,IF(F147<Tabelas!$B$361,Tabelas!$C$361,IF(F147<Tabelas!$B$362,Tabelas!$C$362,IF(F147<Tabelas!$B$363,Tabelas!$C$363,IF(F147<Tabelas!$B$364,Tabelas!$C$364,IF(F147<Tabelas!$B$365,Tabelas!$C$365,IF(F147<Tabelas!$B$366,Tabelas!$C$366,IF(F147<Tabelas!$B$367,Tabelas!$C$367,IF(F147<Tabelas!$B$368,Tabelas!$C$368,Tabelas!$C$369))))))))))))))))","v":""},null,null,null,{"$f":"IF(F147=\"\",\"\",IF(F147<Tabelas!$B$354,Tabelas!$D$354,IF(F147<Tabelas!$B$355,Tabelas!$D$355,IF(F147<Tabelas!$B$356,Tabelas!$D$356,IF(F147<Tabelas!$B$357,Tabelas!$D$357,IF(F147<Tabelas!$B$358,Tabelas!$D$358,IF(F147<Tabelas!$B$359,Tabelas!$D$359,IF(F147<Tabelas!$B$360,Tabelas!$D$360,IF(F147<Tabelas!$B$361,Tabelas!$D$361,IF(F147<Tabelas!$B$362,Tabelas!$D$362,IF(F147<Tabelas!$B$363,Tabelas!$D$363,IF(F147<Tabelas!$B$364,Tabelas!$D$364,IF(F147<Tabelas!$B$365,Tabelas!$D$365,IF(F147<Tabelas!$B$366,Tabelas!$D$366,IF(F147<Tabelas!$B$367,Tabelas!$D$367,IF(F147<Tabelas!$B$368,Tabelas!$D$368,Tabelas!$C$369))))))))))))))))","v":""},{"$f":"IF(F150=\"\",Tabelas!B$12,\"\")","v":"Sem dados"}]
[null,null,null,null,{"$f":"Tabelas!$B$421","v":"Largura de referência do vão (m)"},{"$f":"IF(F147=\"\",\"\",IF(F147<Tabelas!$B$354,Tabelas!$C$354,IF(F147<Tabelas!$B$355,Tabelas!$C$355,IF(F147<Tabelas!$B$356,Tabelas!$C$356,IF(F147<Tabelas!$B$357,Tabelas!$C$357,IF(F147<Tabelas!$B$358,Tabelas!$C$358,IF(F147<Tabelas!$B$359,Tabelas!$C$359,IF(F147<Tabelas!$B$360,Tabelas!$C$360,IF(F147<Tabelas!$B$361,Tabelas!$C$361,IF(F147<Tabelas!$B$362,Tabelas!$C$362,IF(F147<Tabelas!$B$363,Tabelas!$C$363,IF(F147<Tabelas!$B$364,Tabelas!$C$364,IF(F147<Tabelas!$B$365,Tabelas!$C$365,IF(F147<Tabelas!$B$366,Tabelas!$C$366,IF(F147<Tabelas!$B$367,Tabelas!$C$367,IF(F147<Tabelas!$B$368,Tabelas!$C$368,Tabelas!$C$369))))))))))))))))","v":""},null,null,null,{"$f":"IF(F147=\"\",\"\",IF(F147<Tabelas!$B$340,Tabelas!$D$340,IF(F147<Tabelas!$B$341,Tabelas!$D$341,IF(F147<Tabelas!$B$342,Tabelas!$D$342,IF(F147<Tabelas!$B$343,Tabelas!$D$343,IF(F147<Tabelas!$B$344,Tabelas!$D$344,IF(F147<Tabelas!$B$345,Tabelas!$D$345,IF(F147<Tabelas!$B$346,Tabelas!$D$346,IF(F147<Tabelas!$B$347,Tabelas!$D$347,IF(F147<Tabelas!$B$348,Tabelas!$D$348,IF(F147<Tabelas!$B$349,Tabelas!$D$349,IF(F147<Tabelas!$B$350,Tabelas!$D$350,Tabelas!$D$351))))))))))))","v":""},{"$f":"IF(F151=\"\",Tabelas!B$12,\"\")","v":"Sem dados"}]
[null,null,{"$f":"Tabelas!A425","v":"3.3.3"},null,{"$f":"Tabelas!B425","v":"Inclinação das vias verticais de evacuação (graus)"},null,{"$f":"IF(F152=\"\",\"\",IF(F152<27,1.5,IF(F152>60,0.3,0.001*F152^2-0.123*F152+4.132)))","v":""},null,null,null,{"$f":"IF(F152=\"\",Tabelas!B$12,\"\")","v":"Sem dados"}]
[null,null,{"$f":"Tabelas!A427","v":"3.3.4"},null,{"$f":"Tabelas!B427","v":"Piso em que se encontra a unidade de análise\n(diferença entre LR e saida para o exterior)"},null,{"$f":"IF(OR(G143=\"\",G146=\"\",G152=\"\"),\"\",IF(OR(G143<1,G146<1,G152<1), 1-(0.104*F153^2+ 0.417*F153)/100,1))","v":""},null,null,null,{"$f":"IF(F153=\"\",Tabelas!B$12,\"\")","v":"Sem dados"}]
[null,null,null,null,null,null,null,null,null," "]
[null,null,null,null,null,null,null,null,null," "]
[null,null,null,null,{"$f":"Tabelas!$B$4","v":"ARICA:2019"},{"$f":"$F$3","v":0},{"$f":"$G$3","v":"0"},null,null," "]
[null,null,null,null,{"$f":"Tabelas!$B$72","v":"CONDIÇÕES DE PROJETO"},null,null,null,null," ",{"$f":"IF(K175=\"\",Tabelas!B$10,Tabelas!B$9)","v":"Incompleto"},null,{"$f":"Tabelas!B$8","v":"Avisos"},null,{"$f":"Tabelas!$B$6","v":"Comentários (não não visíveis no relatório)"}]
[null,null,null,null,null,null,null,null,null," "]
[null,null,{"$f":"Tabelas!$A$432","v":"3.4"},null,{"$f":"Tabelas!$B$432","v":"Isolamento e proteção das vias de evacuação"},null,{"$f":"IF(F159=\"\",\"\",IF(F159=Tabelas!$B$436,J160,IF(AND(F159=Tabelas!B435,Capa!F16<>Tabelas!$C$47),\"\",VLOOKUP(F159,Tabelas!$B$433:$C$438,2,FALSE))))","v":""},null,null," ",{"$f":"IF(G159=\"\",Tabelas!B$12,\"\")","v":"Sem dados"},null,{"$f":"IF(F159=Tabelas!B435,Tabelas!$B$441,\"\")","v":""}]
[null,null,null,null,{"$f":"Tabelas!$B$439","v":"Escalão de tempo estabelecido na regulamentação"},null,null,null,null,{"$f":"IF(OR(F160=\"\",F161=\"\"),\"\",IF(F160<=F161,\"\",1/(1+(0.0087*(F160-F161)/F160+0.05/F160)*100)))","v":""},{"$f":"IF(F160=\"\",Tabelas!B$12,\"\")","v":"Sem dados"},null,{"$f":"IF(J161=\"\",\"\",IF(J160>J161,Tabelas!B$13,IF(J160<J161,Tabelas!B$14,\"\")))","v":""}]
[null,null,null,null,{"$f":"Tabelas!$B$440","v":"Escalão de tempo do elemento mais condicionante "},null,null,null,null,null,{"$f":"IF(F161=\"\",Tabelas!B$12,\"\")","v":"Sem dados"},null,{"$f":"IF(F159=Tabelas!$B$436,IF(OR(F161=\"\",F160=\"\"),\"\",IF(F160<=F161,Tabelas!B$216,\"\")),\"\")","v":""}]
[null,null,{"$f":"Tabelas!$A$445","v":"3.5"},null,{"$f":"Tabelas!$B$445","v":"Controlo de fumo na unidade de análise"},null,{"$f":"IF(OR(F163=\"\",F164=\"\"),\"\",IF(AND(G163=\"-\",G164=\"-\"),\"-\",AVERAGE(G163:G164)))","v":""},null,null," ",{"$f":"IF(G162=\"\",Tabelas!B$12,\"\")","v":"Sem dados"}]
[null,null,{"$f":"Tabelas!A447","v":"3.5.1"},null,{"$f":"Tabelas!B447","v":"Controlo de fumo no local de risco"},null,{"$f":"IF(F163=\"\",\"\",VLOOKUP(F163,Tabelas!B448:C453,2,FALSE))","v":""},null,null,null,{"$f":"IF(G163=\"\",Tabelas!B$12,\"\")","v":"Sem dados"}]
[null,null,{"$f":"Tabelas!A455","v":"3.5.2"},null,{"$f":"Tabelas!B455","v":"Controlo de fumo nas vias de evacuação"},null,{"$f":"IF(F164=\"\",\"\",VLOOKUP(F164,Tabelas!$B$456:$C$461,2,FALSE))","v":""},null,null,null,{"$f":"IF(G164=\"\",Tabelas!B$12,\"\")","v":"Sem dados"}]
[null,null,{"$f":"Tabelas!$A$463","v":"3.6"},null,{"$f":"Tabelas!$B$463","v":"Sinalização de emergência na unidade de análise"},null,{"$f":"IF(OR(F166=\"\",F167=\"\"),\"\",IF(AND(G166=\"-\",G167=\"-\"),\"-\",AVERAGE(G166:G167)))","v":""},null,null,null,{"$f":"IF(G165=\"\",Tabelas!B$12,\"\")","v":"Sem dados"}]
[null,null,{"$f":"Tabelas!A465","v":"3.6.1"},null,{"$f":"Tabelas!B465","v":"Sinalização de emergência no local de risco"},null,{"$f":"IF(F166=\"\",\"\",VLOOKUP(F166,Tabelas!B467:C472,2,FALSE))","v":""},null,null,null,{"$f":"IF(G166=\"\",Tabelas!B$12,\"\")","v":"Sem dados"}]
[null,null,{"$f":"Tabelas!A474","v":"3.6.2"},null,{"$f":"Tabelas!B474","v":"Sinalização de emergência nas vias de evacuação"},null,{"$f":"IF(F167=\"\",\"\",VLOOKUP(F167,Tabelas!B476:C481,2,FALSE))","v":""},null,null,null,{"$f":"IF(G167=\"\",Tabelas!B$12,\"\")","v":"Sem dados"}]
[null,null,{"$f":"Tabelas!$A$483","v":"3.7"},null,{"$f":"Tabelas!$B$483","v":"Iluminação de emergência na unidade de análise"},null,{"$f":"IF(OR(F169=\"\",F170=\"\"),\"\",IF(AND(G169=\"-\",G170=\"-\"),\"-\",AVERAGE(G169:G170)))","v":""},null,null,null,{"$f":"IF(G168=\"\",Tabelas!B$12,\"\")","v":"Sem dados"}]
[null,null,{"$f":"Tabelas!A485","v":"3.7.1"},null,{"$f":"Tabelas!B485","v":"Iluminação de emergência no local de risco"},null,{"$f":"IF(F169=\"\",\"\",VLOOKUP(F169,Tabelas!B487:C492,2,FALSE))","v":""},null,null,null,{"$f":"IF(G169=\"\",Tabelas!B$12,\"\")","v":"Sem dados"}]
[null,null,{"$f":"Tabelas!A494","v":"3.7.2"},null,{"$f":"Tabelas!B494","v":"Iluminação de emergência nas vias de evacuação"},null,{"$f":"IF(F170=\"\",\"\",VLOOKUP(F170,Tabelas!B496:C501,2,FALSE))","v":""},null,null,null,{"$f":"IF(G170=\"\",Tabelas!B$12,\"\")","v":"Sem dados"}]
[null,null,{"$f":"Tabelas!$A$503","v":"3.8"},null,{"$f":"Tabelas!$B$503","v":"Equipas de segurança"},{"$f":"IF(F91=\"\",\"\",F91)","v":""},{"$f":"G91","v":""},null,null," ",{"$f":"IF(G171=\"\",Tabelas!B$12,\"\")","v":"Sem dados"},null,"(Igual a 2.6)"]
[null,null,{"$f":"Tabelas!$A$505","v":"3.9"},null,{"$f":"Tabelas!$B$505","v":"Deteção, alerta e alarme de incêndio"},{"$f":"IF(F92=\"\",\"\",F92)","v":""},{"$f":"G92","v":""},null,null,null,{"$f":"IF(G172=\"\",Tabelas!B$12,\"\")","v":"Sem dados"},null,"(Igual a 2.7)"]
[null,null,{"$f":"Tabelas!$A$513","v":"3.10"},null,{"$f":"Tabelas!$B$513","v":"Simulacros de evacuação "},null,{"$f":"IF(J173=\"\",\"\",IF(J173=\"-\",\"-\",IF(AND(OR(F91=\"\",F91=Tabelas!B$246,F91=Tabelas!B$247),OR(F173=Tabelas!B$514,F173=Tabelas!B$515)),\"\",J173)))","v":""},null,null,{"$f":"IF(F173=\"\",\"\",VLOOKUP(F173,Tabelas!$B$514:$C$517,2,FALSE))","v":""},{"$f":"IF(G173=\"\",Tabelas!B$12,\"\")","v":"Sem dados"},null,{"$f":"IF(AND(OR(F91=\"\",F91=Tabelas!B$246,F91=Tabelas!B$247),OR(F173=Tabelas!B$514,F173=Tabelas!B$515)),Tabelas!B519,\"\")","v":""}]
[]
[null,null,{"$f":"Tabelas!A521","v":"4."},null,{"$f":"Tabelas!B521","v":"Combate ao incêndio"},null,{"$f":"IF(OR(G176=\"\",G188=\"\",G189=\"\"),\"\",IF(AND(G176=\"-\",G188=\"-\",G189=\"-\"),\"-\",AVERAGE(G176,G188,G189)))","v":""},null,null," ",{"$f":"IF(G175=\"\",Tabelas!B$12,\"\")","v":"Sem dados"}]
[null,null,{"$f":"Tabelas!A522","v":"4.1"},null,{"$f":"Tabelas!B522","v":"Acessibilidade e meios de intervenção não automáticos"},null,{"$f":"IF(OR(G177=\"\",G178=\"\",G181=\"\",G182=\"\",G187=\"\"),\"\",IF(AND(G177=\"-\",G178=\"-\",G181=\"-\",G182=\"-\",G187=\"-\"),\"-\",AVERAGE(G177,G178,G181,G182,G187)))","v":""},null,null," ",{"$f":"IF(G176=\"\",Tabelas!B$12,\"\")","v":"Sem dados"}]
[null,null,{"$f":"Tabelas!A523","v":"4.1.1"},null,{"$f":"Tabelas!B523","v":"Acessibilidade ao edifício"},null,{"$f":"IF(F177=\"\",\"\",VLOOKUP(F177,Tabelas!B524:$C$527,2,FALSE))","v":""},null,null,null,{"$f":"IF(G177=\"\",Tabelas!B$12,\"\")","v":"Sem dados"}]
[null,null,{"$f":"Tabelas!A529","v":"4.1.2"},null,{"$f":"Tabelas!B529","v":"Hidrantes exteriores"},null,{"$f":"IF(F178=\"\",\"\",IF(F178=Tabelas!$B$533,J180,VLOOKUP(F178,Tabelas!$B$530:$C$534,2,FALSE)))","v":""},null,null,null,{"$f":"IF(G178=\"\",Tabelas!B$12,\"\")","v":"Sem dados"},null,{"$f":"IF(F178=Tabelas!$B$533,IF(J180=\"\",\"\",IF(J179>J180,Tabelas!B$13,IF(J179<J180,Tabelas!B$14,\"\"))),\"\")","v":""}]
[null,null,null,null,{"$f":"Tabelas!B535","v":"Distância regulamentar entre um hidrante exterior e qualquer das saídas do edifício (m)"},null,null,null,null,{"$f":"IF(OR(F180=\"\", F180=0,F179=\"\",F179=0),\"\",F179/F180)","v":""},{"$f":"IF(F179=\"\",Tabelas!B$12,\"\")","v":"Sem dados"}]
[null,null,null,null,{"$f":"Tabelas!B536","v":"Menor distância entre um hidrante exterior e qualquer das saídas do edifício (m)"},null,null,null,null,{"$f":"IF(OR(J179=\"\", J179=0),\"\",(IF(J179<Tabelas!$C$537,Tabelas!$C$537,IF(J179>Tabelas!$C$538,Tabelas!$C$538,J179))))","v":""},{"$f":"IF(F180=\"\",Tabelas!B$12,\"\")","v":"Sem dados"}]
[null,null,{"$f":"Tabelas!A540","v":"4.1.3"},null,{"$f":"Tabelas!B540","v":"Redes secas ou húmidas"},null,{"$f":"IF(F181=\"\",\"\",VLOOKUP(F181,Tabelas!$B$541:$C$544,2,FALSE))","v":""},null,null,null,{"$f":"IF(G181=\"\",Tabelas!B$12,\"\")","v":"Sem dados"}]
[null,null,{"$f":"Tabelas!A546","v":"4.1.4"},null,{"$f":"Tabelas!B546","v":"Extintores"},null,{"$f":"IF(F182=\"\",\"\",IF(F182=Tabelas!$B$551,J184,VLOOKUP(F182,Tabelas!$B$547:C552,2,FALSE)))","v":""},null,null," ",{"$f":"IF(G182=\"\",Tabelas!B$12,\"\")","v":"Sem dados"},null,{"$f":"IF(F182=Tabelas!$B$551,IF(J184=\"\",\"\",IF(J183>J184,Tabelas!B$13,IF(J183<J184,Tabelas!B$14,\"\"))),\"\")","v":""}]
[null,null,null,null,{"$f":"Tabelas!B553","v":"Número total de extintores necessários para cumprir as exigências da regulamentação"},null,null,null,null,{"$f":"IF(OR(F183=\"\",F184=\"\",F185=\"\",F186=\"\"),\"\",F184/F183*F186/F185*0.2+0.8)","v":""},{"$f":"IF(F183=\"\",Tabelas!B$12,\"\")","v":"Sem dados"}]
[null,null,null,null,{"$f":"Tabelas!B554","v":"Número total de extintores existentes na UA"},null,null,null,null,{"$f":"IF(J183=\"\",\"\",IF(J183<Tabelas!$C$557,Tabelas!$C$557,IF(J183>Tabelas!$C$558,Tabelas!$C$558,J183)))","v":""},{"$f":"IF(F184=\"\",Tabelas!B$12,\"\")","v":"Sem dados"}]
[null,null,null,null,{"$f":"Tabelas!B555","v":"Quantidade total de agente extintor exigido na regulament. (l)"},null,null,null,null,null,{"$f":"IF(F185=\"\",Tabelas!B$12,\"\")","v":"Sem dados"}]
[null,null,null,null,{"$f":"Tabelas!B556","v":"Quantidade total de agente extintor existente na UA (l)"},null,null,null,null,null,{"$f":"IF(F186=\"\",Tabelas!B$12,\"\")","v":"Sem dados"}]
[null,null,{"$f":"Tabelas!A560","v":"4.1.5"},null,{"$f":"Tabelas!B560","v":"Redes de incêndio armadas"},null,{"$f":"IF(F187=\"\",\"\",VLOOKUP(F187,Tabelas!$B$561:$C$564,2,FALSE))","v":""},null,null,null,{"$f":"IF(G187=\"\",Tabelas!B$12,\"\")","v":"Sem dados"}]
[null,null,{"$f":"Tabelas!A566","v":"4.2"},null,{"$f":"Tabelas!B566","v":"Meios de extinção automáticos"},null,{"$f":"IF(F188=\"\",\"\",VLOOKUP(F188,Tabelas!$B$567:$C$571,2,FALSE))","v":""},null,null,null,{"$f":"IF(G188=\"\",Tabelas!B$12,\"\")","v":"Sem dados"},null,{"$f":"IF(OR(F91=\"\",F91=Tabelas!B247,F91=Tabelas!B246),Tabelas!B573,\"\")","v":"Apenas se considera que a UA dispõe um sistema de extinção, se estiver prevista a constituição de uma equipa de segurança ou a celebração de um contrato de prestação de serviços para manutenção do sistema"}]
[null,null,{"$f":"Tabelas!A575","v":"4.3"},null,{"$f":"Tabelas!B575","v":"Equipas de segurança"},{"$f":"IF(F91=\"\",\"\",F91)","v":""},{"$f":"G91","v":""},null,null,null,{"$f":"IF(G189=\"\",Tabelas!B$12,\"\")","v":"Sem dados"},null,"(Igual a 2.6)"]
[]
[]
[null,null,null,null,{"$f":"Tabelas!$B$4","v":"ARICA:2019"},{"$f":"$F$3","v":0},{"$f":"$G$3","v":"0"}]
[null,null,null,null,{"$f":"Tabelas!$B$72","v":"CONDIÇÕES DE PROJETO"}]
[]
[null,null,null,null,{"$f":"Tabelas!B579","v":"Apenas preencher no caso de intervenção-tipo 4"}]
[]
[null,null,null,null,{"$f":"Tabelas!B581","v":"Justificação de incumprimento de exigências mínimas"}]
[]
[null,null,{"$f":"C80","v":"2.1"},null,{"$f":"E80","v":"Materiais de revestimento do local de risco"}]
[null,null,null,null,{"$f":"IF(M80<>\"\",Tabelas!B175,Tabelas!B174)","v":"(Condições cumpridas - não é necessário justificar)"}]
[]
[]
[null,null,{"$f":"C83","v":"2.2"},null,{"$f":"E83","v":"Materiais de revestimento das vias de evacuação"}]
[null,null,null,null,{"$f":"IF(M83<>\"\",Tabelas!B196,Tabelas!B195)","v":"(Condições cumpridas - não é necessário justificar)"}]
[]
[]
[null,null,{"$f":"C86","v":"2.3"},null,{"$f":"E86","v":"Isolamento e proteção do local de risco"}]
[null,null,null,null,{"$f":"IF(M86<>\"\",Tabelas!B219,Tabelas!B218)","v":"(Condições cumpridas - não é necessário justificar)"}]
[]
[]
[null,null,{"$f":"C90","v":"2.5"},null,{"$f":"E90","v":"Isolamento e proteção entre utilizações-tipo distintas"}]
[null,null,null,null,{"$f":"IF(M90<>\"\",Tabelas!B234,Tabelas!B233)","v":"(Condições cumpridas - não é necessário justificar)"}]
[]
[]
[null,null,{"$f":"C95","v":"2.8"},null,{"$f":"E95","v":"Propagação pelo exterior"}]
[null,null,null,null,{"$f":"IF(M96<>\"\",Tabelas!B279,Tabelas!B278)","v":"(Condições cumpridas - não é necessário justificar)"}]
[]
[]
[null,null,{"$f":"C105","v":"3."},null,{"$f":"E105","v":"Evacuação em caso de incêndio"}]
[null,null,null,null,{"$f":"IF(M105=Tabelas!B297,Tabelas!B299,Tabelas!B298)","v":"(Condições cumpridas - não é necessário justificar)"}]
[]
[]
[null,null,{"$f":"C106","v":"3.1"},null,{"$f":"E106&\" - Atravessamento de outros locais de risco\"","v":"Saídas do local de risco - Atravessamento de outros locais de risco"}]
[null,null,null,null,{"$f":"IF(M107=Tabelas!B317,Tabelas!B317,Tabelas!B316)","v":"(Condições cumpridas - não é necessário justificar)"}]
[]
[]
[null,null,{"$f":"C106","v":"3.1"},null,{"$f":"E106&\" - Larguras dos vãos\"","v":"Saídas do local de risco - Larguras dos vãos"}]
[null,null,null,null,{"$f":"IF(M112=Tabelas!B326,Tabelas!B328,Tabelas!B327)","v":"(Condições cumpridas - não é necessário justificar)"}]
[]
[]
[null,null,{"$f":"C114","v":"3.2"},null,{"$f":"E114&\" - \"&E115","v":"Dimensões dos locais e das vias horizontais de evacuação - Larguras dos vãos e das vias horizontais de evacuação"}]
[null,null,null,null,{"$f":"IF(OR(M118=Tabelas!B378,M122=Tabelas!B378, M123=Tabelas!B378,M128=Tabelas!B378,M129=Tabelas!B378),Tabelas!B380,Tabelas!B379)","v":"(Condições cumpridas - não é necessário justificar)"}]
[]
[]
[null,null,{"$f":"C142","v":"3.3"},null,{"$f":"E142&\" - \"&E146","v":"Dimensões das vias verticais de evacuação - Larguras das vias verticais de evacuação"}]
[null,null,null,null,{"$f":"IF(OR(M148=Tabelas!B378, ,M149=Tabelas!B378),Tabelas!B380,Tabelas!B379)","v":"(Condições cumpridas - não é necessário justificar)"}]
[]
[]
[null,null,{"$f":"C159","v":"3.4"},null,{"$f":"E159","v":"Isolamento e proteção das vias de evacuação"}]
[null,null,null,null,{"$f":"IF(M159<>\"\",Tabelas!B443,Tabelas!B442)","v":"(Condições cumpridas - não é necessário justificar)"}]

{"sheet":"1-Inic","index":3,"n_rows":189,"n_cols":15,"rows_kept":189,"cut":false,"hidden":false,"merged":[[2,6,3,6],[64,6,65,6],[101,6,102,6],[155,6,156,6]]}
[]
[]
[null,null,null,null,{"$f":"Tabelas!$B$4","v":"ARICA:2019"},{"$f":"Tabelas!B69&\" - \"&Capa!G21","v":"Unidade de análise - "},1]
[null,null,null,null,{"$f":"Tabelas!$B$70","v":"CONDIÇÕES INICIAIS"},null,null,null,null,null,null,null,null,null,{"$f":"Tabelas!$B$6","v":"Comentários (não não visíveis no relatório)"}]
[]
[null,null,null,null,{"$f":"Tabelas!B75","v":"Carateristicas da unidade"}]
[null,null,null,null,{"$f":"Tabelas!$B$77","v":"Tipo de local de risco"}]
[null,null,null,null,{"$f":"Tabelas!$B$91","v":"Utilização tipo"}]
[null,null,null,null,{"$f":"Tabelas!B85","v":"Categoria de risco"}]
[]
[null,null,null,null,{"$f":"Tabelas!B105","v":"Resumo"}]
[null,null,{"$f":"Tabelas!A109","v":"1."},null,{"$f":"Tabelas!B109","v":"Início do incêndio"},null,{"$f":"G68","v":""}]
[null,null,null,null,{"$f":"IF(OR(G13=\"\",G13=\"-\"),\"-\",F13)","v":"-"},{"$f":"Tabelas!$B$111","v":"Anomalias que podem provocar um incêndio"},{"$f":"G69","v":""}]
[null,null,null,null,{"$f":"IF(OR(G14=\"\",G14=\"-\"),\"-\",F14)","v":"-"},{"$f":"Tabelas!$B$117","v":"Instalações técnicas"},{"$f":"G70","v":""}]
[]
[null,null,{"$f":"Tabelas!A154","v":"2."},null,{"$f":"Tabelas!B154","v":"Desenvolvimento e propagação do incêndio"},null,{"$f":"G79","v":""}]
[null,null,null,null,{"$f":"IF(OR(G17=\"\",G17=\"-\"),\"-\",F17)","v":"-"},{"$f":"Tabelas!$B$156","v":"Materiais de revestimento do local de risco"},{"$f":"G80","v":""}]
[null,null,null,null,{"$f":"IF(OR(G18=\"\",G18=\"-\"),\"-\",F18)","v":"-"},{"$f":"Tabelas!$B177","v":"Materiais de revestimento das vias de evacuação"},{"$f":"G83","v":""}]
[null,null,null,null,{"$f":"IF(OR(G19=\"\",G19=\"-\"),\"-\",F19)","v":"-"},{"$f":"Tabelas!$B$198","v":"Isolamento e proteção do local de risco"},{"$f":"G86","v":""}]
[null,null,null,null,"-",{"$f":"Tabelas!$B$221","v":"Compartimentação geral corta-fogo da área de intervenção"},{"$f":"G89","v":""}]
[null,null,null,null,"-",{"$f":"Tabelas!B226","v":"Isolamento e proteção entre utilizações-tipo distintas"},{"$f":"G90","v":""}]
[null,null,null,null,"-",{"$f":"Tabelas!$B$236","v":"Equipas de segurança"},{"$f":"G91","v":""}]
[null,null,null,null,"-",{"$f":"Tabelas!$B$249","v":"Deteção, alerta e alarme de incêndio"},{"$f":"G92","v":""}]
[null,null,null,null,"-",{"$f":"Tabelas!$B$266","v":"Propagação pelo exterior"},{"$f":"G95","v":""}]
[]
[null,null,{"$f":"Tabelas!A294","v":"3."},null,{"$f":"Tabelas!B294","v":"Evacuação em caso de incêndio"},null,{"$f":"G105","v":""}]
[null,null,null,null,{"$f":"IF(OR(G27=\"\",G27=\"-\"),\"-\",F27)","v":"-"},{"$f":"Tabelas!$B$301","v":"Saídas do local de risco"},{"$f":"G107","v":""}]
[null,null,null,null,{"$f":"IF(OR(G28=\"\",G28=\"-\"),\"-\",F28)","v":"-"},{"$f":"Tabelas!$B$330","v":"Dimensões dos locais e das vias horizontais de evacuação"},{"$f":"G114","v":""}]
[null,null,null,null,{"$f":"IF(OR(G29=\"\",G29=\"-\"),\"-\",F29)","v":"-"},{"$f":"Tabelas!$B$407","v":"Dimensões das vias verticais de evacuação"},{"$f":"G142","v":""}]
[null,null,null,null,"-",{"$f":"Tabelas!$B$432","v":"Isolamento e proteção das vias de evacuação"},{"$f":"G159","v":""}]
[null,null,null,null,"-",{"$f":"Tabelas!$B$445","v":"Controlo de fumo na unidade de análise"},{"$f":"G162","v":""}]
[null,null,null,null,"-",{"$f":"Tabelas!$B$463","v":"Sinalização de emergência na unidade de análise"},{"$f":"G165","v":""}]
[null,null,null,null,"-",{"$f":"Tabelas!$B$483","v":"Iluminação de emergência na unidade de análise"},{"$f":"G168","v":""}]
[null,null,null,null,"-",{"$f":"Tabelas!$B$503","v":"Equipas de segurança"},{"$f":"G171","v":""}]
[null,null,null,null,"-",{"$f":"Tabelas!$B$505","v":"Deteção, alerta e alarme de incêndio"},{"$f":"G172","v":""}]
[null,null,null,null,"-",{"$f":"Tabelas!$B$513","v":"Simulacros de evacuação "},{"$f":"G173","v":""}]
[]
[null,null,{"$f":"Tabelas!A521","v":"4."},null,{"$f":"Tabelas!B521","v":"Combate ao incêndio"},null,{"$f":"G175","v":""}]
[null,null,null,null,{"$f":"IF(OR(G39=\"\",G39=\"-\"),\"-\",F39)","v":"-"},{"$f":"Tabelas!$B$522","v":"Acessibilidade e meios de intervenção não automáticos"},{"$f":"G176","v":""}]
[null,null,null,null,{"$f":"IF(OR(G40=\"\",G40=\"-\"),\"-\",F40)","v":"-"},{"$f":"Tabelas!$B$566","v":"Meios de extinção automáticos"},{"$f":"G188","v":""}]
[null,null,null,null,{"$f":"IF(OR(G41=\"\",G41=\"-\"),\"-\",F41)","v":"-"},{"$f":"Tabelas!$B$575","v":"Equipas de segurança"},{"$f":"G189","v":""}]
[]
[null,null,null,null,{"$f":"Tabelas!B54","v":"Índice de segurança ao incêndio "},null,{"$f":"IF(OR(G12=\"\",G16=\"\",G26=\"\",G38=\"\"),0,AVERAGE(G12,G16,G26,G38))","v":0}]
[]
[]
[]
[]
[]
[]
[]
[]
[]
[]
[]
[]
[]
[]
[]
[]
[]
[]
[]
[]
[]
[null,null,null,null,{"$f":"Tabelas!$B$4","v":"ARICA:2019"},{"$f":"$F$3","v":"Unidade de análise - "},{"$f":"$G$3","v":1}]
[null,null,null,null,{"$f":"Tabelas!$B$70","v":"CONDIÇÕES INICIAIS"},null,null,null,null,null,{"$f":"IF(AND(K68=\"\",K79=\"\"),Tabelas!B$10,Tabelas!B$9)","v":"Incompleto"},null,{"$f":"Tabelas!B$8","v":"Avisos"},null,{"$f":"Tabelas!$B$6","v":"Comentários (não não visíveis no relatório)"}]
[]
[null,null,{"$f":"Tabelas!A109","v":"1."},null,{"$f":"Tabelas!B109","v":"Início do incêndio"},null,{"$f":"IF(OR(G69=\"\",G70=\"\"),\"\",AVERAGE(G69,G70))","v":""},null,null," ",{"$f":"IF(G68=\"\",Tabelas!B$12,\"\")","v":"Sem dados"}]
[null,null,{"$f":"Tabelas!A111","v":"1.1"},null,{"$f":"Tabelas!B111","v":"Anomalias que podem provocar um incêndio"},null,{"$f":"IF(F69=\"\",\"\",VLOOKUP(F69,Tabelas!B112:C115,2,FALSE))","v":""},null,null," ",{"$f":"IF(F69=\"\",Tabelas!B$12,\"\")","v":"Sem dados"}]
[null,null,{"$f":"Tabelas!A117","v":"1.2"},null,{"$f":"Tabelas!B117","v":"Instalações técnicas"},null,{"$f":"IF(J78=0,\"-\",IF(J78=\"\",\"\",MIN(G71:G77)-(0.0213*(SUM(G71:G77)-MIN(G71:G77)))))","v":""},null,null," ",{"$f":"IF(G70=\"\",Tabelas!B$12,\"\")","v":"Sem dados"}]
[null,null,{"$f":"Tabelas!A119","v":"1.2.1"},null,{"$f":"Tabelas!B119","v":"Instalações elétricas"},null,{"$f":"IF(F71=\"\",\"\",VLOOKUP(F71,Tabelas!B120:C122,2,FALSE))","v":""},null,null," ",{"$f":"IF(F71=\"\",Tabelas!B$12,\"\")","v":"Sem dados"}]
[null,null,{"$f":"Tabelas!A124","v":"1.2.2"},null,{"$f":"Tabelas!B124","v":"Instalações de gás"},null,{"$f":"IF(F72=\"\",\"\",VLOOKUP(F72,Tabelas!B125:C127,2,FALSE))","v":""},null,null," ",{"$f":"IF(F72=\"\",Tabelas!B$12,\"\")","v":"Sem dados"}]
[null,null,{"$f":"Tabelas!A129","v":"1.2.3"},null,{"$f":"Tabelas!B129","v":"Instalações de aquecimento – Centrais térmicas"},null,{"$f":"IF(F73=\"\",\"\",VLOOKUP(F73,Tabelas!B130:C132,2,FALSE))","v":""},null,null," ",{"$f":"IF(F73=\"\",Tabelas!B$12,\"\")","v":"Sem dados"}]
[null,null,{"$f":"Tabelas!A134","v":"1.2.4"},null,{"$f":"Tabelas!B134","v":"Instalações de aquecimento – Aparelhagem"},null,{"$f":"IF(F74=\"\",\"\",VLOOKUP(F74,Tabelas!B135:C137,2,FALSE))","v":""},null,null," ",{"$f":"IF(F74=\"\",Tabelas!B$12,\"\")","v":"Sem dados"}]
[null,null,{"$f":"Tabelas!A139","v":"1.2.5"},null,{"$f":"Tabelas!B139","v":"Instalações de confeção e conservação de alimentos"},null,{"$f":"IF(F75=\"\",\"\",VLOOKUP(F75,Tabelas!B140:C142,2,FALSE))","v":""},null,null," ",{"$f":"IF(F75=\"\",Tabelas!B$12,\"\")","v":"Sem dados"}]
[null,null,{"$f":"Tabelas!A144","v":"1.2.6"},null,{"$f":"Tabelas!B144","v":"Instalações de evacuação de efluentes de combustão"},null,{"$f":"IF(F76=\"\",\"\",VLOOKUP(F76,Tabelas!B140:C142,2,FALSE))","v":""},null,null," ",{"$f":"IF(F76=\"\",Tabelas!B$12,\"\")","v":"Sem dados"}]
[null,null,{"$f":"Tabelas!A149","v":"1.2.7"},null,{"$f":"Tabelas!B149","v":"Instalações de ventilação e condicionamento de ar"},null,{"$f":"IF(F77=\"\",\"\",VLOOKUP(F77,Tabelas!B150:C152,2,FALSE))","v":""},null,null," ",{"$f":"IF(F77=\"\",Tabelas!B$12,\"\")","v":"Sem dados"}]
[null,null,null,null,null,null,null,null,null,{"$f":"IF(OR(G71=\"\",G72=\"\",G73=\"\",G74=\"\",G75=\"\",G76=\"\",G77=\"\"),\"\",7-COUNTIF(G71:G77,Tabelas!C122))","v":""}]
[null,null,{"$f":"Tabelas!A154","v":"2."},null,{"$f":"Tabelas!B154","v":"Desenvolvimento e propagação do incêndio"},null,{"$f":"IF(OR(G80=\"\",G83=\"\",G86=\"\",G89=\"\",G90=\"\",G91=\"\",G92=\"\",G95=\"\"),\"\",IF(AND(G80=\"-\",G83=\"-\",G86=\"-\",G89=\"-\",G90=\"-\",G91=\"-\",G92=\"-\",G95=\"-\"),\"-\",AVERAGE(G80,G83,G86,G89,G90,G91,G92,G95)))","v":""},null,null," ",{"$f":"IF(G79=\"\",Tabelas!B$12,\"\")","v":"Sem dados"}]
[null,null,{"$f":"Tabelas!A156","v":"2.1"},null,{"$f":"Tabelas!B156","v":"Materiais de revestimento do local de risco"},null,{"$f":"IF(OR(G81=\"\",G82=\"\"),\"\",IF(AND(G81=\"-\",G82=\"-\"),\"-\",MIN(G81,G82)))","v":""},null,null," ",{"$f":"IF(G80=\"\",Tabelas!B$12,\"\")","v":"Sem dados"}]
[null,null,{"$f":"Tabelas!A158","v":"2.1.1"},null,{"$f":"Tabelas!B158","v":"Classe de reação ao fogo dos revestimentos interiores das paredes e tetos"},null,{"$f":"IF(F81=\"\",\"\",VLOOKUP(F81,Tabelas!B159:C164,2,FALSE))","v":""},null,null,null,{"$f":"IF(F81=\"\",Tabelas!B$12,\"\")","v":"Sem dados"}]
[null,null,{"$f":"Tabelas!A166","v":"2.1.2"},null,{"$f":"Tabelas!B166","v":"Classe de reação ao fogo dos revestimentos interiores dos pavimentos"},null,{"$f":"IF(F82=\"\",\"\",VLOOKUP(F82,Tabelas!B167:C172,2,FALSE))","v":""},null,null,null,{"$f":"IF(F82=\"\",Tabelas!B$12,\"\")","v":"Sem dados"}]
[null,null,{"$f":"Tabelas!A177","v":"2.2"},null,{"$f":"Tabelas!B177","v":"Materiais de revestimento das vias de evacuação"},null,{"$f":"IF(OR(G84=\"\",G85=\"\"),\"\",IF(AND(G84=\"-\",G85=\"-\"),\"-\",MIN(G84,G85)))","v":""},null,null,null,{"$f":"IF(G83=\"\",Tabelas!B$12,\"\")","v":"Sem dados"}]
[null,null,{"$f":"Tabelas!A179","v":"2.2.1"},null,{"$f":"Tabelas!B179","v":"Classe de reação ao fogo dos revestimentos interiores das paredes e tetos"},null,{"$f":"IF(F84=\"\",\"\",VLOOKUP(F84,Tabelas!B180:C185,2,FALSE))","v":""},null,null,null,{"$f":"IF(F84=\"\",Tabelas!B$12,\"\")","v":"Sem dados"}]
[null,null,{"$f":"Tabelas!A187","v":"2.2.2"},null,{"$f":"Tabelas!B187","v":"Classe de reação ao fogo dos revestimentos interiores dos pavimentos"},null,{"$f":"IF(F85=\"\",\"\",VLOOKUP(F85,Tabelas!B188:C193,2,FALSE))","v":""},null,null,null,{"$f":"IF(F85=\"\",Tabelas!B$12,\"\")","v":"Sem dados"}]
[null,null,{"$f":"Tabelas!A198","v":"2.3"},null,{"$f":"Tabelas!B198","v":"Isolamento e proteção do local de risco"},null,{"$f":"IF(F86=\"\",\"\",IF(F86=Tabelas!B202,J87,VLOOKUP(F86,Tabelas!B199:C203,2,FALSE)))","v":""},null,null,null,{"$f":"IF(F86=\"\",Tabelas!B$12,\"\")","v":"Sem dados"}]
[null,null,null,null,{"$f":"Tabelas!B214","v":"Escalão de tempo exigido na regulamentação"},null,null,null,null,{"$f":"IF(OR(F87=\"\",F88=\"\"),\"\",IF(F87<=F88,\"\",1/(1+(0.0087*(F87-F88)/F87+0.05/F87)*100)))","v":""},{"$f":"IF(F87=\"\",Tabelas!B$12,\"\")","v":"Sem dados"}]
[null,null,null,null,{"$f":"Tabelas!B215","v":"Escalão de tempo do elemento mais condicionante"},null,null,null,null,null,{"$f":"IF(F88=\"\",Tabelas!B$12,\"\")","v":"Sem dados"},null,{"$f":"IF(OR(F88=\"\",F87=\"\"),\"\",IF(F87<=F88,Tabelas!B$216,\"\"))","v":""}]
[null,null,{"$f":"Tabelas!A221","v":"2.4"},null,{"$f":"Tabelas!B221","v":"Compartimentação geral corta-fogo da área de intervenção"},null,{"$f":"IF(F89=\"\",\"\",VLOOKUP(F89,Tabelas!B222:C224,2,FALSE))","v":""},null,null,null,{"$f":"IF(F89=\"\",Tabelas!B$12,\"\")","v":"Sem dados"}]
[null,null,{"$f":"Tabelas!A226","v":"2.5"},null,{"$f":"Tabelas!B226","v":"Isolamento e proteção entre utilizações-tipo distintas"},null,{"$f":"IF(F90=\"\",\"\",VLOOKUP(F90,Tabelas!B227:C231,2,FALSE))","v":""},null,null,null,{"$f":"IF(F90=\"\",Tabelas!B$12,\"\")","v":"Sem dados"}]
[null,null,{"$f":"Tabelas!A236","v":"2.6"},null,{"$f":"Tabelas!B236","v":"Equipas de segurança"},null,{"$f":"IF(F91=\"\",\"\",VLOOKUP(F91,Tabelas!B237:C241,2,FALSE))","v":""},null,null," ",{"$f":"IF(F91=\"\",Tabelas!B$12,\"\")","v":"Sem dados"}]
[null,null,{"$f":"Tabelas!A249","v":"2.7"},null,{"$f":"Tabelas!B249","v":"Deteção, alerta e alarme de incêndio"},null,{"$f":"IF(F92=\"\",\"\",IF(F92=Tabelas!$B$257,J94,VLOOKUP(F92,Tabelas!$B$250:$C$258,2,FALSE)))","v":""},null,null," ",{"$f":"IF(F92=\"\",Tabelas!B$12,\"\")","v":"Sem dados"},null,{"$f":"IF(OR(F91=\"\",F91=Tabelas!B241,F91=Tabelas!B240),Tabelas!B264,\"\")","v":"Apenas se considera que a UA dispõe um sistema de deteção de incêndio, se existir uma equipa de segurança ou um contrato de prestação de serviços para manutenção do sistema"}]
[null,null,null,null,{"$f":"Tabelas!B259","v":"Número de locais onde a regulamentação exige sistema de deteção de incêndio"},null,null,null,null,{"$f":"IF(OR(F93=\"\",F94=\"\"),\"\",(F94/F93)/2+0.5)","v":""},{"$f":"IF(F93=\"\",Tabelas!B$12,\"\")","v":"Sem dados"}]
[null,null,null,null,{"$f":"Tabelas!B260","v":"Número de locais onde existe sistema de deteção de incêndio"},null,null,null,null,{"$f":"IF(J93=\"\",\"\",IF(J93<Tabelas!$C$261,Tabelas!$C$261,IF(J93>Tabelas!$C$262,Tabelas!$C$262,J93)))","v":""},{"$f":"IF(F94=\"\",Tabelas!B$12,\"\")","v":"Sem dados"},null,{"$f":"IF(J94=\"\",\"\",IF(J93>J94,Tabelas!B$13,IF(J93<J94,Tabelas!B$14,\"\")))","v":""}]
[null,null,{"$f":"Tabelas!A266","v":"2.8"},null,{"$f":"Tabelas!B266","v":"Propagação pelo exterior"},null,{"$f":"IF(OR(G96=\"\",G97=\"\"),\"\",IF(AND(G96=\"-\",G97=\"-\"),\"-\",AVERAGE(G96,G97)))","v":""},null,null,null,{"$f":"IF(G95=\"\",Tabelas!B$12,\"\")","v":"Sem dados"}]
[null,null,{"$f":"Tabelas!A268","v":"2.8.1"},null,{"$f":"Tabelas!B268","v":"Materiais de revestimento exteriores"},null,{"$f":"IF(F96=\"\",\"\",VLOOKUP(F96,Tabelas!B269:C272,2,FALSE))","v":""},null,null,null,{"$f":"IF(F96=\"\",Tabelas!B$12,\"\")","v":"Sem dados"}]
[null,null,{"$f":"Tabelas!A281","v":"2.8.2"},null,{"$f":"Tabelas!B281","v":"Afastamento de vãos das fachadas"},null,{"$f":"IF(F97=\"\",\"\",IF(F97=Tabelas!B283,J99,VLOOKUP(F97,Tabelas!B282:C285,2,FALSE)))","v":""},null,null," ",{"$f":"IF(F97=\"\",Tabelas!B$12,\"\")","v":"Sem dados"}]
[null,null,null,null,{"$f":"Tabelas!B287","v":"Afastamento regulamentar entre vãos\nna mesma prumada (m)"},null,null,null,null,{"$f":"IF(OR(F99=\"\",F98=\"\"),\"\",F99/F98)","v":""},{"$f":"IF(F98=\"\",Tabelas!B$12,\"\")","v":"Sem dados"}]
[null,null,null,null,{"$f":"Tabelas!B288","v":"Menor afastamento existente entre vãos\nna mesma prumada (m)"},null,null,null,null,{"$f":"IF(J98=\"\",\"\",IF(J98<Tabelas!C289,Tabelas!C289,IF(J98>Tabelas!C290,Tabelas!C290,J98)))","v":""},{"$f":"IF(F99=\"\",Tabelas!B$12,\"\")","v":"Sem dados"},null,{"$f":"IF(J99=\"\",\"\",IF(J98>J99,Tabelas!B$13,IF(J98<J99,Tabelas!B$14,\"\")))","v":""}]
[null,null,null,null,null,null,null,null,null," "]
[null,null,null,null,null,null,null,null,null," "]
[null,null,null,null,{"$f":"Tabelas!$B$4","v":"ARICA:2019"},{"$f":"$F$3","v":"Unidade de análise - "},{"$f":"$G$3","v":1},null,null," "]
[null,null,null,null,{"$f":"Tabelas!$B$70","v":"CONDIÇÕES INICIAIS"},null,null,null,null," ",{"$f":"IF(K127=\"\",Tabelas!B$10,Tabelas!B$9)","v":"Incompleto"},null,{"$f":"Tabelas!B$8","v":"Avisos"},null,{"$f":"Tabelas!$B$6","v":"Comentários (não não visíveis no relatório)"}]
[]
[null,null,{"$f":"Tabelas!$A$294","v":"3."},null,{"$f":"Tabelas!$B$294","v":"Evacuação em caso de incêndio"},null,{"$f":"IF(J105=\"\",\"\",IF(J105=\"-\",\"-\",IF(J105<Tabelas!$C$295,Tabelas!$C$295,IF(J105>Tabelas!$C$296,Tabelas!$C$296,J105))))","v":""},null,null,{"$f":"IF(OR(G106=\"\",G114=\"\",G142=\"\",G159=\"\",G162=\"\",G165=\"\",G168=\"\",G171=\"\",G172=\"\",G173=\"\"),\"\",IF(AND(G106=\"-\",G114=\"-\",G142=\"-\",G159=\"-\",G162=\"-\",G165=\"-\",G168=\"-\",G171=\"-\",G172=\"-\",G173=\"-\"),\"-\",IF(AND(G159=\"-\",G162=\"-\",G165=\"-\",G168=\"-\",G171=\"-\",G172=\"-\",G173=\"-\"),AVERAGE(G106,G114,G142),AVERAGE(G106,G114,G142,AVERAGE(G159,G162,G165,G168,G171,G172,G173)))))","v":""},{"$f":"IF(G105=\"\",Tabelas!B$12,\"\")","v":"Sem dados"},null,{"$f":"IF(G105=\"\",\"\",IF(J105>G105,Tabelas!B$13,IF(J105<G105,Tabelas!B$14,\"\")))","v":""}]
[null,null,"3.1",null,{"$f":"Tabelas!$B$301","v":"Saídas do local de risco"},null,{"$f":"IF(J106=\"\",\"\",IF(J106=\"-\",\"-\",IF(J106<Tabelas!$C$302,Tabelas!$C$302,IF(J106>Tabelas!$C$303,Tabelas!$C$303,J106))))","v":""},null,null,{"$f":"IF(G107=\"-\",\"-\",IF(OR(G107=\"\",G110=\"\"),\"\",G107*G110))","v":""},{"$f":"IF(G106=\"\",Tabelas!B$12,\"\")","v":"Sem dados"},null,{"$f":"IF(G106=\"\",\"\",IF(J106>G106,Tabelas!B$13,IF(J106<G106,Tabelas!B$14,\"\")))","v":""}]
[null,null,{"$f":"Tabelas!$A$305","v":"3.1.1"},null,{"$f":"Tabelas!$B$305","v":"Número de saídas do local de risco"},null,{"$f":"IF(F107=\"\",\"\",IF(F107=Tabelas!B306,J109,VLOOKUP(F107,Tabelas!$B$307:$C$310,2,FALSE)))","v":""},null,null,null,{"$f":"IF(F107=\"\",Tabelas!B$12,\"\")","v":"Sem dados"}]
[null,null,null,null,{"$f":"Tabelas!B311","v":"Número de saídas do LR exigidas na regulamentação"},null,null,null,null,{"$f":"IF(OR(F108=\"\",F109=\"\"),\"\",IF(F108>=F109,\"\",1+(F109-F108)*0.15))","v":""},{"$f":"IF(F108=\"\",Tabelas!B$12,\"\")","v":"Sem dados"}]
[null,null,null,null,{"$f":"Tabelas!B312","v":"Número de saídas do LR"},null,null,null,null,{"$f":"IF(J108=\"\",\"\",IF(J108<Tabelas!$C$313,Tabelas!$C$313,IF(J108>Tabelas!$C$314,Tabelas!$C$314,J108)))","v":""},{"$f":"IF(F109=\"\",Tabelas!B$12,\"\")","v":"Sem dados"}]
[null,null,{"$f":"Tabelas!$A$319","v":"3.1.2"},null,{"$f":"Tabelas!$B$319","v":"Largura total das saídas do local de risco"},null,{"$f":"IF(J110=\"\",\"\",IF(J110<Tabelas!$C$323,Tabelas!$C$323,IF(J110>Tabelas!$C$324,Tabelas!$C$324,J110)))","v":""},null,null,{"$f":"IF(OR(F112=\"\",F113=\"\"),\"\",F112/F113)","v":""},{"$f":"IF(G110=\"\",Tabelas!B$12,\"\")","v":"Sem dados"},null,{"$f":"IF(G110=\"\",\"\",IF(J110>G110,Tabelas!B$13,IF(J110<G110,Tabelas!B$14,\"\")))","v":""}]
[null,null,null,null,{"$f":"Tabelas!B320","v":"Efetivo do local de risco"},null,null,null,null,null,{"$f":"IF(F111=\"\",Tabelas!B$12,\"\")","v":"Sem dados"}]
[null,null,null,null,{"$f":"Tabelas!B321","v":"Somatório da largura das saídas (m)"},null,null,null,null,null,{"$f":"IF(F112=\"\",Tabelas!B$12,\"\")","v":"Sem dados"}]
[null,null,null,null,{"$f":"Tabelas!B322","v":"Largura de ref. do somatório das larguras das saídas (m)"},{"$f":"IF(F111=\"\",\"\",IF(F111<Tabelas!$B$340,Tabelas!$C$340,IF(F111<Tabelas!$B$341,Tabelas!$C$341,IF(F111<Tabelas!$B$342,Tabelas!$C$342,IF(F111<Tabelas!$B$343,Tabelas!$C$343,IF(F111<Tabelas!$B$344,Tabelas!$C$344,IF(F111<Tabelas!$B$345,Tabelas!$C$345,IF(F111<Tabelas!$B$346,Tabelas!$C$346,IF(F111<Tabelas!$B$347,Tabelas!$C$347,IF(F111<Tabelas!$B$348,Tabelas!$C$348,IF(F111<Tabelas!$B$349,Tabelas!$C$349,Tabelas!$C$350)))))))))))","v":""},null,null,null,{"$f":"IF(F111=\"\",\"\",IF(F111<Tabelas!$B$340,Tabelas!$D$340,IF(F111<Tabelas!$B$341,Tabelas!$D$341,IF(F111<Tabelas!$B$342,Tabelas!$D$342,IF(F111<Tabelas!$B$343,Tabelas!$D$343,IF(F111<Tabelas!$B$344,Tabelas!$D$344,IF(F111<Tabelas!$B$345,Tabelas!$D$345,IF(F111<Tabelas!$B$346,Tabelas!$D$346,IF(F111<Tabelas!$B$347,Tabelas!$D$347,IF(F111<Tabelas!$B$348,Tabelas!$D$348,IF(F111<Tabelas!$B$349,Tabelas!$D$349,IF(F111<Tabelas!$B$350,Tabelas!$D$350,Tabelas!$D$351))))))))))))","v":""},{"$f":"IF(F113=\"\",Tabelas!B$12,\"\")","v":"Sem dados"}]
[null,null,{"$f":"Tabelas!A330","v":"3.2"},null,{"$f":"Tabelas!B330","v":"Dimensões dos locais e das vias horizontais de evacuação"},null,{"$f":"IF(J114=\"\",\"\",IF(J114=\"-\",\"-\",IF(J114<Tabelas!$C$331,Tabelas!$C$331,IF(J114>Tabelas!$C$332,Tabelas!$C$332,J114))))","v":""},null,null,{"$f":"IF(OR(G115=\"\",G132=\"\"),\"\",IF(OR(G115=\"-\",G132=\"-\"),\"-\",AVERAGE(G115,G132)))","v":""},{"$f":"IF(G115=\"\",Tabelas!B$12,\"\")","v":"Sem dados"},null,{"$f":"IF(G114=\"\",\"\",IF(J114>G114,Tabelas!B$13,IF(J114<G114,Tabelas!B$14,\"\")))","v":""}]
[null,null,{"$f":"Tabelas!A334","v":"3.2.1"},null,{"$f":"Tabelas!B334","v":"Larguras dos vãos e das vias horizontais de evacuação"},null,{"$f":"IF(J115=\"\",\"\",IF(J115=\"-\",\"-\",IF(J115<Tabelas!$C$335,Tabelas!$C$335,IF(J115>Tabelas!$D$336,Tabelas!$D$336,J115))))","v":""},null,null,{"$f":"IF(OR(G118=\"\",G122=\"\",G123=\"\",G128=\"\",G129=\"\"),\"\",IF(AND(G118=\"-\",G122=\"-\",G123=\"-\",G128=\"-\",G129=\"-\"),\"-\",AVERAGE(G118,G122,G123,G128,G129)))","v":""},{"$f":"IF(G115=\"\",Tabelas!B$12,\"\")","v":"Sem dados"},null,{"$f":"IF(G115=\"\",\"\",IF(J115>G115,Tabelas!B$13,IF(J115<G115,Tabelas!B$14,\"\")))","v":""}]
[null,null,null,null,{"$f":"Tabelas!$B$374","v":"Local de risco"},null,null,null,null,null,{"$f":"IF(F116=\"\",Tabelas!B$12,\"\")","v":"Sem dados"}]
[null,null,null,null,{"$f":"Tabelas!B375","v":"Efetivo do local de risco que sai pelo vão em análise"},null,null,null,null,{"$f":"IF(OR(J118<1,J122<1,J123<1,J128<1,J129<1,J148<1,J149<1),Tabelas!C336,Tabelas!D336)","v":3},{"$f":"IF(F117=\"\",Tabelas!B$12,\"\")","v":"Sem dados"}]
[null,null,null,null,{"$f":"Tabelas!$B$376","v":"Largura medida do vão em análise (m)"},null,{"$f":"IF(J118=\"\",\"\",IF(J118=\"-\",\"-\",IF(J118>J117,J117,J118)))","v":""},null,null,{"$f":"IF(F116=\"\",\"\",IF(F116=Tabelas!B$373,\"-\",IF(OR(F118=\"\",F119=\"\"),\"\",F118/F119)))","v":""},{"$f":"IF(F118=\"\",Tabelas!B$12,\"\")","v":"Sem dados"}]
[null,null,null,null,{"$f":"Tabelas!$B$377","v":"Largura de referência do vão em análise (m)"},{"$f":"IF(F117=\"\",\"\",IF(F117<Tabelas!$B$340,Tabelas!$C$340,IF(F117<Tabelas!$B$341,Tabelas!$C$341,IF(F117<Tabelas!$B$342,Tabelas!$C$342,IF(F117<Tabelas!$B$343,Tabelas!$C$343,IF(F117<Tabelas!$B$344,Tabelas!$C$344,IF(F117<Tabelas!$B$345,Tabelas!$C$345,IF(F117<Tabelas!$B$346,Tabelas!$C$346,IF(F117<Tabelas!$B$347,Tabelas!$C$347,IF(F117<Tabelas!$B$348,Tabelas!$C$348,IF(F117<Tabelas!$B$349,Tabelas!$C$349,Tabelas!$C$350)))))))))))","v":""},null,null,null,{"$f":"IF(F117=\"\",\"\",IF(F117<Tabelas!$B$340,Tabelas!$D$340,IF(F117<Tabelas!$B$341,Tabelas!$D$341,IF(F117<Tabelas!$B$342,Tabelas!$D$342,IF(F117<Tabelas!$B$343,Tabelas!$D$343,IF(F117<Tabelas!$B$344,Tabelas!$D$344,IF(F117<Tabelas!$B$345,Tabelas!$D$345,IF(F117<Tabelas!$B$346,Tabelas!$D$346,IF(F117<Tabelas!$B$347,Tabelas!$D$347,IF(F117<Tabelas!$B$348,Tabelas!$D$348,IF(F117<Tabelas!$B$349,Tabelas!$D$349,Tabelas!$D$350)))))))))))","v":""},{"$f":"IF(F119=\"\",Tabelas!B$12,\"\")","v":"Sem dados"}]
[null,null,null,null,{"$f":"Tabelas!$B$381","v":"Via horizontal no piso do local de risco"},null,null,null,null,null,{"$f":"IF(F120=\"\",Tabelas!B$12,\"\")","v":"Sem dados"}]
[null,null,null,null,{"$f":"Tabelas!B382","v":"Efetivo da via horizontal"},null,null,null,null,null,{"$f":"IF(F121=\"\",Tabelas!B$12,\"\")","v":"Sem dados"}]
[null,null,null,null,{"$f":"Tabelas!$B$383","v":"Largura medida da via horizontal (m)"},null,{"$f":"IF(J122=\"\",\"\",IF(J122=\"-\",\"-\",IF(J122>J117,J117,J122)))","v":""},null,null,{"$f":"IF(F120=\"\",\"\",IF(F120=Tabelas!B$373,\"-\",IF(OR(F122=\"\",F124=\"\"),\"\",F122/F124)))","v":""},{"$f":"IF(F122=\"\",Tabelas!B$12,\"\")","v":"Sem dados"}]
[null,null,null,null,{"$f":"Tabelas!$B$385","v":"Largura medida do vão (m)"},null,{"$f":"IF(J123=\"\",\"\",IF(J123=\"-\",\"-\",IF(J123>J117,J117,J123)))","v":""},null,null,{"$f":"IF(F120=\"\",\"\",IF(F120=Tabelas!B$373,\"-\",IF(OR(F123=\"\",F125=\"\"),\"\",F123/F125)))","v":""},{"$f":"IF(F123=\"\",Tabelas!B$12,\"\")","v":"Sem dados"}]
[null,null,null,null,{"$f":"Tabelas!$B$384","v":"Largura de referência da via horizontal (m)"},{"$f":"IF(F121=\"\",\"\",IF(F121<Tabelas!$B$340,Tabelas!$C$340,IF(F121<Tabelas!$B$341,Tabelas!$C$341,IF(F121<Tabelas!$B$342,Tabelas!$C$342,IF(F121<Tabelas!$B$343,Tabelas!$C$343,IF(F121<Tabelas!$B$344,Tabelas!$C$344,IF(F121<Tabelas!$B$345,Tabelas!$C$345,IF(F121<Tabelas!$B$346,Tabelas!$C$346,IF(F121<Tabelas!$B$347,Tabelas!$C$347,IF(F121<Tabelas!$B$348,Tabelas!$C$348,IF(F121<Tabelas!$B$349,Tabelas!$C$349,IF(F121<Tabelas!$B$350,Tabelas!$C$350,Tabelas!$C$351))))))))))))","v":""},null,null,null,{"$f":"IF(F121=\"\",\"\",IF(F121<Tabelas!$B$340,Tabelas!$D$340,IF(F121<Tabelas!$B$341,Tabelas!$D$341,IF(F121<Tabelas!$B$342,Tabelas!$D$342,IF(F121<Tabelas!$B$343,Tabelas!$D$343,IF(F121<Tabelas!$B$344,Tabelas!$D$344,IF(F121<Tabelas!$B$345,Tabelas!$D$345,IF(F121<Tabelas!$B$346,Tabelas!$D$346,IF(F121<Tabelas!$B$347,Tabelas!$D$347,IF(F121<Tabelas!$B$348,Tabelas!$D$348,IF(F121<Tabelas!$B$349,Tabelas!$D$349,IF(F121<Tabelas!$B$350,Tabelas!$D$350,Tabelas!$D$351))))))))))))","v":""},{"$f":"IF(F124=\"\",Tabelas!B$12,\"\")","v":"Sem dados"}]
[null,null,null,null,{"$f":"Tabelas!$B$386","v":"Largura de referência do vão (m)"},{"$f":"F124","v":""},null,null,null,{"$f":"J124","v":""},{"$f":"IF(F125=\"\",Tabelas!B$12,\"\")","v":"Sem dados"}]
[null,null,null,null,{"$f":"Tabelas!$B$387","v":"Via horizontal até à saída para o exterior"},null,null,null,null,null,{"$f":"IF(F126=\"\",Tabelas!B$12,\"\")","v":"Sem dados"}]
[null,null,null,null,{"$f":"Tabelas!B388","v":"Efetivo da via horizontal"},null,null,null,null,null,{"$f":"IF(F127=\"\",Tabelas!B$12,\"\")","v":"Sem dados"}]
[null,null,null,null,{"$f":"Tabelas!B389","v":"Largura medida da via horizontal (m)"},null,{"$f":"IF(J128=\"\",\"\",IF(J128=\"-\",\"-\",IF(J128>J117,J117,J128)))","v":""},null,null,{"$f":"IF(F126=\"\",\"\",IF(F126=Tabelas!B$373,\"-\",IF(AND(F149=F150,F127<F148),\"\",IF(OR(F128=\"\",F130=\"\"),\"\",F128/F130))))","v":""},{"$f":"IF(F128=\"\",Tabelas!B$12,\"\")","v":"Sem dados"}]
[null,null,null,null,{"$f":"Tabelas!$B$391","v":"Largura medida do vão de saída para o exterior (m)"},null,{"$f":"IF(J129=\"\",\"\",IF(J129=\"-\",\"-\",IF(J129>J117,J117,J129)))","v":""},null,null,{"$f":"IF(F126=\"\",\"\",IF(F126=Tabelas!B$373,\"-\",IF(AND(F149=F150,F127<F148),\"\",IF(OR(F129=\"\",F131=\"\"),\"\",F129/F131))))","v":""},{"$f":"IF(F129=\"\",Tabelas!B$12,\"\")","v":"Sem dados"}]
[null,null,null,null,{"$f":"Tabelas!B390","v":"Largura de referência da via horizontal (m)"},{"$f":"IF(F127=\"\",\"\",IF(F127<Tabelas!$B$340,Tabelas!$C$340,IF(F127<Tabelas!$B$341,Tabelas!$C$341,IF(F127<Tabelas!$B$342,Tabelas!$C$342,IF(F127<Tabelas!$B$343,Tabelas!$C$343,IF(F127<Tabelas!$B$344,Tabelas!$C$344,IF(F127<Tabelas!$B$345,Tabelas!$C$345,IF(F127<Tabelas!$B$346,Tabelas!$C$346,IF(F127<Tabelas!$B$347,Tabelas!$C$347,IF(F127<Tabelas!$B$348,Tabelas!$C$348,IF(F127<Tabelas!$B$349,Tabelas!$C$349,IF(F127<Tabelas!$B$350,Tabelas!$C$350,Tabelas!$C$351))))))))))))","v":""},null,null,null,{"$f":"IF(F127=\"\",\"\",IF(F127<Tabelas!$B$340,Tabelas!$D$340,IF(F127<Tabelas!$B$341,Tabelas!$D$341,IF(F127<Tabelas!$B$342,Tabelas!$D$342,IF(F127<Tabelas!$B$343,Tabelas!$D$343,IF(F127<Tabelas!$B$344,Tabelas!$D$344,IF(F127<Tabelas!$B$345,Tabelas!$D$345,IF(F127<Tabelas!$B$346,Tabelas!$D$346,IF(F127<Tabelas!$B$347,Tabelas!$D$347,IF(F127<Tabelas!$B$348,Tabelas!$D$348,IF(F127<Tabelas!$B$349,Tabelas!$D$349,IF(F127<Tabelas!$B$350,Tabelas!$D$350,Tabelas!$D$351))))))))))))","v":""},{"$f":"IF(F130=\"\",Tabelas!B$12,\"\")","v":"Sem dados"}]
[null,null,null,null,{"$f":"Tabelas!$B$392","v":"Largura de referência do vão de saída para o exterior (m)"},{"$f":"F130","v":""},null,null,null,{"$f":"J130","v":""},{"$f":"IF(F131=\"\",Tabelas!B$12,\"\")","v":"Sem dados"}]
[null,null,{"$f":"Tabelas!$A$394","v":"3.2.2"},null,{"$f":"Tabelas!$B$394","v":"Distância a percorrer nas vias horizontais de evacuação"},null,{"$f":"IF(J132=\"\",\"\",IF(J132=\"-\",\"-\",IF(J132<Tabelas!$C$395,Tabelas!$C$395,IF(J132>Tabelas!$C$396,Tabelas!$C$396,J132))))","v":""},null,null,{"$f":"IF(AND(F133=Tabelas!B373,F136=Tabelas!B373,F139=Tabelas!B373),\"-\",IF(OR(J134=\"\",J135=\"\",J137=\"\",J138=\"\",J140=\"\",J141=\"\"),\"\",IF(J134+J137+J140=0,1,(J135+J138+J141)/(J134+J137+J140))))","v":""},{"$f":"IF(G132=\"\",Tabelas!B$12,\"\")","v":"Sem dados"},null,{"$f":"IF(G132=\"\",\"\",IF(J132>G132,Tabelas!B$13,IF(J132<G132,Tabelas!B$14,\"\")))","v":""}]
[null,null,null,null,{"$f":"Tabelas!B397","v":"Percurso no interior do local de risco até à porta"},{"$f":"IF(F116=\"\",\"\",F116)","v":""},null,null,null,null,{"$f":"IF(F133=\"\",Tabelas!B$12,\"\")","v":"Sem dados"}]
[null,null,null,null,{"$f":"Tabelas!$B$398","v":"Distância medida (m)"},null,null,null,null,{"$f":"IF(F133=\"\",\"\",IF(F133=Tabelas!B$373,0,IF(F134=\"\",\"\",F134)))","v":""},{"$f":"IF(F134=\"\",Tabelas!B$12,\"\")","v":"Sem dados"}]
[null,null,null,null,{"$f":"Tabelas!$B$399","v":"Distância regulamentar (m)"},null,null,null,null,{"$f":"IF(F133=\"\",\"\",IF(F133=Tabelas!B$373,0,IF(F135=\"\",\"\",F135)))","v":""},{"$f":"IF(F135=\"\",Tabelas!B$12,\"\")","v":"Sem dados"}]
[null,null,null,null,{"$f":"Tabelas!B400","v":"Percurso na via horizontal no piso do local de risco"},{"$f":"IF(F120=\"\",\"\",F120)","v":""},null,null,null,null,{"$f":"IF(F136=\"\",Tabelas!B$12,\"\")","v":"Sem dados"}]
[null,null,null,null,{"$f":"Tabelas!$B$401","v":"Distância medida (m)"},null,null,null,null,{"$f":"IF(F136=\"\",\"\",IF(F136=Tabelas!B$373,0,IF(F137=\"\",\"\",F137)))","v":""},{"$f":"IF(F137=\"\",Tabelas!B$12,\"\")","v":"Sem dados"}]
[null,null,null,null,{"$f":"Tabelas!$B$402","v":"Distância regulamentar (m)"},null,null,null,null,{"$f":"IF(F136=\"\",\"\",IF(F136=Tabelas!B$373,0,IF(F138=\"\",\"\",F138)))","v":""},{"$f":"IF(F138=\"\",Tabelas!B$12,\"\")","v":"Sem dados"}]
[null,null,null,null,{"$f":"Tabelas!B403","v":"Percurso na via horizontal até à saída para o exterior"},{"$f":"IF(F126=\"\",\"\",F126)","v":""},null,null,null,null,{"$f":"IF(F139=\"\",Tabelas!B$12,\"\")","v":"Sem dados"}]
[null,null,null,null,{"$f":"Tabelas!$B$404","v":"Distância medida (m)"},null,null,null,null,{"$f":"IF(F139=\"\",\"\",IF(F139=Tabelas!B$373,0,IF(F140=\"\",\"\",F140)))","v":""},{"$f":"IF(F140=\"\",Tabelas!B$12,\"\")","v":"Sem dados"}]
[null,null,null,null,{"$f":"Tabelas!$B$405","v":"Distância regulamentar (m)"},null,null,null,null,{"$f":"IF(F139=\"\",\"\",IF(F139=Tabelas!B$373,0,IF(F141=\"\",\"\",F141)))","v":""},{"$f":"IF(F141=\"\",Tabelas!B$12,\"\")","v":"Sem dados"}]
[null,null,{"$f":"Tabelas!A407","v":"3.3"},null,{"$f":"Tabelas!B407","v":"Dimensões das vias verticais de evacuação"},null,{"$f":"IF(J142=\"\",\"\",IF(J142=\"-\",\"-\",IF(J142<Tabelas!$C$408,Tabelas!$C$408,IF(J142>Tabelas!$C$409,Tabelas!$C$409,J142))))","v":""},null,null,{"$f":"IF(F142=Tabelas!B$373,\"-\",IF(OR(G143=\"\",G146=\"\",G152=\"\",G153=\"\"),\"\",G143*AVERAGE(G146,G152)*G153))","v":""},{"$f":"IF(G142=\"\",Tabelas!B$12,\"\")","v":"Sem dados"},null,{"$f":"IF(G142=\"\",\"\",IF(J142>G142,Tabelas!B$13,IF(J142<G142,Tabelas!B$14,\"\")))","v":""}]
[null,null,{"$f":"Tabelas!A411","v":"3.3.1"},null,{"$f":"Tabelas!B411","v":"Número de vias verticais de evacuação"},null,{"$f":"IF(F144=\"\",\"\",IF(F144=F145,1,IF(F144>F145,0.5,IF(F145>F144,IF(F145-F144>2,1.45,1+0.15*(F145-F144))))))","v":""},null,null,null,{"$f":"IF(G143=\"\",Tabelas!B$12,\"\")","v":"Sem dados"}]
[null,null,null,null,{"$f":"Tabelas!B412","v":"Número de vias verticais exigidas na regulamentação"},null,null,null,null,null,{"$f":"IF(F144=\"\",Tabelas!B$12,\"\")","v":"Sem dados"}]
[null,null,null,null,{"$f":"Tabelas!B413","v":"Número de vias verticais que servem o local de risco"},null,null,null,null,null,{"$f":"IF(F145=\"\",Tabelas!B$12,\"\")","v":"Sem dados"}]
[null,null,{"$f":"Tabelas!A415","v":"3.3.2"},null,{"$f":"Tabelas!B415","v":"Larguras das vias verticais de evacuação"},null,{"$f":"IF(OR(G148=\"\",G149=\"\"),\"\",AVERAGE(G148,G149))","v":""},null,null,{"$f":"IF(OR(J118<1,J122<1,J123<1,J128<1,J129<1,J148<1,J149<1),Tabelas!C423,Tabelas!D423)","v":2.5},{"$f":"IF(G146=\"\",Tabelas!B$12,\"\")","v":"Sem dados"}]
[null,null,null,null,{"$f":"Tabelas!B417","v":"Efetivo da via vertical"},null,null,null,null,null,{"$f":"IF(F147=\"\",Tabelas!B$12,\"\")","v":"Sem dados"}]
[null,null,null,null,{"$f":"Tabelas!$B$418","v":"Largura medida da via vertical (m)"},null,{"$f":"IF(J148=\"\",\"\",IF(J148>J146,J146,J148))","v":""},null,null,{"$f":"IF(F142=\"\",\"\",IF(F142=Tabelas!B$373,1,IF(AND(F123=F124,F147<F122),\"\",IF(OR(F148=\"\",F150=\"\"),\"\",F148/F150))))","v":""},{"$f":"IF(F148=\"\",Tabelas!B$12,\"\")","v":"Sem dados"}]
[null,null,null,null,{"$f":"Tabelas!$B$420","v":"Largura medida do vão (m)"},null,{"$f":"IF(J149=\"\",\"\",IF(J149>J146,J146,J149))","v":""},null,null,{"$f":"IF(F142=\"\",\"\",IF(F142=Tabelas!B$373,1,IF(AND(F123=F124,F147<F122),\"\",IF(OR(F149=\"\",F151=\"\"),\"\",F149/F151))))","v":""},{"$f":"IF(F149=\"\",Tabelas!B$12,\"\")","v":"Sem dados"}]
[null,null,null,null,{"$f":"Tabelas!$B$419","v":"Largura de referência da via vertical (m)"},{"$f":"IF(F147=\"\",\"\",IF(F147<Tabelas!$B$354,Tabelas!$C$354,IF(F147<Tabelas!$B$355,Tabelas!$C$355,IF(F147<Tabelas!$B$356,Tabelas!$C$356,IF(F147<Tabelas!$B$357,Tabelas!$C$357,IF(F147<Tabelas!$B$358,Tabelas!$C$358,IF(F147<Tabelas!$B$359,Tabelas!$C$359,IF(F147<Tabelas!$B$360,Tabelas!$C$360,IF(F147<Tabelas!$B$361,Tabelas!$C$361,IF(F147<Tabelas!$B$362,Tabelas!$C$362,IF(F147<Tabelas!$B$363,Tabelas!$C$363,IF(F147<Tabelas!$B$364,Tabelas!$C$364,IF(F147<Tabelas!$B$365,Tabelas!$C$365,IF(F147<Tabelas!$B$366,Tabelas!$C$366,IF(F147<Tabelas!$B$367,Tabelas!$C$367,IF(F147<Tabelas!$B$368,Tabelas!$C$368,Tabelas!$C$369))))))))))))))))","v":""},null,null,null,{"$f":"IF(F147=\"\",\"\",IF(F147<Tabelas!$B$354,Tabelas!$D$354,IF(F147<Tabelas!$B$355,Tabelas!$D$355,IF(F147<Tabelas!$B$356,Tabelas!$D$356,IF(F147<Tabelas!$B$357,Tabelas!$D$357,IF(F147<Tabelas!$B$358,Tabelas!$D$358,IF(F147<Tabelas!$B$359,Tabelas!$D$359,IF(F147<Tabelas!$B$360,Tabelas!$D$360,IF(F147<Tabelas!$B$361,Tabelas!$D$361,IF(F147<Tabelas!$B$362,Tabelas!$D$362,IF(F147<Tabelas!$B$363,Tabelas!$D$363,IF(F147<Tabelas!$B$364,Tabelas!$D$364,IF(F147<Tabelas!$B$365,Tabelas!$D$365,IF(F147<Tabelas!$B$366,Tabelas!$D$366,IF(F147<Tabelas!$B$367,Tabelas!$D$367,IF(F147<Tabelas!$B$368,Tabelas!$D$368,Tabelas!$C$369))))))))))))))))","v":""},{"$f":"IF(F150=\"\",Tabelas!B$12,\"\")","v":"Sem dados"}]
[null,null,null,null,{"$f":"Tabelas!$B$421","v":"Largura de referência do vão (m)"},{"$f":"IF(F147=\"\",\"\",IF(F147<Tabelas!$B$354,Tabelas!$C$354,IF(F147<Tabelas!$B$355,Tabelas!$C$355,IF(F147<Tabelas!$B$356,Tabelas!$C$356,IF(F147<Tabelas!$B$357,Tabelas!$C$357,IF(F147<Tabelas!$B$358,Tabelas!$C$358,IF(F147<Tabelas!$B$359,Tabelas!$C$359,IF(F147<Tabelas!$B$360,Tabelas!$C$360,IF(F147<Tabelas!$B$361,Tabelas!$C$361,IF(F147<Tabelas!$B$362,Tabelas!$C$362,IF(F147<Tabelas!$B$363,Tabelas!$C$363,IF(F147<Tabelas!$B$364,Tabelas!$C$364,IF(F147<Tabelas!$B$365,Tabelas!$C$365,IF(F147<Tabelas!$B$366,Tabelas!$C$366,IF(F147<Tabelas!$B$367,Tabelas!$C$367,IF(F147<Tabelas!$B$368,Tabelas!$C$368,Tabelas!$C$369))))))))))))))))","v":""},null,null,null,{"$f":"IF(F147=\"\",\"\",IF(F147<Tabelas!$B$340,Tabelas!$D$340,IF(F147<Tabelas!$B$341,Tabelas!$D$341,IF(F147<Tabelas!$B$342,Tabelas!$D$342,IF(F147<Tabelas!$B$343,Tabelas!$D$343,IF(F147<Tabelas!$B$344,Tabelas!$D$344,IF(F147<Tabelas!$B$345,Tabelas!$D$345,IF(F147<Tabelas!$B$346,Tabelas!$D$346,IF(F147<Tabelas!$B$347,Tabelas!$D$347,IF(F147<Tabelas!$B$348,Tabelas!$D$348,IF(F147<Tabelas!$B$349,Tabelas!$D$349,IF(F147<Tabelas!$B$350,Tabelas!$D$350,Tabelas!$D$351))))))))))))","v":""},{"$f":"IF(F151=\"\",Tabelas!B$12,\"\")","v":"Sem dados"}]
[null,null,{"$f":"Tabelas!A425","v":"3.3.3"},null,{"$f":"Tabelas!B425","v":"Inclinação das vias verticais de evacuação (graus)"},null,{"$f":"IF(F152=\"\",\"\",IF(F152<27,1.5,IF(F152>60,0.3,0.001*F152^2-0.123*F152+4.132)))","v":""},null,null,null,{"$f":"IF(F152=\"\",Tabelas!B$12,\"\")","v":"Sem dados"}]
[null,null,{"$f":"Tabelas!A427","v":"3.3.4"},null,{"$f":"Tabelas!B427","v":"Piso em que se encontra a unidade de análise\n(diferença entre LR e saida para o exterior)"},null,{"$f":"IF(OR(G143=\"\",G146=\"\",G152=\"\"),\"\",IF(OR(G143<1,G146<1,G152<1), 1-(0.104*F153^2+ 0.417*F153)/100,1))","v":""},null,null,null,{"$f":"IF(F153=\"\",Tabelas!B$12,\"\")","v":"Sem dados"}]
[null,null,null,null,null,null,null,null,null," "]
[null,null,null,null,null,null,null,null,null," "]
[null,null,null,null,{"$f":"Tabelas!$B$4","v":"ARICA:2019"},{"$f":"$F$3","v":"Unidade de análise - "},{"$f":"$G$3","v":1},null,null," "]
[null,null,null,null,{"$f":"Tabelas!$B$70","v":"CONDIÇÕES INICIAIS"},null,null,null,null," ",{"$f":"IF(K175=\"\",Tabelas!B$10,Tabelas!B$9)","v":"Incompleto"},null,{"$f":"Tabelas!B$8","v":"Avisos"},null,{"$f":"Tabelas!$B$6","v":"Comentários (não não visíveis no relatório)"}]
[null,null,null,null,null,null,null,null,null," "]
[null,null,{"$f":"Tabelas!$A$432","v":"3.4"},null,{"$f":"Tabelas!$B$432","v":"Isolamento e proteção das vias de evacuação"},"Existem elementos com um escalão de tempo inferior ao exigido na regulamentação",{"$f":"IF(F159=\"\",\"\",IF(F159=Tabelas!$B$436,J160,VLOOKUP(F159,Tabelas!$B$433:$C$438,2,FALSE)))","v":""},null,null," ",{"$f":"IF(G159=\"\",Tabelas!B$12,\"\")","v":"Sem dados"}]
[null,null,null,null,{"$f":"Tabelas!$B$439","v":"Escalão de tempo estabelecido na regulamentação"},null,null,null,null,{"$f":"IF(OR(F160=\"\",F161=\"\"),\"\",IF(F160<=F161,\"\",1/(1+(0.0087*(F160-F161)/F160+0.05/F160)*100)))","v":""},{"$f":"IF(F160=\"\",Tabelas!B$12,\"\")","v":"Sem dados"},null,{"$f":"IF(J161=\"\",\"\",IF(J160>J161,Tabelas!B$13,IF(J160<J161,Tabelas!B$14,\"\")))","v":""}]
[null,null,null,null,{"$f":"Tabelas!$B$440","v":"Escalão de tempo do elemento mais condicionante "},null,null,null,null,null,{"$f":"IF(F161=\"\",Tabelas!B$12,\"\")","v":"Sem dados"},null,{"$f":"IF(F159=Tabelas!$B$436,IF(OR(F161=\"\",F160=\"\"),\"\",IF(F160<=F161,Tabelas!B$216,\"\")),\"\")","v":""}]
[null,null,{"$f":"Tabelas!$A$445","v":"3.5"},null,{"$f":"Tabelas!$B$445","v":"Controlo de fumo na unidade de análise"},null,{"$f":"IF(OR(F163=\"\",F164=\"\"),\"\",IF(AND(G163=\"-\",G164=\"-\"),\"-\",AVERAGE(G163:G164)))","v":""},null,null," ",{"$f":"IF(G162=\"\",Tabelas!B$12,\"\")","v":"Sem dados"}]
[null,null,{"$f":"Tabelas!A447","v":"3.5.1"},null,{"$f":"Tabelas!B447","v":"Controlo de fumo no local de risco"},null,{"$f":"IF(F163=\"\",\"\",VLOOKUP(F163,Tabelas!$B$448:$C$453,2,FALSE))","v":""},null,null,null,{"$f":"IF(G163=\"\",Tabelas!B$12,\"\")","v":"Sem dados"}]
[null,null,{"$f":"Tabelas!A455","v":"3.5.2"},null,{"$f":"Tabelas!B455","v":"Controlo de fumo nas vias de evacuação"},null,{"$f":"IF(F164=\"\",\"\",VLOOKUP(F164,Tabelas!$B$456:$C$461,2,FALSE))","v":""},null,null,null,{"$f":"IF(G164=\"\",Tabelas!B$12,\"\")","v":"Sem dados"}]
[null,null,{"$f":"Tabelas!$A$463","v":"3.6"},null,{"$f":"Tabelas!$B$463","v":"Sinalização de emergência na unidade de análise"},null,{"$f":"IF(OR(F166=\"\",F167=\"\"),\"\",IF(AND(G166=\"-\",G167=\"-\"),\"-\",AVERAGE(G166:G167)))","v":""},null,null," ",{"$f":"IF(G165=\"\",Tabelas!B$12,\"\")","v":"Sem dados"}]
[null,null,{"$f":"Tabelas!A465","v":"3.6.1"},null,{"$f":"Tabelas!B465","v":"Sinalização de emergência no local de risco"},null,{"$f":"IF(F166=\"\",\"\",VLOOKUP(F166,Tabelas!B467:C472,2,FALSE))","v":""},null,null,null,{"$f":"IF(G166=\"\",Tabelas!B$12,\"\")","v":"Sem dados"}]
[null,null,{"$f":"Tabelas!A474","v":"3.6.2"},null,{"$f":"Tabelas!B474","v":"Sinalização de emergência nas vias de evacuação"},null,{"$f":"IF(F167=\"\",\"\",VLOOKUP(F167,Tabelas!B476:C481,2,FALSE))","v":""},null,null,null,{"$f":"IF(G167=\"\",Tabelas!B$12,\"\")","v":"Sem dados"}]
[null,null,{"$f":"Tabelas!$A$483","v":"3.7"},null,{"$f":"Tabelas!$B$483","v":"Iluminação de emergência na unidade de análise"},null,{"$f":"IF(OR(F169=\"\",F170=\"\"),\"\",IF(AND(G169=\"-\",G170=\"-\"),\"-\",AVERAGE(G169:G170)))","v":""},null,null," ",{"$f":"IF(G168=\"\",Tabelas!B$12,\"\")","v":"Sem dados"}]
[null,null,{"$f":"Tabelas!A485","v":"3.7.1"},null,{"$f":"Tabelas!B485","v":"Iluminação de emergência no local de risco"},null,{"$f":"IF(F169=\"\",\"\",VLOOKUP(F169,Tabelas!B487:C492,2,FALSE))","v":""},null,null,null,{"$f":"IF(G169=\"\",Tabelas!B$12,\"\")","v":"Sem dados"}]
[null,null,{"$f":"Tabelas!A494","v":"3.7.2"},null,{"$f":"Tabelas!B494","v":"Iluminação de emergência nas vias de evacuação"},null,{"$f":"IF(F170=\"\",\"\",VLOOKUP(F170,Tabelas!B496:C501,2,FALSE))","v":""},null,null,null,{"$f":"IF(G170=\"\",Tabelas!B$12,\"\")","v":"Sem dados"}]
[null,null,{"$f":"Tabelas!$A$503","v":"3.8"},null,{"$f":"Tabelas!$B$503","v":"Equipas de segurança"},{"$f":"IF(F91=\"\",\"\",F91)","v":""},{"$f":"$G$91","v":""},null,null," ",{"$f":"IF(G171=\"\",Tabelas!B$12,\"\")","v":"Sem dados"},null,"(Igual a 2.6)"]
[null,null,{"$f":"Tabelas!$A$505","v":"3.9"},null,{"$f":"Tabelas!$B$505","v":"Deteção, alerta e alarme de incêndio"},{"$f":"IF(F92=\"\",\"\",F92)","v":""},{"$f":"$G$92","v":""},null,null," ",{"$f":"IF(G172=\"\",Tabelas!B$12,\"\")","v":"Sem dados"},null,"(Igual a 2.7)"]
[null,null,{"$f":"Tabelas!$A$513","v":"3.10"},null,{"$f":"Tabelas!$B$513","v":"Simulacros de evacuação "},null,{"$f":"IF(J173=\"\",\"\",IF(J173=\"-\",\"-\",IF(AND(OR(F91=\"\",F91=Tabelas!B$240,F91=Tabelas!B$241),OR(F173=Tabelas!B$508,F173=Tabelas!B$509)),\"\",J173)))","v":""},null,null,{"$f":"IF(F173=\"\",\"\",VLOOKUP(F173,Tabelas!B508:C511,2,FALSE))","v":""},{"$f":"IF(G173=\"\",Tabelas!B$12,\"\")","v":"Sem dados"},null,{"$f":"IF(AND(OR(F91=\"\",F91=Tabelas!B$240,F91=Tabelas!B$241),OR(F173=Tabelas!B$508,F173=Tabelas!B$509)),Tabelas!B518,\"\")","v":""}]
[]
[null,null,{"$f":"Tabelas!A521","v":"4."},null,{"$f":"Tabelas!B521","v":"Combate ao incêndio"},null,{"$f":"IF(OR(G176=\"\",G188=\"\",G189=\"\"),\"\",IF(AND(G176=\"-\",G188=\"-\",G189=\"-\"),\"-\",AVERAGE(G176,G188,G189)))","v":""},null,null," ",{"$f":"IF(G175=\"\",Tabelas!B$12,\"\")","v":"Sem dados"}]
[null,null,{"$f":"Tabelas!A522","v":"4.1"},null,{"$f":"Tabelas!B522","v":"Acessibilidade e meios de intervenção não automáticos"},null,{"$f":"IF(OR(G177=\"\",G178=\"\",G181=\"\",G182=\"\",G187=\"\"),\"\",IF(AND(G177=\"-\",G178=\"-\",G181=\"-\",G182=\"-\",G187=\"-\"),\"-\",AVERAGE(G177,G178,G181,G182,G187)))","v":""},null,null," ",{"$f":"IF(G176=\"\",Tabelas!B$12,\"\")","v":"Sem dados"}]
[null,null,{"$f":"Tabelas!A523","v":"4.1.1"},null,{"$f":"Tabelas!B523","v":"Acessibilidade ao edifício"},null,{"$f":"IF(F177=\"\",\"\",VLOOKUP(F177,Tabelas!B524:$C$527,2,FALSE))","v":""},null,null," ",{"$f":"IF(G177=\"\",Tabelas!B$12,\"\")","v":"Sem dados"}]
[null,null,{"$f":"Tabelas!A529","v":"4.1.2"},null,{"$f":"Tabelas!B529","v":"Hidrantes exteriores"},null,{"$f":"IF(F178=\"\",\"\",IF(F178=Tabelas!$B$533,J180,VLOOKUP(F178,Tabelas!$B$530:$C$534,2,FALSE)))","v":""},null,null," ",{"$f":"IF(G178=\"\",Tabelas!B$12,\"\")","v":"Sem dados"},null,{"$f":"IF(F178=Tabelas!$B$533,IF(J180=\"\",\"\",IF(J179>J180,Tabelas!B$13,IF(J179<J180,Tabelas!B$14,\"\"))),\"\")","v":""}]
[null,null,null,null,{"$f":"Tabelas!B535","v":"Distância regulamentar entre um hidrante exterior e qualquer das saídas do edifício (m)"},null,null,null,null,{"$f":"IF(OR(F180=\"\", F180=0,F179=\"\",F179=0),\"\",F179/F180)","v":""},{"$f":"IF(F179=\"\",Tabelas!B$12,\"\")","v":"Sem dados"}]
[null,null,null,null,{"$f":"Tabelas!B536","v":"Menor distância entre um hidrante exterior e qualquer das saídas do edifício (m)"},null,null,null,null,{"$f":"IF(OR(J179=\"\", J179=0),\"\",(IF(J179<Tabelas!$C$537,Tabelas!$C$537,IF(J179>Tabelas!$C$538,Tabelas!$C$538,J179))))","v":""},{"$f":"IF(F180=\"\",Tabelas!B$12,\"\")","v":"Sem dados"}]
[null,null,{"$f":"Tabelas!A540","v":"4.1.3"},null,{"$f":"Tabelas!B540","v":"Redes secas ou húmidas"},null,{"$f":"IF(F181=\"\",\"\",VLOOKUP(F181,Tabelas!$B$541:$C$544,2,FALSE))","v":""},null,null," ",{"$f":"IF(G181=\"\",Tabelas!B$12,\"\")","v":"Sem dados"}]
[null,null,{"$f":"Tabelas!A546","v":"4.1.4"},null,{"$f":"Tabelas!B546","v":"Extintores"},null,{"$f":"IF(F182=\"\",\"\",IF(F182=Tabelas!$B$551,J184,VLOOKUP(F182,Tabelas!$B$547:C552,2,FALSE)))","v":""},null,null," ",{"$f":"IF(G182=\"\",Tabelas!B$12,\"\")","v":"Sem dados"},null,{"$f":"IF(F182=Tabelas!$B$551,IF(J184=\"\",\"\",IF(J183>J184,Tabelas!B$13,IF(J183<J184,Tabelas!B$14,\"\"))),\"\")","v":""}]
[null,null,null,null,{"$f":"Tabelas!B553","v":"Número total de extintores necessários para cumprir as exigências da regulamentação"},null,null,null,null,{"$f":"IF(OR(F183=\"\",F184=\"\",F185=\"\",F186=\"\"),\"\",F184/F183*F186/F185*0.2+0.8)","v":""},{"$f":"IF(F183=\"\",Tabelas!B$12,\"\")","v":"Sem dados"}]
[null,null,null,null,{"$f":"Tabelas!B554","v":"Número total de extintores existentes na UA"},null,null,null,null,{"$f":"IF(J183=\"\",\"\",IF(J183<Tabelas!$C$557,Tabelas!$C$557,IF(J183>Tabelas!$C$558,Tabelas!$C$558,J183)))","v":""},{"$f":"IF(F184=\"\",Tabelas!B$12,\"\")","v":"Sem dados"}]
[null,null,null,null,{"$f":"Tabelas!B555","v":"Quantidade total de agente extintor exigido na regulament. (l)"},null,null,null,null,null,{"$f":"IF(F185=\"\",Tabelas!B$12,\"\")","v":"Sem dados"}]
[null,null,null,null,{"$f":"Tabelas!B556","v":"Quantidade total de agente extintor existente na UA (l)"},null,null,null,null,null,{"$f":"IF(F186=\"\",Tabelas!B$12,\"\")","v":"Sem dados"}]
[null,null,{"$f":"Tabelas!A560","v":"4.1.5"},null,{"$f":"Tabelas!B560","v":"Redes de incêndio armadas"},null,{"$f":"IF(F187=\"\",\"\",VLOOKUP(F187,Tabelas!$B$561:$C$564,2,FALSE))","v":""},null,null," ",{"$f":"IF(G187=\"\",Tabelas!B$12,\"\")","v":"Sem dados"}]
[null,null,{"$f":"Tabelas!A566","v":"4.2"},null,{"$f":"Tabelas!B566","v":"Meios de extinção automáticos"},null,{"$f":"IF(J188=\"\",\"\",IF(J188=\"-\",\"-\",IF(AND(OR(F91=\"\",F91=Tabelas!B$240,F91=Tabelas!B$241),OR(F188=Tabelas!B$567,F188=Tabelas!B$568,F188=Tabelas!B$569)),\"\",J188)))","v":""},null,null,{"$f":"IF(F188=\"\",\"\",VLOOKUP(F188,Tabelas!$B$567:$C$571,2,FALSE))","v":""},{"$f":"IF(G188=\"\",Tabelas!B$12,\"\")","v":"Sem dados"},null,{"$f":"IF(OR(F91=\"\",F91=Tabelas!B247,F91=Tabelas!B246),Tabelas!B572,\"\")","v":"Apenas se considera que a UA dispõe um sistema de extinção, se existir uma equipa de segurança ou um contrato de prestação de serviços para manutenção do sistema"}]
[null,null,{"$f":"Tabelas!A575","v":"4.3"},null,{"$f":"Tabelas!B575","v":"Equipas de segurança"},{"$f":"IF(F91=\"\",\"\",F91)","v":""},{"$f":"G91","v":""},null,null," ",{"$f":"IF(G189=\"\",Tabelas!B$12,\"\")","v":"Sem dados"},null,{"$f":"M171","v":"(Igual a 2.6)"}]

{"sheet":"1-Proj","index":4,"n_rows":240,"n_cols":15,"rows_kept":240,"cut":false,"hidden":false,"merged":[[199,4,199,6],[2,6,3,6],[64,6,65,6],[101,6,102,6],[155,6,156,6],[191,6,192,6],[223,4,223,6],[200,4,200,6],[203,4,203,6],[204,4,204,6],[207,4,207,6],[208,4,208,6],[211,4,211,6],[212,4,212,6],[215,4,215,6],[216,4,216,6],[219,4,219,6],[220,4,220,6],[236,4,236,6],[239,4,239,6],[240,4,240,6],[224,4,224,6],[227,4,227,6],[228,4,228,6],[231,4,231,6],[232,4,232,6],[235,4,235,6]]}
[]
[]
[null,null,null,null,{"$f":"Tabelas!$B$4","v":"ARICA:2019"},{"$f":"Tabelas!B69&\" - \"&Capa!G26","v":"Unidade de análise - "},1]
[null,null,null,null,{"$f":"Tabelas!$B$72","v":"CONDIÇÕES DE PROJETO"},null,null,null,null,null,null,null,null,null,{"$f":"Tabelas!$B$6","v":"Comentários (não não visíveis no relatório)"}]
[]
[null,null,null,null,{"$f":"Tabelas!B75","v":"Carateristicas da unidade"}]
[null,null,null,null,{"$f":"Tabelas!$B$77","v":"Tipo de local de risco"}]
[null,null,null,null,{"$f":"Tabelas!$B$91","v":"Utilização tipo"}]
[null,null,null,null,{"$f":"Tabelas!B85","v":"Categoria de risco"}]
[]
[null,null,null,null,{"$f":"Tabelas!B105","v":"Resumo"}]
[null,null,{"$f":"Tabelas!A109","v":"1."},null,{"$f":"Tabelas!B109","v":"Início do incêndio"},null,{"$f":"G68","v":""}]
[null,null,null,null,{"$f":"IF(OR(G13=\"\",G13=\"-\"),\"-\",F13)","v":"-"},{"$f":"Tabelas!$B$111","v":"Anomalias que podem provocar um incêndio"},{"$f":"G69","v":""}]
[null,null,null,null,{"$f":"IF(OR(G14=\"\",G14=\"-\"),\"-\",F14)","v":"-"},{"$f":"Tabelas!$B$117","v":"Instalações técnicas"},{"$f":"G70","v":""}]
[]
[null,null,{"$f":"Tabelas!A154","v":"2."},null,{"$f":"Tabelas!B154","v":"Desenvolvimento e propagação do incêndio"},null,{"$f":"G79","v":""}]
[null,null,null,null,{"$f":"IF(OR(G17=\"\",G17=\"-\"),\"-\",F17)","v":"-"},{"$f":"Tabelas!$B$156","v":"Materiais de revestimento do local de risco"},{"$f":"G80","v":""}]
[null,null,null,null,{"$f":"IF(OR(G18=\"\",G18=\"-\"),\"-\",F18)","v":"-"},{"$f":"Tabelas!$B177","v":"Materiais de revestimento das vias de evacuação"},{"$f":"G83","v":""}]
[null,null,null,null,{"$f":"IF(OR(G19=\"\",G19=\"-\"),\"-\",F19)","v":"-"},{"$f":"Tabelas!$B$198","v":"Isolamento e proteção do local de risco"},{"$f":"G86","v":""}]
[null,null,null,null,"-",{"$f":"Tabelas!$B$221","v":"Compartimentação geral corta-fogo da área de intervenção"},{"$f":"G89","v":""}]
[null,null,null,null,"-",{"$f":"Tabelas!B226","v":"Isolamento e proteção entre utilizações-tipo distintas"},{"$f":"G90","v":""}]
[null,null,null,null,"-",{"$f":"Tabelas!$B$236","v":"Equipas de segurança"},{"$f":"G91","v":""}]
[null,null,null,null,"-",{"$f":"Tabelas!$B$249","v":"Deteção, alerta e alarme de incêndio"},{"$f":"G92","v":""}]
[null,null,null,null,"-",{"$f":"Tabelas!$B$266","v":"Propagação pelo exterior"},{"$f":"G95","v":""}]
[]
[null,null,{"$f":"Tabelas!A294","v":"3."},null,{"$f":"Tabelas!B294","v":"Evacuação em caso de incêndio"},null,{"$f":"G105","v":""}]
[null,null,null,null,{"$f":"IF(OR(G27=\"\",G27=\"-\"),\"-\",F27)","v":"-"},{"$f":"Tabelas!$B$301","v":"Saídas do local de risco"},{"$f":"G106","v":""}]
[null,null,null,null,{"$f":"IF(OR(G28=\"\",G28=\"-\"),\"-\",F28)","v":"-"},{"$f":"Tabelas!$B$330","v":"Dimensões dos locais e das vias horizontais de evacuação"},{"$f":"G114","v":""}]
[null,null,null,null,{"$f":"IF(OR(G29=\"\",G29=\"-\"),\"-\",F29)","v":"-"},{"$f":"Tabelas!$B$407","v":"Dimensões das vias verticais de evacuação"},{"$f":"G142","v":""}]
[null,null,null,null,"-",{"$f":"Tabelas!$B$432","v":"Isolamento e proteção das vias de evacuação"},{"$f":"G159","v":""}]
[null,null,null,null,"-",{"$f":"Tabelas!$B$445","v":"Controlo de fumo na unidade de análise"},{"$f":"G162","v":""}]
[null,null,null,null,"-",{"$f":"Tabelas!$B$463","v":"Sinalização de emergência na unidade de análise"},{"$f":"G165","v":""}]
[null,null,null,null,"-",{"$f":"Tabelas!$B$483","v":"Iluminação de emergência na unidade de análise"},{"$f":"G168","v":""}]
[null,null,null,null,"-",{"$f":"Tabelas!$B$503","v":"Equipas de segurança"},{"$f":"G171","v":""}]
[null,null,null,null,"-",{"$f":"Tabelas!$B$505","v":"Deteção, alerta e alarme de incêndio"},{"$f":"G172","v":""}]
[null,null,null,null,"-",{"$f":"Tabelas!$B$513","v":"Simulacros de evacuação "},{"$f":"G173","v":""}]
[]
[null,null,{"$f":"Tabelas!A521","v":"4."},null,{"$f":"Tabelas!B521","v":"Combate ao incêndio"},null,{"$f":"G175","v":""}]
[null,null,null,null,{"$f":"IF(OR(G39=\"\",G39=\"-\"),\"-\",F39)","v":"-"},{"$f":"Tabelas!$B$522","v":"Acessibilidade e meios de intervenção não automáticos"},{"$f":"G176","v":""}]
[null,null,null,null,{"$f":"IF(OR(G40=\"\",G40=\"-\"),\"-\",F40)","v":"-"},{"$f":"Tabelas!$B$566","v":"Meios de extinção automáticos"},{"$f":"G188","v":""}]
[null,null,null,null,{"$f":"IF(OR(G41=\"\",G41=\"-\"),\"-\",F41)","v":"-"},{"$f":"Tabelas!$B$575","v":"Equipas de segurança"},{"$f":"G189","v":""}]
[]
[null,null,null,null,{"$f":"Tabelas!B54","v":"Índice de segurança ao incêndio "},null,{"$f":"IF(OR(G12=\"\",G16=\"\",G26=\"\",G38=\"\"),0,AVERAGE(G12,G16,G26,G38))","v":0}]
[]
[]
[]
[]
[]
[]
[]
[]
[]
[]
[]
[]
[]
[]
[]
[]
[]
[]
[]
[]
[]
[null,null,null,null,{"$f":"Tabelas!$B$4","v":"ARICA:2019"},{"$f":"$F$3","v":"Unidade de análise - "},{"$f":"$G$3","v":1}]
[null,null,null,null,{"$f":"Tabelas!$B$72","v":"CONDIÇÕES DE PROJETO"},null,null,null,null,null,{"$f":"IF(AND(K68=\"\",K79=\"\"),Tabelas!B$10,Tabelas!B$9)","v":"Incompleto"},null,{"$f":"Tabelas!B$8","v":"Avisos"},null,{"$f":"Tabelas!$B$6","v":"Comentários (não não visíveis no relatório)"}]
[]
[null,null,{"$f":"Tabelas!A109","v":"1."},null,{"$f":"Tabelas!B109","v":"Início do incêndio"},null,{"$f":"IF(OR(G69=\"\",G70=\"\"),\"\",AVERAGE(G69,G70))","v":""},null,null," ",{"$f":"IF(G68=\"\",Tabelas!B$12,\"\")","v":"Sem dados"}]
[null,null,{"$f":"Tabelas!A111","v":"1.1"},null,{"$f":"Tabelas!B111","v":"Anomalias que podem provocar um incêndio"},null,{"$f":"IF(F69=\"\",\"\",VLOOKUP(F69,Tabelas!B112:C115,2,FALSE))","v":""},null,null," ",{"$f":"IF(F69=\"\",Tabelas!B$12,\"\")","v":"Sem dados"}]
[null,null,{"$f":"Tabelas!A117","v":"1.2"},null,{"$f":"Tabelas!B117","v":"Instalações técnicas"},null,{"$f":"IF(J78=0,\"-\",IF(J78=\"\",\"\",MIN(G71:G77)-(0.0213*(SUM(G71:G77)-MIN(G71:G77)))))","v":""},null,null," ",{"$f":"IF(G70=\"\",Tabelas!B$12,\"\")","v":"Sem dados"}]
[null,null,{"$f":"Tabelas!A119","v":"1.2.1"},null,{"$f":"Tabelas!B119","v":"Instalações elétricas"},null,{"$f":"IF(F71=\"\",\"\",VLOOKUP(F71,Tabelas!B120:C122,2,FALSE))","v":""},null,null," ",{"$f":"IF(F71=\"\",Tabelas!B$12,\"\")","v":"Sem dados"}]
[null,null,{"$f":"Tabelas!A124","v":"1.2.2"},null,{"$f":"Tabelas!B124","v":"Instalações de gás"},null,{"$f":"IF(F72=\"\",\"\",VLOOKUP(F72,Tabelas!B125:C127,2,FALSE))","v":""},null,null," ",{"$f":"IF(F72=\"\",Tabelas!B$12,\"\")","v":"Sem dados"}]
[null,null,{"$f":"Tabelas!A129","v":"1.2.3"},null,{"$f":"Tabelas!B129","v":"Instalações de aquecimento – Centrais térmicas"},null,{"$f":"IF(F73=\"\",\"\",VLOOKUP(F73,Tabelas!B130:C132,2,FALSE))","v":""},null,null," ",{"$f":"IF(F73=\"\",Tabelas!B$12,\"\")","v":"Sem dados"}]
[null,null,{"$f":"Tabelas!A134","v":"1.2.4"},null,{"$f":"Tabelas!B134","v":"Instalações de aquecimento – Aparelhagem"},null,{"$f":"IF(F74=\"\",\"\",VLOOKUP(F74,Tabelas!B135:C137,2,FALSE))","v":""},null,null," ",{"$f":"IF(F74=\"\",Tabelas!B$12,\"\")","v":"Sem dados"}]
[null,null,{"$f":"Tabelas!A139","v":"1.2.5"},null,{"$f":"Tabelas!B139","v":"Instalações de confeção e conservação de alimentos"},null,{"$f":"IF(F75=\"\",\"\",VLOOKUP(F75,Tabelas!B140:C142,2,FALSE))","v":""},null,null," ",{"$f":"IF(F75=\"\",Tabelas!B$12,\"\")","v":"Sem dados"}]
[null,null,{"$f":"Tabelas!A144","v":"1.2.6"},null,{"$f":"Tabelas!B144","v":"Instalações de evacuação de efluentes de combustão"},null,{"$f":"IF(F76=\"\",\"\",VLOOKUP(F76,Tabelas!B140:C142,2,FALSE))","v":""},null,null," ",{"$f":"IF(F76=\"\",Tabelas!B$12,\"\")","v":"Sem dados"}]
[null,null,{"$f":"Tabelas!A149","v":"1.2.7"},null,{"$f":"Tabelas!B149","v":"Instalações de ventilação e condicionamento de ar"},null,{"$f":"IF(F77=\"\",\"\",VLOOKUP(F77,Tabelas!B150:C152,2,FALSE))","v":""},null,null," ",{"$f":"IF(F77=\"\",Tabelas!B$12,\"\")","v":"Sem dados"}]
[null,null,null,null,null,null,null,null,null,{"$f":"IF(OR(G71=\"\",G72=\"\",G73=\"\",G74=\"\",G75=\"\",G76=\"\",G77=\"\"),\"\",7-COUNTIF(G71:G77,Tabelas!C122))","v":""}]
[null,null,{"$f":"Tabelas!A154","v":"2."},null,{"$f":"Tabelas!B154","v":"Desenvolvimento e propagação do incêndio"},null,{"$f":"IF(OR(G80=\"\",G83=\"\",G86=\"\",G89=\"\",G90=\"\",G91=\"\",G92=\"\",G95=\"\"),\"\",IF(AND(G80=\"-\",G83=\"-\",G86=\"-\",G89=\"-\",G90=\"-\",G91=\"-\",G92=\"-\",G95=\"-\"),\"-\",AVERAGE(G80,G83,G86,G89,G90,G91,G92,G95)))","v":""},null,null," ",{"$f":"IF(G79=\"\",Tabelas!B$12,\"\")","v":"Sem dados"}]
[null,null,{"$f":"Tabelas!A156","v":"2.1"},null,{"$f":"Tabelas!B156","v":"Materiais de revestimento do local de risco"},null,{"$f":"IF(OR(G81=\"\",G82=\"\"),\"\",IF(AND(G81=\"-\",G82=\"-\"),\"-\",IF(AND(OR(F81=Tabelas!B170,F82=Tabelas!B183),Capa!F16<>Tabelas!C47), \"\", MIN(G81,G82))))","v":""},null,null," ",{"$f":"IF(G80=\"\",Tabelas!B$12,\"\")","v":"Sem dados"},null,{"$f":"IF(OR(F81=Tabelas!B162,F82=Tabelas!B170), Tabelas!B173,\"\")","v":""}]
[null,null,{"$f":"Tabelas!A158","v":"2.1.1"},null,{"$f":"Tabelas!B158","v":"Classe de reação ao fogo dos revestimentos interiores das paredes e tetos"},null,{"$f":"IF(F81=\"\",\"\",VLOOKUP(F81,Tabelas!B159:C164,2,FALSE))","v":""},null,null,null,{"$f":"IF(F81=\"\",Tabelas!B$12,\"\")","v":"Sem dados"}]
[null,null,{"$f":"Tabelas!A166","v":"2.1.2"},null,{"$f":"Tabelas!B166","v":"Classe de reação ao fogo dos revestimentos interiores dos pavimentos"},null,{"$f":"IF(F82=\"\",\"\",VLOOKUP(F82,Tabelas!B167:C172,2,FALSE))","v":""},null,null,null,{"$f":"IF(F82=\"\",Tabelas!B$12,\"\")","v":"Sem dados"}]
[null,null,{"$f":"Tabelas!A177","v":"2.2"},null,{"$f":"Tabelas!B177","v":"Materiais de revestimento das vias de evacuação"},null,{"$f":"IF(OR(G84=\"\",G85=\"\"),\"\",IF(AND(G84=\"-\",G85=\"-\"),\"-\",IF(AND(OR(F84=Tabelas!B183,F85=Tabelas!B191),Capa!F16<>Tabelas!C47), \"\", MIN(G84,G85))))","v":""},null,null," ",{"$f":"IF(G83=\"\",Tabelas!B$12,\"\")","v":"Sem dados"},null,{"$f":"IF(OR(F84=Tabelas!B183,F85=Tabelas!B191), Tabelas!B194,\"\")","v":""}]
[null,null,{"$f":"Tabelas!A179","v":"2.2.1"},null,{"$f":"Tabelas!B179","v":"Classe de reação ao fogo dos revestimentos interiores das paredes e tetos"},null,{"$f":"IF(F84=\"\",\"\",VLOOKUP(F84,Tabelas!B180:C185,2,FALSE))","v":""},null,null," ",{"$f":"IF(F84=\"\",Tabelas!B$12,\"\")","v":"Sem dados"}]
[null,null,{"$f":"Tabelas!A187","v":"2.2.2"},null,{"$f":"Tabelas!B187","v":"Classe de reação ao fogo dos revestimentos interiores dos pavimentos"},null,{"$f":"IF(F85=\"\",\"\",VLOOKUP(F85,Tabelas!B188:C193,2,FALSE))","v":""},null,null," ",{"$f":"IF(F85=\"\",Tabelas!B$12,\"\")","v":"Sem dados"}]
[null,null,{"$f":"Tabelas!A198","v":"2.3"},null,{"$f":"Tabelas!B198","v":"Isolamento e proteção do local de risco"},null,{"$f":"IF(F86=\"\",\"\",IF(F86=Tabelas!B202,J87,IF(AND(F86=Tabelas!B201, Capa!F16<>4),\"\",VLOOKUP(F86,Tabelas!B199:C203,2,FALSE))))","v":""},null,null,null,{"$f":"IF(F86=\"\",Tabelas!B$12,\"\")","v":"Sem dados"},null,{"$f":"IF(F86=Tabelas!B201,Tabelas!B217,\"\")","v":""}]
[null,null,null,null,{"$f":"Tabelas!B214","v":"Escalão de tempo exigido na regulamentação"},null,null,null,null,{"$f":"IF(OR(F87=\"\",F88=\"\"),\"\",IF(F87<=F88,\"\",1/(1+(0.0087*(F87-F88)/F87+0.05/F87)*100)))","v":""},{"$f":"IF(F87=\"\",Tabelas!B$12,\"\")","v":"Sem dados"}]
[null,null,null,null,{"$f":"Tabelas!B215","v":"Escalão de tempo do elemento mais condicionante"},null,null,null,null,null,{"$f":"IF(F88=\"\",Tabelas!B$12,\"\")","v":"Sem dados"},null,{"$f":"IF(OR(F88=\"\",F87=\"\"),\"\",IF(F87<=F88,Tabelas!B$216,\"\"))","v":""}]
[null,null,{"$f":"Tabelas!A221","v":"2.4"},null,{"$f":"Tabelas!B221","v":"Compartimentação geral corta-fogo da área de intervenção"},null,{"$f":"IF(F89=\"\",\"\",VLOOKUP(F89,Tabelas!B222:C224,2,FALSE))","v":""},null,null," ",{"$f":"IF(F89=\"\",Tabelas!B$12,\"\")","v":"Sem dados"}]
[null,null,{"$f":"Tabelas!A226","v":"2.5"},null,{"$f":"Tabelas!B226","v":"Isolamento e proteção entre utilizações-tipo distintas"},null,{"$f":"IF(F90=\"\",\"\",IF(AND(F90=Tabelas!B229,Capa!F16<>Tabelas!$C$47),\"\",VLOOKUP(F90,Tabelas!B227:C231,2,FALSE)))","v":""},null,null,null,{"$f":"IF(F90=\"\",Tabelas!B$12,\"\")","v":"Sem dados"},null,{"$f":"IF(OR(F90=Tabelas!B229), Tabelas!B232,\"\")","v":""}]
[null,null,{"$f":"Tabelas!A236","v":"2.6"},null,{"$f":"Tabelas!B236","v":"Equipas de segurança"},null,{"$f":"IF(F91=\"\",\"\",VLOOKUP(F91,Tabelas!B244:C247,2,FALSE))","v":""},null,null,null,{"$f":"IF(F91=\"\",Tabelas!B$12,\"\")","v":"Sem dados"}]
[null,null,{"$f":"Tabelas!A249","v":"2.7"},null,{"$f":"Tabelas!B249","v":"Deteção, alerta e alarme de incêndio"},null,{"$f":"IF(F92=\"\",\"\",IF(F92=Tabelas!B257,J94,VLOOKUP(F92,Tabelas!B250:C258,2,FALSE)))","v":""},null,null,null,{"$f":"IF(F92=\"\",Tabelas!B$12,\"\")","v":"Sem dados"},null,{"$f":"IF(OR(F91=\"\",F91=Tabelas!B247,F91=Tabelas!B246),Tabelas!B263,\"\")","v":"Apenas se considera que a UA dispõe um sistema de deteção de incêndio, se estiver prevista a constituição de uma equipa de segurança ou a celebração de um contrato de prestação de serviços para manutenção do sistema"}]
[null,null,null,null,{"$f":"Tabelas!B259","v":"Número de locais onde a regulamentação exige sistema de deteção de incêndio"},null,null,null,null,{"$f":"IF(OR(F93=\"\",F94=\"\"),\"\",(F94/F93)/2+0.5)","v":""},{"$f":"IF(F93=\"\",Tabelas!B$12,\"\")","v":"Sem dados"}]
[null,null,null,null,{"$f":"Tabelas!B260","v":"Número de locais onde existe sistema de deteção de incêndio"},null,null,null,null,{"$f":"IF(J93=\"\",\"\",IF(J93<Tabelas!C261,Tabelas!C261,IF(J93>Tabelas!C262,Tabelas!C262,J93)))","v":""},{"$f":"IF(F94=\"\",Tabelas!B$12,\"\")","v":"Sem dados"},null,{"$f":"IF(J94=\"\",\"\",IF(J93>J94,Tabelas!B$13,IF(J93<J94,Tabelas!B$14,\"\")))","v":""}]
[null,null,{"$f":"Tabelas!A266","v":"2.8"},null,{"$f":"Tabelas!B266","v":"Propagação pelo exterior"},null,{"$f":"IF(OR(G96=\"\",G97=\"\"),\"\",IF(AND(G96=\"-\",G97=\"-\"),\"-\",AVERAGE(G96,G97)))","v":""},null,null,null,{"$f":"IF(G95=\"\",Tabelas!B$12,\"\")","v":"Sem dados"}]
[null,null,{"$f":"Tabelas!A268","v":"2.8.1"},null,{"$f":"Tabelas!B268","v":"Materiais de revestimento exteriores"},null,{"$f":"IF(F96=\"\",\"\",IF(OR(F96=Tabelas!B269,F96=Tabelas!B270,F96=Tabelas!B272, AND(F96=Tabelas!B271,Capa!F16=Tabelas!C47)),VLOOKUP(F96,Tabelas!B269:C272,2,FALSE),\"\"))","v":""},null,null,null,{"$f":"IF(F96=\"\",Tabelas!B$12,\"\")","v":"Sem dados"},null,{"$f":"IF(F96=Tabelas!B271,Tabelas!B277,\"\")","v":""}]
[null,null,{"$f":"Tabelas!A281","v":"2.8.2"},null,{"$f":"Tabelas!B281","v":"Afastamento de vãos das fachadas"},null,{"$f":"IF(F97=\"\",\"\",IF(F97=Tabelas!B283,J99,VLOOKUP(F97,Tabelas!B282:C285,2,FALSE)))","v":""},null,null,null,{"$f":"IF(F97=\"\",Tabelas!B$12,\"\")","v":"Sem dados"}]
[null,null,null,null,{"$f":"Tabelas!B287","v":"Afastamento regulamentar entre vãos\nna mesma prumada (m)"},null,null,null,null,{"$f":"IF(OR(F99=\"\",F98=\"\"),\"\",F99/F98)","v":""},{"$f":"IF(F98=\"\",Tabelas!B$12,\"\")","v":"Sem dados"}]
[null,null,null,null,{"$f":"Tabelas!B288","v":"Menor afastamento existente entre vãos\nna mesma prumada (m)"},null,null,null,null,{"$f":"IF(J98=\"\",\"\",IF(J98<Tabelas!C289,Tabelas!C289,IF(J98>Tabelas!C290,Tabelas!C290,J98)))","v":""},{"$f":"IF(F99=\"\",Tabelas!B$12,\"\")","v":"Sem dados"},null,{"$f":"IF(J99=\"\",\"\",IF(J98>J99,Tabelas!B$13,IF(J98<J99,Tabelas!B$14,\"\")))","v":""}]
[null,null,null,null,null,null,null,null,null," "]
[null,null,null,null,null,null,null,null,null," "]
[null,null,null,null,{"$f":"Tabelas!$B$4","v":"ARICA:2019"},{"$f":"$F$3","v":"Unidade de análise - "},{"$f":"$G$3","v":1},null,null," "]
[null,null,null,null,{"$f":"Tabelas!$B$72","v":"CONDIÇÕES DE PROJETO"},null,null,null,null," ",{"$f":"IF(K105=\"\",Tabelas!B$10,Tabelas!B$9)","v":"Incompleto"},null,{"$f":"Tabelas!B$8","v":"Avisos"},null,{"$f":"Tabelas!$B$6","v":"Comentários (não não visíveis no relatório)"}]
[null,null,null,null,null,null,null,null,null,{"$f":"IF(J105=\"\",\"\",IF(J105=\"-\",\"-\",IF(J105<Tabelas!$C$295,Tabelas!$C$295,IF(J105>Tabelas!$C$296,Tabelas!$C$296,J105))))","v":""}]
[null,null,{"$f":"Tabelas!$A$294","v":"3."},null,{"$f":"Tabelas!$B$294","v":"Evacuação em caso de incêndio"},null,{"$f":"IF(J104=\"\",\"\",IF(J104=\"-\",\"-\",IF(OR(J104>=0.75,AND(J104<0.75,Capa!F16=Tabelas!C47)),J104,\"\")))","v":""},null,null,{"$f":"IF(OR(G106=\"\",G114=\"\",G142=\"\",G159=\"\",G162=\"\",G165=\"\",G168=\"\",G171=\"\",G172=\"\",G173=\"\"),\"\",IF(AND(G106=\"-\",G114=\"-\",G142=\"-\",G159=\"-\",G162=\"-\",G165=\"-\",G168=\"-\",G171=\"-\",G172=\"-\",G173=\"-\"),\"-\",IF(AND(G159=\"-\",G162=\"-\",G165=\"-\",G168=\"-\",G171=\"-\",G172=\"-\",G173=\"-\"),AVERAGE(G106,G114,G142),AVERAGE(G106,G114,G142,AVERAGE(G159,G162,G165,G168,G171,G172,G173)))))","v":""},{"$f":"IF(G105=\"\",Tabelas!B$12,\"\")","v":"Sem dados"},null,{"$f":"IF(J104<0.75,Tabelas!B297,IF(G105=\"\",\"\",IF(J105>G105,Tabelas!B$13,IF(J105<G105,Tabelas!B$14,\"\"))))","v":""}]
[null,null,"3.1",null,{"$f":"Tabelas!$B$301","v":"Saídas do local de risco"},null,{"$f":"IF(J106=\"\",\"\",IF(J106=\"-\",\"-\",IF(J106<Tabelas!$C$302,Tabelas!$C$302,IF(J106>Tabelas!$C$303,Tabelas!$C$303,J106))))","v":""},null,null,{"$f":"IF(G107=\"-\",\"-\",IF(OR(G107=\"\",G110=\"\"),\"\",G107*G110))","v":""},{"$f":"IF(G106=\"\",Tabelas!B$12,\"\")","v":"Sem dados"},null,{"$f":"IF(G106=\"\",\"\",IF(J106>G106,Tabelas!B$13,IF(J106<G106,Tabelas!B$14,\"\")))","v":""}]
[null,null,{"$f":"Tabelas!$A$305","v":"3.1.1"},null,{"$f":"Tabelas!$B$305","v":"Número de saídas do local de risco"},null,{"$f":"IF(F107=\"\",\"\",IF(AND(F107=Tabelas!B309,Capa!F16<>Tabelas!C47),\"\",IF(F107=Tabelas!B306,J109,VLOOKUP(F107,Tabelas!$B$307:$C$310,2,FALSE))))","v":""},null,null,null,{"$f":"IF(F107=\"\",Tabelas!B$12,\"\")","v":"Sem dados"},null,{"$f":"IF(F107=Tabelas!B309,Tabelas!B317,\"\")","v":""}]
[null,null,null,null,{"$f":"Tabelas!B311","v":"Número de saídas do LR exigidas na regulamentação"},null,null,null,null,{"$f":"IF(OR(F108=\"\",F109=\"\"),\"\",IF(F108>=F109,\"\",1+(F109-F108)*0.15))","v":""},{"$f":"IF(F108=\"\",Tabelas!B$12,\"\")","v":"Sem dados"}]
[null,null,null,null,{"$f":"Tabelas!B312","v":"Número de saídas do LR"},null,null,null,null,{"$f":"IF(J108=\"\",\"\",IF(J108<Tabelas!$C$313,Tabelas!$C$313,IF(J108>Tabelas!$C$314,Tabelas!$C$314,J108)))","v":""},{"$f":"IF(F109=\"\",Tabelas!B$12,\"\")","v":"Sem dados"}]
[null,null,{"$f":"Tabelas!$A$319","v":"3.1.2"},null,{"$f":"Tabelas!$B$319","v":"Largura total das saídas do local de risco"},null,{"$f":"IF(J110=\"\",\"\",IF(J110<Tabelas!$C$323,Tabelas!$C$323,IF(J110>Tabelas!$C$324,Tabelas!$C$324,J110)))","v":""},null,null,{"$f":"IF(OR(F112=\"\",F113=\"\"),\"\",IF(AND(F112<J113,Capa!F16<>4),\"\",F112/F113))","v":""},{"$f":"IF(G110=\"\",Tabelas!B$12,\"\")","v":"Sem dados"},null,{"$f":"IF(G110=\"\",\"\",IF(J110>G110,Tabelas!B$13,IF(J110<G110,Tabelas!B$14,\"\")))","v":""}]
[null,null,null,null,{"$f":"Tabelas!B320","v":"Efetivo do local de risco"},null,null,null,null,null,{"$f":"IF(F111=\"\",Tabelas!B$12,\"\")","v":"Sem dados"}]
[null,null,null,null,{"$f":"Tabelas!B321","v":"Somatório da largura das saídas (m)"},null,null,null,null,null,{"$f":"IF(F112=\"\",Tabelas!B$12,\"\")","v":"Sem dados"},null,{"$f":"IF(F112<J113,Tabelas!$B$326,IF(G110<J110,Tabelas!$B$13,\"\"))","v":""}]
[null,null,null,null,{"$f":"Tabelas!B322","v":"Largura de ref. do somatório das larguras das saídas (m)"},{"$f":"IF(F111=\"\",\"\",IF(F111<Tabelas!$B$340,Tabelas!$C$340,IF(F111<Tabelas!$B$341,Tabelas!$C$341,IF(F111<Tabelas!$B$342,Tabelas!$C$342,IF(F111<Tabelas!$B$343,Tabelas!$C$343,IF(F111<Tabelas!$B$344,Tabelas!$C$344,IF(F111<Tabelas!$B$345,Tabelas!$C$345,IF(F111<Tabelas!$B$346,Tabelas!$C$346,IF(F111<Tabelas!$B$347,Tabelas!$C$347,IF(F111<Tabelas!$B$348,Tabelas!$C$348,IF(F111<Tabelas!$B$349,Tabelas!$C$349,Tabelas!$C$350)))))))))))","v":""},null,null,null,{"$f":"IF(F111=\"\",\"\",IF(F111<Tabelas!$B$340,Tabelas!$D$340,IF(F111<Tabelas!$B$341,Tabelas!$D$341,IF(F111<Tabelas!$B$342,Tabelas!$D$342,IF(F111<Tabelas!$B$343,Tabelas!$D$343,IF(F111<Tabelas!$B$344,Tabelas!$D$344,IF(F111<Tabelas!$B$345,Tabelas!$D$345,IF(F111<Tabelas!$B$346,Tabelas!$D$346,IF(F111<Tabelas!$B$347,Tabelas!$D$347,IF(F111<Tabelas!$B$348,Tabelas!$D$348,IF(F111<Tabelas!$B$349,Tabelas!$D$349,IF(F111<Tabelas!$B$350,Tabelas!$D$350,Tabelas!$D$351))))))))))))","v":""},{"$f":"IF(F113=\"\",Tabelas!B$12,\"\")","v":"Sem dados"}]
[null,null,{"$f":"Tabelas!A330","v":"3.2"},null,{"$f":"Tabelas!B330","v":"Dimensões dos locais e das vias horizontais de evacuação"},null,{"$f":"IF(J114=\"\",\"\",IF(J114=\"-\",\"-\",IF(J114<Tabelas!$C$331,Tabelas!$C$331,IF(J114>Tabelas!$C$332,Tabelas!$C$332,J114))))","v":""},null,null,{"$f":"IF(OR(G115=\"\",G132=\"\"),\"\",IF(OR(G115=\"-\",G132=\"-\"),\"-\",AVERAGE(G115,G132)))","v":""},{"$f":"IF(G115=\"\",Tabelas!B$12,\"\")","v":"Sem dados"},null,{"$f":"IF(G114=\"\",\"\",IF(J114>G114,Tabelas!B$13,IF(J114<G114,Tabelas!B$14,\"\")))","v":""}]
[null,null,{"$f":"Tabelas!A334","v":"3.2.1"},null,{"$f":"Tabelas!B334","v":"Larguras dos vãos e das vias horizontais de evacuação"},null,{"$f":"IF(J115=\"\",\"\",IF(J115=\"-\",\"-\",IF(J115<Tabelas!$C$335,Tabelas!$C$335,IF(J115>Tabelas!$D$336,Tabelas!$D$336,J115))))","v":""},null,null,{"$f":"IF(OR(G118=\"\",G122=\"\",G123=\"\",G128=\"\",G129=\"\"),\"\",IF(AND(G118=\"-\",G122=\"-\",G123=\"-\",G128=\"-\",G129=\"-\"),\"-\",AVERAGE(G118,G122,G123,G128,G129)))","v":""},{"$f":"IF(G115=\"\",Tabelas!B$12,\"\")","v":"Sem dados"},null,{"$f":"IF(G115=\"\",\"\",IF(J115>G115,Tabelas!B$13,IF(J115<G115,Tabelas!B$14,\"\")))","v":""}]
[null,null,null,null,{"$f":"Tabelas!$B$374","v":"Local de risco"},null,null,null,null,null,{"$f":"IF(F116=\"\",Tabelas!B$12,\"\")","v":"Sem dados"}]
[null,null,null,null,{"$f":"Tabelas!$B$375","v":"Efetivo do local de risco que sai pelo vão em análise"},null,null,null,null,{"$f":"IF(OR(J118<1,J122<1,J123<1,J128<1,J129<1,J148<1,J149<1),Tabelas!C336,Tabelas!D336)","v":3},{"$f":"IF(F117=\"\",Tabelas!B$12,\"\")","v":"Sem dados"}]
[null,null,null,null,{"$f":"Tabelas!$B$376","v":"Largura medida do vão em análise (m)"},null,{"$f":"IF(J118=\"\",\"\",IF(J118=\"-\",\"-\",IF(J118>J117,J117,J118)))","v":""},null,null,{"$f":"IF(F116=\"\",\"\",IF(F116=Tabelas!B$373,\"-\",IF(OR(F118=\"\",F119=\"\"),\"\",IF(OR(F118>=J119,Capa!$F$16=4),F118/F119,\"\"))))","v":""},{"$f":"IF(F118=\"\",Tabelas!B$12,\"\")","v":"Sem dados"},null,{"$f":"IF(F118<J119,Tabelas!$B$378,IF(G118<J118,Tabelas!$B$13,\"\"))","v":""}]
[null,null,null,null,{"$f":"Tabelas!$B$377","v":"Largura de referência do vão em análise (m)"},{"$f":"IF(F117=\"\",\"\",IF(F117<Tabelas!$B$340,Tabelas!$C$340,IF(F117<Tabelas!$B$341,Tabelas!$C$341,IF(F117<Tabelas!$B$342,Tabelas!$C$342,IF(F117<Tabelas!$B$343,Tabelas!$C$343,IF(F117<Tabelas!$B$344,Tabelas!$C$344,IF(F117<Tabelas!$B$345,Tabelas!$C$345,IF(F117<Tabelas!$B$346,Tabelas!$C$346,IF(F117<Tabelas!$B$347,Tabelas!$C$347,IF(F117<Tabelas!$B$348,Tabelas!$C$348,IF(F117<Tabelas!$B$349,Tabelas!$C$349,Tabelas!$C$350)))))))))))","v":""},null,null,null,{"$f":"IF(F117=\"\",\"\",IF(F117<Tabelas!$B$340,Tabelas!$D$340,IF(F117<Tabelas!$B$341,Tabelas!$D$341,IF(F117<Tabelas!$B$342,Tabelas!$D$342,IF(F117<Tabelas!$B$343,Tabelas!$D$343,IF(F117<Tabelas!$B$344,Tabelas!$D$344,IF(F117<Tabelas!$B$345,Tabelas!$D$345,IF(F117<Tabelas!$B$346,Tabelas!$D$346,IF(F117<Tabelas!$B$347,Tabelas!$D$347,IF(F117<Tabelas!$B$348,Tabelas!$D$348,IF(F117<Tabelas!$B$349,Tabelas!$D$349,IF(F117<Tabelas!$B$350,Tabelas!$D$350,Tabelas!$D$351))))))))))))","v":""},{"$f":"IF(F119=\"\",Tabelas!B$12,\"\")","v":"Sem dados"}]
[null,null,null,null,{"$f":"Tabelas!$B$381","v":"Via horizontal no piso do local de risco"},null,null,null,null,null,{"$f":"IF(F120=\"\",Tabelas!B$12,\"\")","v":"Sem dados"}]
[null,null,null,null,{"$f":"Tabelas!B382","v":"Efetivo da via horizontal"},null,null,null,null,null,{"$f":"IF(F121=\"\",Tabelas!B$12,\"\")","v":"Sem dados"}]
[null,null,null,null,{"$f":"Tabelas!$B$383","v":"Largura medida da via horizontal (m)"},null,{"$f":"IF(J122=\"\",\"\",IF(J122=\"-\",\"-\",IF(J122>J117,J117,J122)))","v":""},null,null,{"$f":"IF(F120=\"\",\"\",IF(F120=Tabelas!B$373,\"-\",IF(OR(F122=\"\",F124=\"\"),\"\",IF(OR(F122>=J124,Capa!$F$16=4),F122/F124,\"\"))))","v":""},{"$f":"IF(F122=\"\",Tabelas!B$12,\"\")","v":"Sem dados"},null,{"$f":"IF(F122<J124,Tabelas!$B$378,IF(G122<J122,Tabelas!$B$13,\"\"))","v":""}]
[null,null,null,null,{"$f":"Tabelas!$B$385","v":"Largura medida do vão (m)"},null,{"$f":"IF(J123=\"\",\"\",IF(J123=\"-\",\"-\",IF(J123>J117,J117,J123)))","v":""},null,null,{"$f":"IF(F120=\"\",\"\",IF(F120=Tabelas!B$373,\"-\",IF(OR(F123=\"\",F125=\"\"),\"\",IF(OR(F123>=J125,Capa!$F$16=4),F123/F125,\"\"))))","v":""},{"$f":"IF(F123=\"\",Tabelas!B$12,\"\")","v":"Sem dados"},null,{"$f":"IF(F123<J125,Tabelas!$B$378,IF(G123<J123,Tabelas!$B$13,\"\"))","v":""}]
[null,null,null,null,{"$f":"Tabelas!$B$384","v":"Largura de referência da via horizontal (m)"},{"$f":"IF(F121=\"\",\"\",IF(F121<Tabelas!$B$340,Tabelas!$C$340,IF(F121<Tabelas!$B$341,Tabelas!$C$341,IF(F121<Tabelas!$B$342,Tabelas!$C$342,IF(F121<Tabelas!$B$343,Tabelas!$C$343,IF(F121<Tabelas!$B$344,Tabelas!$C$344,IF(F121<Tabelas!$B$345,Tabelas!$C$345,IF(F121<Tabelas!$B$346,Tabelas!$C$346,IF(F121<Tabelas!$B$347,Tabelas!$C$347,IF(F121<Tabelas!$B$348,Tabelas!$C$348,IF(F121<Tabelas!$B$349,Tabelas!$C$349,IF(F121<Tabelas!$B$350,Tabelas!$C$350,Tabelas!$C$351))))))))))))","v":""},null,null,null,{"$f":"IF(F121=\"\",\"\",IF(F121<Tabelas!$B$340,Tabelas!$D$340,IF(F121<Tabelas!$B$341,Tabelas!$D$341,IF(F121<Tabelas!$B$342,Tabelas!$D$342,IF(F121<Tabelas!$B$343,Tabelas!$D$343,IF(F121<Tabelas!$B$344,Tabelas!$D$344,IF(F121<Tabelas!$B$345,Tabelas!$D$345,IF(F121<Tabelas!$B$346,Tabelas!$D$346,IF(F121<Tabelas!$B$347,Tabelas!$D$347,IF(F121<Tabelas!$B$348,Tabelas!$D$348,IF(F121<Tabelas!$B$349,Tabelas!$D$349,IF(F121<Tabelas!$B$350,Tabelas!$D$350,Tabelas!$D$351))))))))))))","v":""},{"$f":"IF(F124=\"\",Tabelas!B$12,\"\")","v":"Sem dados"}]
[null,null,null,null,{"$f":"Tabelas!$B$386","v":"Largura de referência do vão (m)"},{"$f":"F124","v":""},null,null,null,{"$f":"J124","v":""},{"$f":"IF(F125=\"\",Tabelas!B$12,\"\")","v":"Sem dados"}]
[null,null,null,null,{"$f":"Tabelas!$B$387","v":"Via horizontal até à saída para o exterior"},null,null,null,null,null,{"$f":"IF(F126=\"\",Tabelas!B$12,\"\")","v":"Sem dados"}]
[null,null,null,null,{"$f":"Tabelas!B388","v":"Efetivo da via horizontal"},null,null,null,null,null,{"$f":"IF(F127=\"\",Tabelas!B$12,\"\")","v":"Sem dados"}]
[null,null,null,null,{"$f":"Tabelas!B389","v":"Largura medida da via horizontal (m)"},null,{"$f":"IF(J128=\"\",\"\",IF(J128=\"-\",\"-\",IF(J128>J117,J117,J128)))","v":""},null,null,{"$f":"IF(F126=\"\",\"\",IF(F126=Tabelas!B$373,\"-\",IF(AND(F149=F150,F127<F148),\"\",IF(OR(F128=\"\",F130=\"\"),\"\",IF(OR(F128>=J130,Capa!$F$16=4),F128/F130,\"\")))))","v":""},{"$f":"IF(F128=\"\",Tabelas!B$12,\"\")","v":"Sem dados"},null,{"$f":"IF(F128<J130,Tabelas!$B$378,IF(G128<J128,Tabelas!$B$13,\"\"))","v":""}]
[null,null,null,null,{"$f":"Tabelas!$B$391","v":"Largura medida do vão de saída para o exterior (m)"},null,{"$f":"IF(J129=\"\",\"\",IF(J129=\"-\",\"-\",IF(J129>J117,J117,J129)))","v":""},null,null,{"$f":"IF(F126=\"\",\"\",IF(F126=Tabelas!B$373,\"-\",IF(AND(F149=F150,F127<F148),\"\",IF(OR(F129=\"\",F131=\"\"),\"\",IF(OR(F129>=J131,Capa!$F$16=4),F129/F131,\"\")))))","v":""},{"$f":"IF(F129=\"\",Tabelas!B$12,\"\")","v":"Sem dados"},null,{"$f":"IF(F129<J131,Tabelas!$B$378,IF(G129<J129,Tabelas!$B$13,\"\"))","v":""}]
[null,null,null,null,{"$f":"Tabelas!B390","v":"Largura de referência da via horizontal (m)"},{"$f":"IF(F127=\"\",\"\",IF(F127<Tabelas!$B$340,Tabelas!$C$340,IF(F127<Tabelas!$B$341,Tabelas!$C$341,IF(F127<Tabelas!$B$342,Tabelas!$C$342,IF(F127<Tabelas!$B$343,Tabelas!$C$343,IF(F127<Tabelas!$B$344,Tabelas!$C$344,IF(F127<Tabelas!$B$345,Tabelas!$C$345,IF(F127<Tabelas!$B$346,Tabelas!$C$346,IF(F127<Tabelas!$B$347,Tabelas!$C$347,IF(F127<Tabelas!$B$348,Tabelas!$C$348,IF(F127<Tabelas!$B$349,Tabelas!$C$349,IF(F127<Tabelas!$B$350,Tabelas!$C$350,Tabelas!$C$351))))))))))))","v":""},null,null,null,{"$f":"IF(F127=\"\",\"\",IF(F127<Tabelas!$B$340,Tabelas!$D$340,IF(F127<Tabelas!$B$341,Tabelas!$D$341,IF(F127<Tabelas!$B$342,Tabelas!$D$342,IF(F127<Tabelas!$B$343,Tabelas!$D$343,IF(F127<Tabelas!$B$344,Tabelas!$D$344,IF(F127<Tabelas!$B$345,Tabelas!$D$345,IF(F127<Tabelas!$B$346,Tabelas!$D$346,IF(F127<Tabelas!$B$347,Tabelas!$D$347,IF(F127<Tabelas!$B$348,Tabelas!$D$348,IF(F127<Tabelas!$B$349,Tabelas!$D$349,IF(F127<Tabelas!$B$350,Tabelas!$D$350,Tabelas!$D$351))))))))))))","v":""},{"$f":"IF(F130=\"\",Tabelas!B$12,\"\")","v":"Sem dados"}]
[null,null,null,null,{"$f":"Tabelas!$B$392","v":"Largura de referência do vão de saída para o exterior (m)"},{"$f":"F130","v":""},null,null,null,{"$f":"J130","v":""},{"$f":"IF(F131=\"\",Tabelas!B$12,\"\")","v":"Sem dados"}]
[null,null,{"$f":"Tabelas!$A$394","v":"3.2.2"},null,{"$f":"Tabelas!$B$394","v":"Distância a percorrer nas vias horizontais de evacuação"},null,{"$f":"IF(J132=\"\",\"\",IF(J132=\"-\",\"-\",IF(J132<Tabelas!$C$395,Tabelas!$C$395,IF(J132>Tabelas!$C$396,Tabelas!$C$396,J132))))","v":""},null,null,{"$f":"IF(AND(F133=Tabelas!B373,F136=Tabelas!B373,F139=Tabelas!B373),\"-\",IF(OR(J134=\"\",J135=\"\",J137=\"\",J138=\"\",J140=\"\",J141=\"\"),\"\",IF(J134+J137+J140=0,1,(J135+J138+J141)/(J134+J137+J140))))","v":""},{"$f":"IF(G132=\"\",Tabelas!B$12,\"\")","v":"Sem dados"},null,{"$f":"IF(G132=\"\",\"\",IF(J132>G132,Tabelas!B$13,IF(J132<G132,Tabelas!B$14,\"\")))","v":""}]
[null,null,null,null,{"$f":"Tabelas!B397","v":"Percurso no interior do local de risco até à porta"},{"$f":"IF(F116=\"\",\"\",F116)","v":""},null,null,null,null,{"$f":"IF(F133=\"\",Tabelas!B$12,\"\")","v":"Sem dados"}]
[null,null,null,null,{"$f":"Tabelas!$B$398","v":"Distância medida (m)"},null,null,null,null,{"$f":"IF(F133=\"\",\"\",IF(F133=Tabelas!B$373,0,IF(F134=\"\",\"\",F134)))","v":""},{"$f":"IF(F134=\"\",Tabelas!B$12,\"\")","v":"Sem dados"}]
[null,null,null,null,{"$f":"Tabelas!$B$399","v":"Distância regulamentar (m)"},null,null,null,null,{"$f":"IF(F133=\"\",\"\",IF(F133=Tabelas!B$373,0,IF(F135=\"\",\"\",F135)))","v":""},{"$f":"IF(F135=\"\",Tabelas!B$12,\"\")","v":"Sem dados"}]
[null,null,null,null,{"$f":"Tabelas!B400","v":"Percurso na via horizontal no piso do local de risco"},{"$f":"IF(F120=\"\",\"\",F120)","v":""},null,null,null,null,{"$f":"IF(F136=\"\",Tabelas!B$12,\"\")","v":"Sem dados"}]
[null,null,null,null,{"$f":"Tabelas!$B$401","v":"Distância medida (m)"},null,null,null,null,{"$f":"IF(F136=\"\",\"\",IF(F136=Tabelas!B$373,0,IF(F137=\"\",\"\",F137)))","v":""},{"$f":"IF(F137=\"\",Tabelas!B$12,\"\")","v":"Sem dados"}]
[null,null,null,null,{"$f":"Tabelas!$B$402","v":"Distância regulamentar (m)"},null,null,null,null,{"$f":"IF(F136=\"\",\"\",IF(F136=Tabelas!B$373,0,IF(F138=\"\",\"\",F138)))","v":""},{"$f":"IF(F138=\"\",Tabelas!B$12,\"\")","v":"Sem dados"}]
[null,null,null,null,{"$f":"Tabelas!B403","v":"Percurso na via horizontal até à saída para o exterior"},{"$f":"IF(F126=\"\",\"\",F126)","v":""},null,null,null,null,{"$f":"IF(F139=\"\",Tabelas!B$12,\"\")","v":"Sem dados"}]
[null,null,null,null,{"$f":"Tabelas!$B$404","v":"Distância medida (m)"},null,null,null,null,{"$f":"IF(F139=\"\",\"\",IF(F139=Tabelas!B$373,0,IF(F140=\"\",\"\",F140)))","v":""},{"$f":"IF(F140=\"\",Tabelas!B$12,\"\")","v":"Sem dados"}]
[null,null,null,null,{"$f":"Tabelas!$B$405","v":"Distância regulamentar (m)"},null,null,null,null,{"$f":"IF(F139=\"\",\"\",IF(F139=Tabelas!B$373,0,IF(F141=\"\",\"\",F141)))","v":""},{"$f":"IF(F141=\"\",Tabelas!B$12,\"\")","v":"Sem dados"}]
[null,null,{"$f":"Tabelas!A407","v":"3.3"},null,{"$f":"Tabelas!B407","v":"Dimensões das vias verticais de evacuação"},null,{"$f":"IF(J142=\"\",\"\",IF(J142=\"-\",\"-\",IF(J142<Tabelas!$C$408,Tabelas!$C$408,IF(J142>Tabelas!$C$409,Tabelas!$C$409,J142))))","v":""},null,null,{"$f":"IF(F142=Tabelas!B$373,\"-\",IF(OR(G143=\"\",G146=\"\",G152=\"\",G153=\"\"),\"\",G143*AVERAGE(G146,G152)*G153))","v":""},{"$f":"IF(G142=\"\",Tabelas!B$12,\"\")","v":"Sem dados"},null,{"$f":"IF(G142=\"\",\"\",IF(J142>G142,Tabelas!B$13,IF(J142<G142,Tabelas!B$14,\"\")))","v":""}]
[null,null,{"$f":"Tabelas!A411","v":"3.3.1"},null,{"$f":"Tabelas!B411","v":"Número de vias verticais de evacuação"},null,{"$f":"IF(F144=\"\",\"\",IF(F144=F145,1,IF(F144>F145,0.5,IF(F145>F144,IF(F145-F144>2,1.45,1+0.15*(F145-F144))))))","v":""},null,null,null,{"$f":"IF(G143=\"\",Tabelas!B$12,\"\")","v":"Sem dados"}]
[null,null,null,null,{"$f":"Tabelas!B412","v":"Número de vias verticais exigidas na regulamentação"},null,null,null,null,null,{"$f":"IF(F144=\"\",Tabelas!B$12,\"\")","v":"Sem dados"}]
[null,null,null,null,{"$f":"Tabelas!B413","v":"Número de vias verticais que servem o local de risco"},null,null,null,null,null,{"$f":"IF(F145=\"\",Tabelas!B$12,\"\")","v":"Sem dados"}]
[null,null,{"$f":"Tabelas!A415","v":"3.3.2"},null,{"$f":"Tabelas!B415","v":"Larguras das vias verticais de evacuação"},null,{"$f":"IF(OR(G148=\"\",G149=\"\"),\"\",AVERAGE(G148,G149))","v":""},null,null,{"$f":"IF(OR(J118<1,J122<1,J123<1,J128<1,J129<1,J148<1,J149<1),Tabelas!C423,Tabelas!D423)","v":2.5},{"$f":"IF(G146=\"\",Tabelas!B$12,\"\")","v":"Sem dados"}]
[null,null,null,null,{"$f":"Tabelas!B417","v":"Efetivo da via vertical"},null,null,null,null,null,{"$f":"IF(F147=\"\",Tabelas!B$12,\"\")","v":"Sem dados"}]
[null,null,null,null,{"$f":"Tabelas!$B$418","v":"Largura medida da via vertical (m)"},null,{"$f":"IF(J148=\"\",\"\",IF(J148>J146,J146,J148))","v":""},null,null,{"$f":"IF(F142=\"\",\"\",IF(F142=Tabelas!B$373,1,IF(AND(F123=F124,F147<F122),\"\",IF(OR(F148=\"\",F150=\"\"),\"\",IF(OR(F148>=J150,Capa!$F$16=4),F148/F150,\"\")))))","v":""},{"$f":"IF(F148=\"\",Tabelas!B$12,\"\")","v":"Sem dados"},null,{"$f":"IF(F148<J150,Tabelas!$B$378,IF(G148<J148,Tabelas!$B$13,\"\"))","v":""}]
[null,null,null,null,{"$f":"Tabelas!$B$420","v":"Largura medida do vão (m)"},null,{"$f":"IF(J149=\"\",\"\",IF(J149>J146,J146,J149))","v":""},null,null,{"$f":"IF(F142=\"\",\"\",IF(F142=Tabelas!B$373,1,IF(AND(F123=F124,F147<F122),\"\",IF(OR(F149=\"\",F151=\"\"),\"\",IF(OR(F149>=J151,Capa!$F$16=4),F149/F151,\"\")))))","v":""},{"$f":"IF(F149=\"\",Tabelas!B$12,\"\")","v":"Sem dados"},null,{"$f":"IF(F149<J151,Tabelas!$B$378,IF(G149<J149,Tabelas!$B$13,\"\"))","v":""}]
[null,null,null,null,{"$f":"Tabelas!$B$419","v":"Largura de referência da via vertical (m)"},{"$f":"IF(F147=\"\",\"\",IF(F147<Tabelas!$B$354,Tabelas!$C$354,IF(F147<Tabelas!$B$355,Tabelas!$C$355,IF(F147<Tabelas!$B$356,Tabelas!$C$356,IF(F147<Tabelas!$B$357,Tabelas!$C$357,IF(F147<Tabelas!$B$358,Tabelas!$C$358,IF(F147<Tabelas!$B$359,Tabelas!$C$359,IF(F147<Tabelas!$B$360,Tabelas!$C$360,IF(F147<Tabelas!$B$361,Tabelas!$C$361,IF(F147<Tabelas!$B$362,Tabelas!$C$362,IF(F147<Tabelas!$B$363,Tabelas!$C$363,IF(F147<Tabelas!$B$364,Tabelas!$C$364,IF(F147<Tabelas!$B$365,Tabelas!$C$365,IF(F147<Tabelas!$B$366,Tabelas!$C$366,IF(F147<Tabelas!$B$367,Tabelas!$C$367,IF(F147<Tabelas!$B$368,Tabelas!$C$368,Tabelas!$C$369))))))))))))))))","v":""},null,null,null,{"$f":"IF(F147=\"\",\"\",IF(F147<Tabelas!$B$354,Tabelas!$D$354,IF(F147<Tabelas!$B$355,Tabelas!$D$355,IF(F147<Tabelas!$B$356,Tabelas!$D$356,IF(F147<Tabelas!$B$357,Tabelas!$D$357,IF(F147<Tabelas!$B$358,Tabelas!$D$358,IF(F147<Tabelas!$B$359,Tabelas!$D$359,IF(F147<Tabelas!$B$360,Tabelas!$D$360,IF(F147<Tabelas!$B$361,Tabelas!$D$361,IF(F147<Tabelas!$B$362,Tabelas!$D$362,IF(F147<Tabelas!$B$363,Tabelas!$D$363,IF(F147<Tabelas!$B$364,Tabelas!$D$364,IF(F147<Tabelas!$B$365,Tabelas!$D$365,IF(F147<Tabelas!$B$366,Tabelas!$D$366,IF(F147<Tabelas!$B$367,Tabelas!$D$367,IF(F147<Tabelas!$B$368,Tabelas!$D$368,Tabelas!$C$369))))))))))))))))","v":""},{"$f":"IF(F150=\"\",Tabelas!B$12,\"\")","v":"Sem dados"}]
[null,null,null,null,{"$f":"Tabelas!$B$421","v":"Largura de referência do vão (m)"},{"$f":"IF(F147=\"\",\"\",IF(F147<Tabelas!$B$354,Tabelas!$C$354,IF(F147<Tabelas!$B$355,Tabelas!$C$355,IF(F147<Tabelas!$B$356,Tabelas!$C$356,IF(F147<Tabelas!$B$357,Tabelas!$C$357,IF(F147<Tabelas!$B$358,Tabelas!$C$358,IF(F147<Tabelas!$B$359,Tabelas!$C$359,IF(F147<Tabelas!$B$360,Tabelas!$C$360,IF(F147<Tabelas!$B$361,Tabelas!$C$361,IF(F147<Tabelas!$B$362,Tabelas!$C$362,IF(F147<Tabelas!$B$363,Tabelas!$C$363,IF(F147<Tabelas!$B$364,Tabelas!$C$364,IF(F147<Tabelas!$B$365,Tabelas!$C$365,IF(F147<Tabelas!$B$366,Tabelas!$C$366,IF(F147<Tabelas!$B$367,Tabelas!$C$367,IF(F147<Tabelas!$B$368,Tabelas!$C$368,Tabelas!$C$369))))))))))))))))","v":""},null,null,null,{"$f":"IF(F147=\"\",\"\",IF(F147<Tabelas!$B$354,Tabelas!$D$354,IF(F147<Tabelas!$B$355,Tabelas!$D$355,IF(F147<Tabelas!$B$356,Tabelas!$D$356,IF(F147<Tabelas!$B$357,Tabelas!$D$357,IF(F147<Tabelas!$B$358,Tabelas!$D$358,IF(F147<Tabelas!$B$359,Tabelas!$D$359,IF(F147<Tabelas!$B$360,Tabelas!$D$360,IF(F147<Tabelas!$B$361,Tabelas!$D$361,IF(F147<Tabelas!$B$362,Tabelas!$D$362,IF(F147<Tabelas!$B$363,Tabelas!$D$363,IF(F147<Tabelas!$B$364,Tabelas!$D$364,IF(F147<Tabelas!$B$365,Tabelas!$D$365,IF(F147<Tabelas!$B$366,Tabelas!$D$366,IF(F147<Tabelas!$B$367,Tabelas!$D$367,IF(F147<Tabelas!$B$368,Tabelas!$D$368,Tabelas!$C$369))))))))))))))))","v":""},{"$f":"IF(F151=\"\",Tabelas!B$12,\"\")","v":"Sem dados"}]
[null,null,{"$f":"Tabelas!A425","v":"3.3.3"},null,{"$f":"Tabelas!B425","v":"Inclinação das vias verticais de evacuação (graus)"},null,{"$f":"IF(F152=\"\",\"\",IF(F152<27,1.5,IF(F152>60,0.3,0.001*F152^2-0.123*F152+4.132)))","v":""},null,null,null,{"$f":"IF(F152=\"\",Tabelas!B$12,\"\")","v":"Sem dados"}]
[null,null,{"$f":"Tabelas!A427","v":"3.3.4"},null,{"$f":"Tabelas!B427","v":"Piso em que se encontra a unidade de análise\n(diferença entre LR e saida para o exterior)"},null,{"$f":"IF(OR(G143=\"\",G146=\"\",G152=\"\"),\"\",IF(OR(G143<1,G146<1,G152<1), 1-(0.104*F153^2+ 0.417*F153)/100,1))","v":""},null,null,null,{"$f":"IF(F153=\"\",Tabelas!B$12,\"\")","v":"Sem dados"}]
[null,null,null,null,null,null,null,null,null," "]
[null,null,null,null,null,null,null,null,null," "]
[null,null,null,null,{"$f":"Tabelas!$B$4","v":"ARICA:2019"},{"$f":"$F$3","v":"Unidade de análise - "},{"$f":"$G$3","v":1},null,null," "]
[null,null,null,null,{"$f":"Tabelas!$B$72","v":"CONDIÇÕES DE PROJETO"},null,null,null,null," ",{"$f":"IF(K175=\"\",Tabelas!B$10,Tabelas!B$9)","v":"Incompleto"},null,{"$f":"Tabelas!B$8","v":"Avisos"},null,{"$f":"Tabelas!$B$6","v":"Comentários (não não visíveis no relatório)"}]
[null,null,null,null,null,null,null,null,null," "]
[null,null,{"$f":"Tabelas!$A$432","v":"3.4"},null,{"$f":"Tabelas!$B$432","v":"Isolamento e proteção das vias de evacuação"},null,{"$f":"IF(F159=\"\",\"\",IF(F159=Tabelas!$B$436,J160,IF(AND(F159=Tabelas!B435,Capa!F16<>Tabelas!$C$47),\"\",VLOOKUP(F159,Tabelas!$B$433:$C$438,2,FALSE))))","v":""},null,null," ",{"$f":"IF(G159=\"\",Tabelas!B$12,\"\")","v":"Sem dados"},null,{"$f":"IF(F159=Tabelas!B435,Tabelas!$B$441,\"\")","v":""}]
[null,null,null,null,{"$f":"Tabelas!$B$439","v":"Escalão de tempo estabelecido na regulamentação"},null,null,null,null,{"$f":"IF(OR(F160=\"\",F161=\"\"),\"\",IF(F160<=F161,\"\",1/(1+(0.0087*(F160-F161)/F160+0.05/F160)*100)))","v":""},{"$f":"IF(F160=\"\",Tabelas!B$12,\"\")","v":"Sem dados"},null,{"$f":"IF(J161=\"\",\"\",IF(J160>J161,Tabelas!B$13,IF(J160<J161,Tabelas!B$14,\"\")))","v":""}]
[null,null,null,null,{"$f":"Tabelas!$B$440","v":"Escalão de tempo do elemento mais condicionante "},null,null,null,null,null,{"$f":"IF(F161=\"\",Tabelas!B$12,\"\")","v":"Sem dados"},null,{"$f":"IF(F159=Tabelas!$B$436,IF(OR(F161=\"\",F160=\"\"),\"\",IF(F160<=F161,Tabelas!B$216,\"\")),\"\")","v":""}]
[null,null,{"$f":"Tabelas!$A$445","v":"3.5"},null,{"$f":"Tabelas!$B$445","v":"Controlo de fumo na unidade de análise"},null,{"$f":"IF(OR(F163=\"\",F164=\"\"),\"\",IF(AND(G163=\"-\",G164=\"-\"),\"-\",AVERAGE(G163:G164)))","v":""},null,null," ",{"$f":"IF(G162=\"\",Tabelas!B$12,\"\")","v":"Sem dados"}]
[null,null,{"$f":"Tabelas!A447","v":"3.5.1"},null,{"$f":"Tabelas!B447","v":"Controlo de fumo no local de risco"},null,{"$f":"IF(F163=\"\",\"\",VLOOKUP(F163,Tabelas!B448:C453,2,FALSE))","v":""},null,null,null,{"$f":"IF(G163=\"\",Tabelas!B$12,\"\")","v":"Sem dados"}]
[null,null,{"$f":"Tabelas!A455","v":"3.5.2"},null,{"$f":"Tabelas!B455","v":"Controlo de fumo nas vias de evacuação"},null,{"$f":"IF(F164=\"\",\"\",VLOOKUP(F164,Tabelas!$B$456:$C$461,2,FALSE))","v":""},null,null,null,{"$f":"IF(G164=\"\",Tabelas!B$12,\"\")","v":"Sem dados"}]
[null,null,{"$f":"Tabelas!$A$463","v":"3.6"},null,{"$f":"Tabelas!$B$463","v":"Sinalização de emergência na unidade de análise"},null,{"$f":"IF(OR(F166=\"\",F167=\"\"),\"\",IF(AND(G166=\"-\",G167=\"-\"),\"-\",AVERAGE(G166:G167)))","v":""},null,null,null,{"$f":"IF(G165=\"\",Tabelas!B$12,\"\")","v":"Sem dados"}]
[null,null,{"$f":"Tabelas!A465","v":"3.6.1"},null,{"$f":"Tabelas!B465","v":"Sinalização de emergência no local de risco"},null,{"$f":"IF(F166=\"\",\"\",VLOOKUP(F166,Tabelas!B467:C472,2,FALSE))","v":""},null,null,null,{"$f":"IF(G166=\"\",Tabelas!B$12,\"\")","v":"Sem dados"}]
[null,null,{"$f":"Tabelas!A474","v":"3.6.2"},null,{"$f":"Tabelas!B474","v":"Sinalização de emergência nas vias de evacuação"},null,{"$f":"IF(F167=\"\",\"\",VLOOKUP(F167,Tabelas!B476:C481,2,FALSE))","v":""},null,null,null,{"$f":"IF(G167=\"\",Tabelas!B$12,\"\")","v":"Sem dados"}]
[null,null,{"$f":"Tabelas!$A$483","v":"3.7"},null,{"$f":"Tabelas!$B$483","v":"Iluminação de emergência na unidade de análise"},null,{"$f":"IF(OR(F169=\"\",F170=\"\"),\"\",IF(AND(G169=\"-\",G170=\"-\"),\"-\",AVERAGE(G169:G170)))","v":""},null,null,null,{"$f":"IF(G168=\"\",Tabelas!B$12,\"\")","v":"Sem dados"}]
[null,null,{"$f":"Tabelas!A485","v":"3.7.1"},null,{"$f":"Tabelas!B485","v":"Iluminação de emergência no local de risco"},null,{"$f":"IF(F169=\"\",\"\",VLOOKUP(F169,Tabelas!B487:C492,2,FALSE))","v":""},null,null,null,{"$f":"IF(G169=\"\",Tabelas!B$12,\"\")","v":"Sem dados"}]
[null,null,{"$f":"Tabelas!A494","v":"3.7.2"},null,{"$f":"Tabelas!B494","v":"Iluminação de emergência nas vias de evacuação"},null,{"$f":"IF(F170=\"\",\"\",VLOOKUP(F170,Tabelas!B496:C501,2,FALSE))","v":""},null,null,null,{"$f":"IF(G170=\"\",Tabelas!B$12,\"\")","v":"Sem dados"}]
[null,null,{"$f":"Tabelas!$A$503","v":"3.8"},null,{"$f":"Tabelas!$B$503","v":"Equipas de segurança"},{"$f":"IF(F91=\"\",\"\",F91)","v":""},{"$f":"G91","v":""},null,null," ",{"$f":"IF(G171=\"\",Tabelas!B$12,\"\")","v":"Sem dados"},null,"(Igual a 2.6)"]
[null,null,{"$f":"Tabelas!$A$505","v":"3.9"},null,{"$f":"Tabelas!$B$505","v":"Deteção, alerta e alarme de incêndio"},{"$f":"IF(F92=\"\",\"\",F92)","v":""},{"$f":"G92","v":""},null,null,null,{"$f":"IF(G172=\"\",Tabelas!B$12,\"\")","v":"Sem dados"},null,"(Igual a 2.7)"]
[null,null,{"$f":"Tabelas!$A$513","v":"3.10"},null,{"$f":"Tabelas!$B$513","v":"Simulacros de evacuação "},null,{"$f":"IF(J173=\"\",\"\",IF(J173=\"-\",\"-\",IF(AND(OR(F91=\"\",F91=Tabelas!B$246,F91=Tabelas!B$247),OR(F173=Tabelas!B$514,F173=Tabelas!B$515)),\"\",J173)))","v":""},null,null,{"$f":"IF(F173=\"\",\"\",VLOOKUP(F173,Tabelas!$B$514:$C$517,2,FALSE))","v":""},{"$f":"IF(G173=\"\",Tabelas!B$12,\"\")","v":"Sem dados"},null,{"$f":"IF(AND(OR(F91=\"\",F91=Tabelas!B$246,F91=Tabelas!B$247),OR(F173=Tabelas!B$514,F173=Tabelas!B$515)),Tabelas!B519,\"\")","v":""}]
[]
[null,null,{"$f":"Tabelas!A521","v":"4."},null,{"$f":"Tabelas!B521","v":"Combate ao incêndio"},null,{"$f":"IF(OR(G176=\"\",G188=\"\",G189=\"\"),\"\",IF(AND(G176=\"-\",G188=\"-\",G189=\"-\"),\"-\",AVERAGE(G176,G188,G189)))","v":""},null,null," ",{"$f":"IF(G175=\"\",Tabelas!B$12,\"\")","v":"Sem dados"}]
[null,null,{"$f":"Tabelas!A522","v":"4.1"},null,{"$f":"Tabelas!B522","v":"Acessibilidade e meios de intervenção não automáticos"},null,{"$f":"IF(OR(G177=\"\",G178=\"\",G181=\"\",G182=\"\",G187=\"\"),\"\",IF(AND(G177=\"-\",G178=\"-\",G181=\"-\",G182=\"-\",G187=\"-\"),\"-\",AVERAGE(G177,G178,G181,G182,G187)))","v":""},null,null," ",{"$f":"IF(G176=\"\",Tabelas!B$12,\"\")","v":"Sem dados"}]
[null,null,{"$f":"Tabelas!A523","v":"4.1.1"},null,{"$f":"Tabelas!B523","v":"Acessibilidade ao edifício"},null,{"$f":"IF(F177=\"\",\"\",VLOOKUP(F177,Tabelas!B524:$C$527,2,FALSE))","v":""},null,null,null,{"$f":"IF(G177=\"\",Tabelas!B$12,\"\")","v":"Sem dados"}]
[null,null,{"$f":"Tabelas!A529","v":"4.1.2"},null,{"$f":"Tabelas!B529","v":"Hidrantes exteriores"},null,{"$f":"IF(F178=\"\",\"\",IF(F178=Tabelas!$B$533,J180,VLOOKUP(F178,Tabelas!$B$530:$C$534,2,FALSE)))","v":""},null,null,null,{"$f":"IF(G178=\"\",Tabelas!B$12,\"\")","v":"Sem dados"},null,{"$f":"IF(F178=Tabelas!$B$533,IF(J180=\"\",\"\",IF(J179>J180,Tabelas!B$13,IF(J179<J180,Tabelas!B$14,\"\"))),\"\")","v":""}]
[null,null,null,null,{"$f":"Tabelas!B535","v":"Distância regulamentar entre um hidrante exterior e qualquer das saídas do edifício (m)"},null,null,null,null,{"$f":"IF(OR(F180=\"\", F180=0,F179=\"\",F179=0),\"\",F179/F180)","v":""},{"$f":"IF(F179=\"\",Tabelas!B$12,\"\")","v":"Sem dados"}]
[null,null,null,null,{"$f":"Tabelas!B536","v":"Menor distância entre um hidrante exterior e qualquer das saídas do edifício (m)"},null,null,null,null,{"$f":"IF(OR(J179=\"\", J179=0),\"\",(IF(J179<Tabelas!$C$537,Tabelas!$C$537,IF(J179>Tabelas!$C$538,Tabelas!$C$538,J179))))","v":""},{"$f":"IF(F180=\"\",Tabelas!B$12,\"\")","v":"Sem dados"}]
[null,null,{"$f":"Tabelas!A540","v":"4.1.3"},null,{"$f":"Tabelas!B540","v":"Redes secas ou húmidas"},null,{"$f":"IF(F181=\"\",\"\",VLOOKUP(F181,Tabelas!$B$541:$C$544,2,FALSE))","v":""},null,null,null,{"$f":"IF(G181=\"\",Tabelas!B$12,\"\")","v":"Sem dados"}]
[null,null,{"$f":"Tabelas!A546","v":"4.1.4"},null,{"$f":"Tabelas!B546","v":"Extintores"},null,{"$f":"IF(F182=\"\",\"\",IF(F182=Tabelas!$B$551,J184,VLOOKUP(F182,Tabelas!$B$547:C552,2,FALSE)))","v":""},null,null," ",{"$f":"IF(G182=\"\",Tabelas!B$12,\"\")","v":"Sem dados"},null,{"$f":"IF(F182=Tabelas!$B$551,IF(J184=\"\",\"\",IF(J183>J184,Tabelas!B$13,IF(J183<J184,Tabelas!B$14,\"\"))),\"\")","v":""}]
[null,null,null,null,{"$f":"Tabelas!B553","v":"Número total de extintores necessários para cumprir as exigências da regulamentação"},null,null,null,null,{"$f":"IF(OR(F183=\"\",F184=\"\",F185=\"\",F186=\"\"),\"\",F184/F183*F186/F185*0.2+0.8)","v":""},{"$f":"IF(F183=\"\",Tabelas!B$12,\"\")","v":"Sem dados"}]
[null,null,null,null,{"$f":"Tabelas!B554","v":"Número total de extintores existentes na UA"},null,null,null,null,{"$f":"IF(J183=\"\",\"\",IF(J183<Tabelas!$C$557,Tabelas!$C$557,IF(J183>Tabelas!$C$558,Tabelas!$C$558,J183)))","v":""},{"$f":"IF(F184=\"\",Tabelas!B$12,\"\")","v":"Sem dados"}]
[null,null,null,null,{"$f":"Tabelas!B555","v":"Quantidade total de agente extintor exigido na regulament. (l)"},null,null,null,null,null,{"$f":"IF(F185=\"\",Tabelas!B$12,\"\")","v":"Sem dados"}]
[null,null,null,null,{"$f":"Tabelas!B556","v":"Quantidade total de agente extintor existente na UA (l)"},null,null,null,null,null,{"$f":"IF(F186=\"\",Tabelas!B$12,\"\")","v":"Sem dados"}]
[null,null,{"$f":"Tabelas!A560","v":"4.1.5"},null,{"$f":"Tabelas!B560","v":"Redes de incêndio armadas"},null,{"$f":"IF(F187=\"\",\"\",VLOOKUP(F187,Tabelas!$B$561:$C$564,2,FALSE))","v":""},null,null,null,{"$f":"IF(G187=\"\",Tabelas!B$12,\"\")","v":"Sem dados"}]
[null,null,{"$f":"Tabelas!A566","v":"4.2"},null,{"$f":"Tabelas!B566","v":"Meios de extinção automáticos"},null,{"$f":"IF(F188=\"\",\"\",VLOOKUP(F188,Tabelas!$B$567:$C$571,2,FALSE))","v":""},null,null,null,{"$f":"IF(G188=\"\",Tabelas!B$12,\"\")","v":"Sem dados"},null,{"$f":"IF(OR(F91=\"\",F91=Tabelas!B247,F91=Tabelas!B246),Tabelas!B573,\"\")","v":"Apenas se considera que a UA dispõe um sistema de extinção, se estiver prevista a constituição de uma equipa de segurança ou a celebração de um contrato de prestação de serviços para manutenção do sistema"}]
[null,null,{"$f":"Tabelas!A575","v":"4.3"},null,{"$f":"Tabelas!B575","v":"Equipas de segurança"},{"$f":"IF(F91=\"\",\"\",F91)","v":""},{"$f":"G91","v":""},null,null,null,{"$f":"IF(G189=\"\",Tabelas!B$12,\"\")","v":"Sem dados"},null,"(Igual a 2.6)"]
[]
[]
[null,null,null,null,{"$f":"Tabelas!$B$4","v":"ARICA:2019"},{"$f":"$F$3","v":"Unidade de análise - "},{"$f":"$G$3","v":1}]
[null,null,null,null,{"$f":"Tabelas!$B$72","v":"CONDIÇÕES DE PROJETO"}]
[]
[null,null,null,null,{"$f":"Tabelas!B579","v":"Apenas preencher no caso de intervenção-tipo 4"}]
[]
[null,null,null,null,{"$f":"Tabelas!B581","v":"Justificação de incumprimento de exigências mínimas"}]
[]
[null,null,{"$f":"C80","v":"2.1"},null,{"$f":"E80","v":"Materiais de revestimento do local de risco"}]
[null,null,null,null,{"$f":"IF(M80<>\"\",Tabelas!B175,Tabelas!B174)","v":"(Condições cumpridas - não é necessário justificar)"}]
[]
[]
[null,null,{"$f":"C83","v":"2.2"},null,{"$f":"E83","v":"Materiais de revestimento das vias de evacuação"}]
[null,null,null,null,{"$f":"IF(M83<>\"\",Tabelas!B196,Tabelas!B195)","v":"(Condições cumpridas - não é necessário justificar)"}]
[]
[]
[null,null,{"$f":"C86","v":"2.3"},null,{"$f":"E86","v":"Isolamento e proteção do local de risco"}]
[null,null,null,null,{"$f":"IF(M86<>\"\",Tabelas!B219,Tabelas!B218)","v":"(Condições cumpridas - não é necessário justificar)"}]
[]
[]
[null,null,{"$f":"C90","v":"2.5"},null,{"$f":"E90","v":"Isolamento e proteção entre utilizações-tipo distintas"}]
[null,null,null,null,{"$f":"IF(M90<>\"\",Tabelas!B234,Tabelas!B233)","v":"(Condições cumpridas - não é necessário justificar)"}]
[]
[]
[null,null,{"$f":"C95","v":"2.8"},null,{"$f":"E95","v":"Propagação pelo exterior"}]
[null,null,null,null,{"$f":"IF(M96<>\"\",Tabelas!B279,Tabelas!B278)","v":"(Condições cumpridas - não é necessário justificar)"}]
[]
[]
[null,null,{"$f":"C105","v":"3."},null,{"$f":"E105","v":"Evacuação em caso de incêndio"}]
[null,null,null,null,{"$f":"IF(M105=Tabelas!B297,Tabelas!B299,Tabelas!B298)","v":"(Condições cumpridas - não é necessário justificar)"}]
[]
[]
[null,null,{"$f":"C106","v":"3.1"},null,{"$f":"E106&\" - Atravessamento de outros locais de risco\"","v":"Saídas do local de risco - Atravessamento de outros locais de risco"}]
[null,null,null,null,{"$f":"IF(M107=Tabelas!B317,Tabelas!B317,Tabelas!B316)","v":"(Condições cumpridas - não é necessário justificar)"}]
[]
[]
[null,null,{"$f":"C106","v":"3.1"},null,{"$f":"E106&\" - Larguras dos vãos\"","v":"Saídas do local de risco - Larguras dos vãos"}]
[null,null,null,null,{"$f":"IF(M112=Tabelas!B326,Tabelas!B328,Tabelas!B327)","v":"(Condições cumpridas - não é necessário justificar)"}]
[]
[]
[null,null,{"$f":"C114","v":"3.2"},null,{"$f":"E114&\" - \"&E115","v":"Dimensões dos locais e das vias horizontais de evacuação - Larguras dos vãos e das vias horizontais de evacuação"}]
[null,null,null,null,{"$f":"IF(OR(M118=Tabelas!B378,M122=Tabelas!B378, M123=Tabelas!B378,M128=Tabelas!B378,M129=Tabelas!B378),Tabelas!B380,Tabelas!B379)","v":"(Condições cumpridas - não é necessário justificar)"}]
[]
[]
[null,null,{"$f":"C142","v":"3.3"},null,{"$f":"E142&\" - \"&E146","v":"Dimensões das vias verticais de evacuação - Larguras das vias verticais de evacuação"}]
[null,null,null,null,{"$f":"IF(OR(M148=Tabelas!B378, ,M149=Tabelas!B378),Tabelas!B380,Tabelas!B379)","v":"(Condições cumpridas - não é necessário justificar)"}]
[]
[]
[null,null,{"$f":"C159","v":"3.4"},null,{"$f":"E159","v":"Isolamento e proteção das vias de evacuação"}]
[null,null,null,null,{"$f":"IF(M159<>\"\",Tabelas!B443,Tabelas!B442)","v":"(Condições cumpridas - não é necessário justificar)"}]

{"sheet":"Extintores","index":5,"n_rows":22,"n_cols":10,"rows_kept":22,"cut":false,"hidden":false,"merged":[]}
[]
[]
[null,null,null,null,"ARICA:2019"]
[null,null,null,null,{"$f":"Tabelas!B583","v":"Extintores"}]
[]
[null,null,{"$f":"Tabelas!B585","v":"N.º"},null,{"$f":"Tabelas!B586","v":"Agente extintor"},"Fator",{"$f":"Tabelas!B587","v":"Capacidade       (Kg)"},{"$f":"Tabelas!B588","v":"Capacidade (litros)"},{"$f":"Tabelas!B588","v":"Capacidade (litros)"},{"$f":"Tabelas!B587","v":"Capacidade       (Kg)"}]
[null,null,1,null,null,{"$f":"IF(E7=\"\",\"\",VLOOKUP(E7,Tabelas!B$589:C$591,2,FALSE))","v":""},null,{"$f":"IF(OR(F7=\"\",G7=\"\"),\"\",G7*F7)","v":""},null,{"$f":"IF(OR(H7=\"\",I7=\"\"),\"\",I7/F7)","v":""}]
[null,null,2,null,null,{"$f":"IF(E8=\"\",\"\",VLOOKUP(E8,Tabelas!B$589:C$591,2,FALSE))","v":""},null,"",null,{"$f":"IF(OR(H8=\"\",I8=\"\"),\"\",I8/F8)","v":""}]
[null,null,3,null,null,{"$f":"IF(E9=\"\",\"\",VLOOKUP(E9,Tabelas!B$589:C$591,2,FALSE))","v":""},null,"",null,""]
[null,null,4,null,null,{"$f":"IF(E10=\"\",\"\",VLOOKUP(E10,Tabelas!B$589:C$591,2,FALSE))","v":""},null,"",null,""]
[null,null,5,null,null,{"$f":"IF(E11=\"\",\"\",VLOOKUP(E11,Tabelas!B$589:C$591,2,FALSE))","v":""},null,"",null,""]
[null,null,6,null,null,{"$f":"IF(E12=\"\",\"\",VLOOKUP(E12,Tabelas!B$589:C$591,2,FALSE))","v":""},null,"",null,""]
[null,null,7,null,null,{"$f":"IF(E13=\"\",\"\",VLOOKUP(E13,Tabelas!B$589:C$591,2,FALSE))","v":""},null,"",null,""]
[null,null,8,null,null,{"$f":"IF(E14=\"\",\"\",VLOOKUP(E14,Tabelas!B$589:C$591,2,FALSE))","v":""},null,"",null,""]
[null,null,9,null,null,{"$f":"IF(E15=\"\",\"\",VLOOKUP(E15,Tabelas!B$589:C$591,2,FALSE))","v":""},null,"",null,""]
[null,null,10,null,null,{"$f":"IF(E16=\"\",\"\",VLOOKUP(E16,Tabelas!B$589:C$591,2,FALSE))","v":""},null,"",null,""]
[null,null,11,null,null,{"$f":"IF(E17=\"\",\"\",VLOOKUP(E17,Tabelas!B$589:C$591,2,FALSE))","v":""},null,"",null,""]
[null,null,12,null,null,{"$f":"IF(E18=\"\",\"\",VLOOKUP(E18,Tabelas!B$589:C$591,2,FALSE))","v":""},null,"",null,""]
[null,null,13,null,null,{"$f":"IF(E19=\"\",\"\",VLOOKUP(E19,Tabelas!B$589:C$591,2,FALSE))","v":""},null,"",null,""]
[null,null,14,null,null,{"$f":"IF(E20=\"\",\"\",VLOOKUP(E20,Tabelas!B$589:C$591,2,FALSE))","v":""},null,"",null,""]
[null,null,15,null,null,{"$f":"IF(E21=\"\",\"\",VLOOKUP(E21,Tabelas!B$589:C$591,2,FALSE))","v":""},null,"",null,""]
[null,null,null,null,"Total",null,{"$f":"SUM(G7:G21)","v":0},{"$f":"SUM(H7:H21)","v":0},{"$f":"SUM(I7:I21)","v":0},{"$f":"SUM(J7:J21)","v":0}]

{"sheet":"Tabelas","index":6,"n_rows":591,"n_cols":4,"rows_kept":591,"cut":false,"hidden":true,"merged":[]}
[null,"GERAL"]
[]
[null,"Cabeçalho"]
[null,"ARICA:2019"]
[null,"MÉTODO DE AVALIAÇÃO DA SEGURANÇA AO INCÊNDIO EM EDIFÍCIOS EXISTENTES"]
[null,"Comentários (não não visíveis no relatório)"]
[null,"Transversais"]
[null,"Avisos"]
[null,"Incompleto"]
[null,"Completo"]
[null," (>)"]
[null,"Sem dados"]
[null,"Valor retificado porque superior ao limite máximo"]
[null,"Valor retificado porque inferior ao limite mínimo"]
[null,"Cumpre"]
[null,"Não cumpre"]
[null,"Não aplicável"]
[null,"VERIFICA"]
[null,"NÃO VERIFICA"]
[null,"Requisitos mínimos"]
[null,"* Justificar situações de incumprimento e consensualizar propostas de mitigação com entidade licenciadora"]
[null,"ROSTO"]
[]
["A.","Identificação"]
[]
[null,"Dono de obra"]
[null,"Rua/Av."]
[null,"Localidade"]
[null,"Código postal"]
[null,"N.º/Lote"]
[null,"Andar"]
[null,"Freguesia"]
[]
["B.","Caraterísticas da intervenção"]
[]
[null,"Altura do edifício"]
[null,"Limite",28]
[]
[null,"Extensão da intervenção"]
[null,"Edifício no seu todo"]
[null,"Parte do edifício"]
[]
[null,"Tipo de intervenção"]
[null,"Intervenção na AI que não implica nenhuma das seguintes alterações: (i) alteração da UT; (ii) alteração da CR; (iii) introdução de novos locais de risco B, C, D ou E; (iv) redução do número ou da largura das saídas dos locais de risco; (v) aumento do efetivo dos LR, provocando uma mudança nas larguras de refererência; (vi) alteração das vias de evacuação.",1]
[null,"Intervenção na AI em que não há alteração da UT ou da CR, mas existe pelo menos uma das seguintes alterações: (i) criação de novos locais de risco ou agravamento dos preexistentes; (ii) redução do número e largura das saídas dos locais de risco; (iii) aumento do efetivo dos locais de risco, provocando uma mudança nas larguras de referência; (iv) alteração das vias de evacuação.\n",2]
[null,"Intervenção na AI em que há (i) mudança de uma ou mais das UT (ii) mudança de CR, ou (iii) demolição de parte ou da totalidade da AI.\n",3]
[null,"Tipo de intervenção de exceção destinado aos casos que não são enquadráveis em nenhum dos outros três tipos, e que exigem uma avaliação especial",4]
[]
["C.","Resultados"]
[]
[null,"Unidade de análsie"]
[null,"Unidade de análise 1"]
[]
[null,"Índice de segurança ao incêndio "]
[null,"Desempenho global mínimo"]
[]
["D.","Observações"]
[]
["E.","Técnico"]
[null,"Projetista"]
[null,"Ordem"]
[null,"Assinatura"]
[null,"n.º"]
[null,"Data"]
[]
[null,"UNIDADE DE ANÁLISE"]
[]
[null,"Gerais"]
[null,"Unidade de análise"]
[null,"CONDIÇÕES INICIAIS"]
[null,"Condições iniciais"]
[null,"CONDIÇÕES DE PROJETO"]
[null,"Condições de projeto"]
[]
[null,"Carateristicas da unidade"]
[]
[null,"Tipo de local de risco"]
[null,"Tipo A"]
[null,"Tipo B"]
[null,"Tipo C"]
[null,"Tipo D"]
[null,"Tipo E"]
[null,"Tipo F"]
[null,"Unidade de habitação"]
[null,"Categoria de risco"]
[null,"1.ª Categoria de risco"]
[null,"2.ª Categoria de risco"]
[null,"3.ª Categoria de risco"]
[null,"4.ª Categoria de risco"]
[]
[null,"Utilização tipo"]
[null,"UT I – Habitação"]
[null,"UT II – Estacionamentos"]
[null,"UT III – Administrativos"]
[null,"UT IV – Escolares"]
[null,"UT V – Hospitalares e lares de idosos"]
[null,"UT VI – Espetáculos e reuniões públicas"]
[null,"UT VII – Hoteleiros e restauração"]
[null,"UT VIII – Comerciais e gares de transportes"]
[null,"UT IX – Desportivos e de lazer"]
[null,"UT X – Museus e galerias de arte"]
[null,"UT XI – Bibliotecas e arquivos"]
[null,"UT XII – Indústrias, oficinas e armazéns"]
[]
[null,"Resumo"]
[]
[null,"PÁGINA 01"]
[]
["1.","Início do incêndio"]
[]
["1.1","Anomalias que podem provocar um incêndio"]
[null,"Não existem espaços pertencentes à UA com anomalias que podem provocar um início de incêndio",1]
[null,"O número de espaços pertencentes à UA com anomalias que podem provocar um início de incêndio é igual ou inferior a 25% do número total de espaços dessa área",0.9]
[null,"O número de espaços pertencentes à UA com anomalias que podem provocar um início de incêndio é superior a 25% e igual ou inferior a 75% do número total de espaços dessa área",0.85]
[null,"O número de espaços pertencentes à UA com anomalias que podem provocar um início de incêndio é superior a 75% da totalidade dos espaços dessa área",0.8]
[]
["1.2","Instalações técnicas"]
[]
["1.2.1","Instalações elétricas"]
[null,"Cumprem a regulamentação em vigor",1]
[null,"Não cumprem a regulamentação em vigor",0.7]
[null,"Não existem","-"]
[]
["1.2.2","Instalações de gás"]
[null,{"$f":"B120","v":"Cumprem a regulamentação em vigor"},1]
[null,{"$f":"B121","v":"Não cumprem a regulamentação em vigor"},0.75]
[null,{"$f":"B122","v":"Não existem"},{"$f":"C122","v":"-"}]
[]
["1.2.3","Instalações de aquecimento – Centrais térmicas"]
[null,{"$f":"B120","v":"Cumprem a regulamentação em vigor"},1]
[null,{"$f":"B121","v":"Não cumprem a regulamentação em vigor"},0.9]
[null,{"$f":"B122","v":"Não existem"},{"$f":"C122","v":"-"}]
[]
["1.2.4","Instalações de aquecimento – Aparelhagem"]
[null,{"$f":"B120","v":"Cumprem a regulamentação em vigor"},1]
[null,{"$f":"B121","v":"Não cumprem a regulamentação em vigor"},0.8]
[null,{"$f":"B122","v":"Não existem"},{"$f":"C122","v":"-"}]
[]
["1.2.5","Instalações de confeção e conservação de alimentos"]
[null,{"$f":"B120","v":"Cumprem a regulamentação em vigor"},1]
[null,{"$f":"B121","v":"Não cumprem a regulamentação em vigor"},0.8]
[null,{"$f":"B122","v":"Não existem"},{"$f":"C122","v":"-"}]
[]
["1.2.6","Instalações de evacuação de efluentes de combustão"]
[null,{"$f":"B120","v":"Cumprem a regulamentação em vigor"},1]
[null,{"$f":"B121","v":"Não cumprem a regulamentação em vigor"},0.8]
[null,{"$f":"B122","v":"Não existem"},{"$f":"C122","v":"-"}]
[]
["1.2.7","Instalações de ventilação e condicionamento de ar"]
[null,{"$f":"B125","v":"Cumprem a regulamentação em vigor"},1]
[null,{"$f":"B126","v":"Não cumprem a regulamentação em vigor"},0.95]
[null,{"$f":"B127","v":"Não existem"},{"$f":"C122","v":"-"}]
[]
["2.","Desenvolvimento e propagação do incêndio"]
[]
["2.1","Materiais de revestimento do local de risco"]
[]
["2.1.1","Classe de reação ao fogo dos revestimentos interiores das paredes e tetos"]
[null,"Os materiais de revestimento têm classe de reação superior ao mínimo exigido na regulamentação",1.25]
[null,"Os materiais de revestimento são regulamentares",1]
[null,"Os materiais de revestimento são não-regulamentares admissíveis",0.75]
[null,"Os materiais de revestimento são não-regulamentares",0]
[null,"A UA não inclui local de risco","-"]
[null,"Não existem exigências regulamentares aplicáveis","-"]
[]
["2.1.2","Classe de reação ao fogo dos revestimentos interiores dos pavimentos"]
[null,"Os materiais de revestimento têm classe de reação superior ao mínimo exigido na regulamentação",1.1499999999999999]
[null,"Os materiais de revestimento são regulamentares",1]
[null,"Os materiais de revestimento são não-regulamentares admissíveis",0.85]
[null,"Os materiais de revestimento são não-regulamentares",0]
[null,"A UA não inclui local de risco","-"]
[null,"Não existem exigências regulamentares aplicáveis","-"]
[null,"Não podem existir materiais não-regulamentares (exceto numa intervenção-tipo 4)"]
[null,"(Condições cumpridas - não é necessário justificar)"]
[null,"Existem materiais não-regulamentares"]
[]
["2.2","Materiais de revestimento das vias de evacuação"]
[]
["2.2.1","Classe de reação ao fogo dos revestimentos interiores das paredes e tetos"]
[null,"Os materiais de revestimento têm classe de reação superior ao mínimo exigido na regulamentação",1.25]
[null,"Os materiais de revestimento são regulamentares",1]
[null,"Os materiais de revestimento são não-regulamentares admissíveis",{"$f":"C161","v":0.75}]
[null,"Os materiais de revestimento são não-regulamentares",{"$f":"C162","v":0}]
[null,"A UA não inclui vias de evacuação","-"]
[null,"Não existem exigências regulamentares aplicáveis",{"$f":"C164","v":"-"}]
[]
["2.2.2","Classe de reação ao fogo dos revestimentos interiores dos pavimentos"]
[null,"Os materiais de revestimento têm classe de reação superior ao mínimo exigido na regulamentação",1.1499999999999999]
[null,"Os materiais de revestimento são regulamentares",1]
[null,"Os materiais de revestimento são não-regulamentares admissíveis",{"$f":"C169","v":0.85}]
[null,"Os materiais de revestimento são não-regulamentares",{"$f":"C170","v":0}]
[null,"A UA não inclui vias de evacuação","-"]
[null,"Não existem exigêncais regulamentares aplicáveis",{"$f":"C172","v":"-"}]
[null,{"$f":"B173","v":"Não podem existir materiais não-regulamentares (exceto numa intervenção-tipo 4)"}]
[null,{"$f":"$B$174","v":"(Condições cumpridas - não é necessário justificar)"}]
[null,"Existem materiais não-regulamentares"]
[]
["2.3","Isolamento e proteção do local de risco"]
[null,"Todos os elementos de compartimentação têm um escalão de tempo superior ao exigido na regulamentação",1.3]
[null,"Todos os elementos de compartimentação têm um escalão de tempo igual ao exigido na regulamentação",1]
[null,"Não existem elementos de isolamento e proteção, ou os que existem desempenham menos funções de resistência ao fogo que o exigido na regulamentação",0]
[null,"Existem elementos com um escalão de tempo inferior ao exigido na regulamentação","Fórmula"]
[null,"A UA não inclui local de risco","-"]
[null,15]
[null,20]
[null,30]
[null,45]
[null,60]
[null,90]
[null,120]
[null,180]
[null,240]
[null,360]
[null,"Escalão de tempo exigido na regulamentação"]
[null,"Escalão de tempo do elemento mais condicionante"]
[null,"O valor deve ser inferior ao regulamentar"]
[null,"Não podem existir elementos com menos funções de resistência ao fogo que o exigido na regulamentação (exceto numa intervenção-tipo 4)"]
[null,{"$f":"$B$174","v":"(Condições cumpridas - não é necessário justificar)"}]
[null,"Existem elementos com menos funções de resistência ao fogo que o exigido"]
[]
["2.4","Compartimentação geral corta-fogo da área de intervenção"]
[null,"A compartimentação geral corta-fogo da AI respeita a regulamentação",1]
[null,"Não existe compartimentação geral corta-fogo na AI, apesar da regulamentação o exigir",0.5]
[null,"A área da AI, em cada piso, é igual ou inferior à área máxima necessária para estabelecer compartimentação geral corta-fogo","-"]
[]
["2.5","Isolamento e proteção entre utilizações-tipo distintas"]
[null,"Na AI à qual pertence a UA existem utilizações-tipo distintas que respeitam todas as exigências regulamentares",1]
[null,"Na AI à qual pertence a UA existem utilizações-tipo cuja coexistência é permitida, mas existem elementos com um escalão de tempo inferior ao exigido na regulamentação",0.5]
[null,"Na AI existem UT cuja coexistência não é permitida, não existe isolamento e proteção entre UT, ou os elementos que existem entre UT compatíveis desempenham menos funções de resistência ao fogo que o exigido na regulamentação",0]
[null,"Na AI à qual pertence a UA só existe uma utilização-tipo","-"]
[null,"A UA não inclui local de risco","-"]
[null,"Não podem existir UT distintas cuja coexistência não é permitida, ou sem isolamento e proteção entre elas, ou com elementos que desempenham menos funções de resistência ao fogo que o exigido (exceto numa intervenção-tipo 4)"]
[null,{"$f":"$B$174","v":"(Condições cumpridas - não é necessário justificar)"}]
[null,"Não são respeitadas todas as exigências para a coexistência das UT"]
[]
["2.6","Equipas de segurança"]
[null,"Existe no edifício uma equipa de segurança, ainda que a regulamentação não o exija",2]
[null,"Existe no edifício uma equipa de segurança de acordo com o exigido na regulamentação",1]
[null,"Existe no edifício uma equipa de segurança que não está de acordo com o exigido na regulamentação",0.5]
[null,"Não existe no edifício uma equipa de segurança, apesar da regulamentação o exigir",0]
[null,"Não existe no edifício uma equipa de segurança, mas a regulamentação também não o exige","-"]
[]
["2.6","Equipas de segurança"]
[null,"Vai existir uma equipa de segurança, ainda que a regulamentação não o exija",2]
[null,"Vai existir uma equipa de segurança de acordo com o exigido na regulamentação",1]
[null,"Não está prevista a constituição de uma equipa de segurança, apesar da regulamentação o exigir",0]
[null,"Não está prevista a constituição de uma equipa de segurança, mas a regulamentação também não o exige","-"]
[]
["2.7","Deteção, alerta e alarme de incêndio"]
[null,"A UA está equipada com um sistema automático de deteção, alarme e alerta de incêndio, ainda que a regulamentação não o exija, e o sistema está ligado diretamente ao corpo de bombeiros local",3]
[null,"A UA está equipada com um sistema automático de deteção de incêndio, ainda que a regulamentação não o exija",2]
[null,"A UA está equipada com um sistema de deteção de incêndio baseado em botoneiras, ainda que a regulamentação não o exija",1.1000000000000001]
[null,"A UA está equipada com um sistema de deteção de incêndio de acordo com o exigido na regulamentação",1]
[null,"A UA não está equipada com um sistema de deteção de incêndio baseado em botoneiras, apesar da regulamentação o exigir",0.8]
[null,"A UA está equipada com um sistema de deteção de incêndio baseado em botoneiras, apesar da regulamentação exigir um sistema automático de deteção",0.4]
[null,"A UA não está equipada com um sistema automático de deteção de incêndio, apesar da regulamentação o exigir",0]
[null,"A UA está equipada com um sistema de deteção de incêndio de acordo com a regulamentação, mas não cobre todos os espaços que constituem a UA",{"$f":"C202","v":"Fórmula"}]
[null,"A UA não está equipada com um sistema de deteção de incêndio, mas a regulamentação também não o exige","-"]
[null,"Número de locais onde a regulamentação exige sistema de deteção de incêndio"]
[null,"Número de locais onde existe sistema de deteção de incêndio"]
[null,"Mínimo",0]
[null,"Máximo",1]
[null,"Apenas se considera que a UA dispõe um sistema de deteção de incêndio, se estiver prevista a constituição de uma equipa de segurança ou a celebração de um contrato de prestação de serviços para manutenção do sistema"]
[null,"Apenas se considera que a UA dispõe um sistema de deteção de incêndio, se existir uma equipa de segurança ou um contrato de prestação de serviços para manutenção do sistema"]
[]
["2.8","Propagação pelo exterior"]
[]
["2.8.1","Materiais de revestimento exteriores"]
[null,"Todos os materiais de revestimento exteriores têm uma qualificação de reação ao fogo superior ao exigido na regulamentação",1.2]
[null,"Todos os materiais de revestimento exteriores têm uma qualificação de reação ao fogo igual ao exigido na regulamentação",1]
[null,"Existem materiais de revestimento exteriores com uma qualificação de reação ao fogo inferior ao exigido na regulamentação",0]
[null,"A intervenção não envolve alterações nos materiais de revestimento exteriores","-"]
[]
["2.8.2","Materiais intervencionados"]
[null,"Todos os materiais de revestimento exterior intervencionados têm uma qualificação de reação ao fogo igual ou superior ao exigido na regulamentação"]
[null,"Nem todos os materiais de revestimento exterior intervencionados têm uma qualificação de reação ao fogo igual ou superior ao exigido na regulamentação"]
[null,"Não podem existir materiais com qualificação de reação ao fogo inferior ao exigido na regulamentação (exceto numa intervenção-tipo 4)"]
[null,{"$f":"$B$174","v":"(Condições cumpridas - não é necessário justificar)"}]
[null,"Existem materiais não-regulamentares"]
[]
["2.8.2","Afastamento de vãos das fachadas"]
[null,"Os vãos pertencentes à UA e aos pisos adjacentes, situados na mesma prumada, apresentam afastamentos superiores ou iguais ao estabelecido na regulamentação",1]
[null,"Nem todos os vãos pertencentes à UA e aos pisos adjacentes, situados na mesma prumada, apresentam afastamentos superiores ou iguais ao estabelecido na regulamentação",{"$f":"C202","v":"Fórmula"}]
[null,"Os vãos pertencentes à UA estão totalmente desalinhados dos vãos adjacentes","-"]
[null,"Na UA não existem vãos em contacto direto com o exterior","-"]
[]
[null,"Afastamento regulamentar entre vãos\nna mesma prumada (m)"]
[null,"Menor afastamento existente entre vãos\nna mesma prumada (m)"]
[null,"Mínimo",0.85]
[null,"Máximo",1]
[]
[null,"PÁGINA 02"]
[]
["3.","Evacuação em caso de incêndio"]
[null,"Mínimo",0]
[null,"Máximo",2.5]
[null,"O valor deste factor não pode ser inferior a 0,75 (exceto no caso de uma intervenção-tipo 4)"]
[null,{"$f":"$B$174","v":"(Condições cumpridas - não é necessário justificar)"}]
[null,"O factor relativo à evacução em caso de incêndio é inferior a 0,75"]
[]
["3.1","Saídas do local de risco"]
[null,"Mínimo",0]
[null,"Máximo",1.5]
[]
["3.1.1","Número de saídas do local de risco"]
[null,"O número de saídas do local de risco é superior ao exigido na regulamentação",{"$f":"C202","v":"Fórmula"}]
[null,"O número de saídas do local de risco é igual ao exigido na regulamentação",1]
[null,"O número de saídas do local de risco é inferior ao exigido na regulamentação",0.5]
[null,"A única saída do local de risco envolve o atravessamento de outros locais de risco",0.2]
[null,"Não existe","-"]
[null,"Número de saídas do LR exigidas na regulamentação"]
[null,"Número de saídas do LR"]
[null,"Mínimo",1.1000000000000001]
[null,"Máximo",1.45]
[null,"O caminho de evacuação do local de risco não pode envolver o atravessamento de outros locais de risco (exceto numa intervenção-tipo 4)"]
[null,{"$f":"$B$174","v":"(Condições cumpridas - não é necessário justificar)"}]
[null,"O caminho de evacuação do local de risco envolve o atravessamento de outros locais de risco"]
[]
["3.1.2","Largura total das saídas do local de risco"]
[null,"Efetivo do local de risco"]
[null,"Somatório da largura das saídas (m)"]
[null,"Largura de ref. do somatório das larguras das saídas (m)"]
[null,"Mínimo",0.35]
[null,"Máximo",2]
[null,"Se o local de risco tiver apenas uma saída, é 1,00"]
[null,"A largura não pode ser inferior à mínima admissível (exceto numa intervenção-tipo 4)"]
[null,{"$f":"$B$174","v":"(Condições cumpridas - não é necessário justificar)"}]
[null,"A largura é inferior à mínima admissível"]
[]
["3.2","Dimensões dos locais e das vias horizontais de evacuação"]
[null,"Mínimo",0]
[null,"Máximo",2.25]
[]
["3.2.1","Larguras dos vãos e das vias horizontais de evacuação"]
[null,"Mínimo",0,1]
[null,"Máximo",1.5,3]
[]
["a)","fatores de referência dos caminhos de evacuação horizontais, em função do efetivo"]
[null,"Efetivo","Valor de referência"]
[null,51,0.8,0.7]
[null,101,1.4,1.2]
[null,201,1.8,1.2]
[null,301,2.4,1.8]
[null,401,3,2.4]
[null,501,3.6,3]
[null,601,4.2,3.6]
[null,701,4.8,4.2]
[null,801,5.4,4.8]
[null,901,6,5.4]
[null,1001,6.6,6]
[null,">1001",7.2,6.6]
["a)","fatores de referência dos caminhos de evacuação verticais em função do efetivo"]
[null,{"$f":"B339","v":"Efetivo"},{"$f":"C339","v":"Valor de referência"}]
[null,71,0.8,0.7]
[null,141,1.4,1.2]
[null,211,1.8,1.2]
[null,281,2.4,1.8]
[null,351,3,2.4]
[null,421,3.6,3]
[null,491,4.2,3.6]
[null,561,4.8,4.2]
[null,631,5.4,4.8]
[null,701,6,5.4]
[null,771,6.6,6]
[null,841,7.2,6.6]
[null,911,7.8,7.2]
[null,981,8.4,7.8]
[null,1001,9,8.4]
[null,">1001",9.6,9]
[]
[null,"Resposta"]
[null,"Existe"]
[null,"Não existe"]
[null,"Local de risco"]
[null,"Efetivo do local de risco que sai pelo vão em análise"]
[null,"Largura medida do vão em análise (m)"]
[null,"Largura de referência do vão em análise (m)"]
[null,"A largura não pode ser inferior à mínima admissível (exceto numa intervenção-tipo 4)"]
[null,{"$f":"$B$174","v":"(Condições cumpridas - não é necessário justificar)"}]
[null,"A largura é inferior à mínima admissível"]
[null,"Via horizontal no piso do local de risco"]
[null,"Efetivo da via horizontal"]
[null,"Largura medida da via horizontal (m)"]
[null,"Largura de referência da via horizontal (m)"]
[null,"Largura medida do vão (m)"]
[null,"Largura de referência do vão (m)"]
[null,"Via horizontal até à saída para o exterior"]
[null,"Efetivo da via horizontal"]
[null,{"$f":"B383","v":"Largura medida da via horizontal (m)"}]
[null,{"$f":"B384","v":"Largura de referência da via horizontal (m)"}]
[null,"Largura medida do vão de saída para o exterior (m)"]
[null,"Largura de referência do vão de saída para o exterior (m)"]
[]
["3.2.2","Distância a percorrer nas vias horizontais de evacuação"]
[null,"Mínimo",0]
[null,"Máximo",1.5]
[null,"Percurso no interior do local de risco até à porta"]
[null,"Distância medida (m)"]
[null,"Distância regulamentar (m)"]
[null,"Percurso na via horizontal no piso do local de risco"]
[null,{"$f":"B398","v":"Distância medida (m)"}]
[null,{"$f":"B399","v":"Distância regulamentar (m)"}]
[null,"Percurso na via horizontal até à saída para o exterior"]
[null,{"$f":"B398","v":"Distância medida (m)"}]
[null,{"$f":"B399","v":"Distância regulamentar (m)"}]
[]
["3.3","Dimensões das vias verticais de evacuação"]
[null,"Mínimo",0]
[null,"Máximo",2.25]
[]
["3.3.1","Número de vias verticais de evacuação"]
[null,"Número de vias verticais exigidas na regulamentação"]
[null,"Número de vias verticais que servem o local de risco"]
[]
["3.3.2","Larguras das vias verticais de evacuação"]
[null,"Via vertical"]
[null,"Efetivo da via vertical"]
[null,"Largura medida da via vertical (m)"]
[null,"Largura de referência da via vertical (m)"]
[null,{"$f":"B385","v":"Largura medida do vão (m)"}]
[null,{"$f":"B386","v":"Largura de referência do vão (m)"}]
[null,"Mínimo",0,1]
[null,"Máximo",1.5,2.5]
[]
["3.3.3","Inclinação das vias verticais de evacuação (graus)"]
[]
["3.3.4","Piso em que se encontra a unidade de análise\n(diferença entre LR e saida para o exterior)"]
[null,"(Diferença de pisos entre o LR e a saída para o exterior)"]
[]
[null,"PÁGINA 03"]
[]
["3.4","Isolamento e proteção das vias de evacuação"]
[null,"Todos os elementos de proteção das vias de evacuação têm um escalão de tempo superior ao exigido na regulamentação",1.3]
[null,"Todos os elementos de proteção das vias de evacuação têm um escalão de tempo igual ou superior ao exigido na regulamentação",1]
[null,"Não existem elementos de isolamento e proteção, ou os que existem desempenham menos funções de resistência ao fogo que o exigido na regulamentação",0]
[null,"Existem elementos com um escalão de tempo inferior ao exigido na regulamentação",{"$f":"C202","v":"Fórmula"}]
[null,"Não existem exigênicas regulamentares aplicáveis","-"]
[null,"A UA não inclui vias de evacuação","-"]
[null,"Escalão de tempo estabelecido na regulamentação"]
[null,"Escalão de tempo do elemento mais condicionante "]
[null,"Na intervenção não podem existir de elementos com menos funções de resistência ao fogo que o exigido na regulamentação"]
[null,{"$f":"$B$174","v":"(Condições cumpridas - não é necessário justificar)"}]
[null,"Existem elementos com menos funções de resistência ao fogo que o exigido na regulamentação"]
[]
["3.5","Controlo de fumo na unidade de análise"]
[]
["3.5.1","Controlo de fumo no local de risco"]
[null,"Existem meios de controlo de fumo no local de risco, ainda que a regulamentação não o exija",2]
[null,"Existem meios de controlo de fumo no local de risco de acordo com o exigido na regulamentação",1]
[null,"Existem meios de controlo de fumo no local de risco que não estão de acordo com o exigido na regulamentação",0.5]
[null,"Não existem meios de controlo de fumo no local de risco de acordo com o exigido na regulamentação",0]
[null,"No local de risco não existem meios de controlo de fumo, mas a regulamentação também não o exige","-"]
[null,"A UA não inclui local de risco","-"]
[]
["3.5.2","Controlo de fumo nas vias de evacuação"]
[null,"As vias de evacuação, horizontais e verticais, que servem a UA, estão equipadas com meios de controlo de fumo, ainda que a regulamentação não o exija",2]
[null,"As vias de evacuação, horizontais e verticais, que servem a UA, estão equipadas com meios de controlo de fumo de acordo com o exigido na regulamentação",1]
[null,"As vias de evacuação, horizontais e verticais, que servem a UA, estão equipadas com meios de controlo de fumo que não estão de acordo com o exigido na regulamentação",0.5]
[null,"As vias de evacuação, horizontais e verticais, que servem a UA, não estão equipadas com meios de controlo de fumo, apesar da regulamentação o exigir",0]
[null,"As vias de evacuação, horizontais e verticais, que servem a UA, não estão equipadas com meios de controlo de fumo, mas a regulamentação também não o exige","-"]
[null,"A UA não inclui vias de evacuação","-"]
[]
["3.6","Sinalização de emergência na unidade de análise"]
[]
["3.6.1","Sinalização de emergência no local de risco"]
[]
[null,"O local de risco está equipado com sinalização de emergência, ainda que a regulamentação não o exija",1.7]
[null,"O local de risco está equipado com sinalização de emergência de acordo com o exigido na regulamentação",1]
[null,"O local de risco está equipado com sinalização de emergência que não está de acordo com o exigido na regulamentação",0.65]
[null,"O local de risco não está equipado com sinalização de emergência, apesar da regulamentação o exigir",0.3]
[null,"O local de risco não está equipado com sinalização de emergência, mas a regulamentação também não o exige","-"]
[null,"A UA não inclui local de risco","-"]
[]
["3.6.2","Sinalização de emergência nas vias de evacuação"]
[]
[null,"As vias de evacuação estão equipadas com sinalização de emergência, ainda que a regulamentação não o exija",1.7]
[null,"As vias de evacuação estão equipadas com sinalização de emergência de acordo com o exigido na regulamentação",1]
[null,"As vias de evacuação estão equipadas com sinalização de emergência que não está de acordo com o exigido na regulamentação",0.65]
[null,"As vias de evacuação não estão equipadas com sinalização de emergência, apesar da regulamentação o exigir",0.3]
[null,"As vias de evacuação não estão equipadas com sinalização de emergência, mas a regulamentação também não o exige","-"]
[null,"A UA não inclui vias de evacuação","-"]
[]
["3.7","Iluminação de emergência na unidade de análise"]
[]
["3.7.1","Iluminação de emergência no local de risco"]
[]
[null,"O local de risco está equipado com iluminação de emergência, ainda que a regulamentação não o exija",1.8]
[null,"O local de risco está equipado com iluminação de emergência de acordo com o exigido na regulamentação",1]
[null,"O local de risco está equipado com iluminação de emergência que não está de acordo com o exigido na regulamentação",0.6]
[null,"O local de risco não está equipado com iluminação de emergência, apesar da regulamentação o exigir",0.2]
[null,"O local de risco não está equipado com iluminação de emergência, mas a regulamentação também não o exige","-"]
[null,"A UA não inclui local de risco","-"]
[]
["3.7.2","Iluminação de emergência nas vias de evacuação"]
[]
[null,"As vias de evacuação estão equipadas com iluminação de emergência, ainda que a regulamentação não o exija",1.8]
[null,"As vias de evacuação estão equipadas com iluminação de emergência de acordo com o exigido na regulamentação",1]
[null,"As vias de evacuação estão equipadas com iluminação de emergência que não está de acordo com o exigido na regulamentação",0.6]
[null,"As vias de evacuação não estão equipadas com iluminação de emergência, apesar da regulamentação o exigir",0.2]
[null,"As vias de evacuação não estão equipadas equipados com iluminação de emergência, mas a regulamentação também não o exige","-"]
[null,"A UA não inclui vias de evacuação","-"]
[]
["3.8","Equipas de segurança"]
[]
["3.9","Deteção, alerta e alarme de incêndio"]
[]
["3.10","Simulacros de evacuação "]
[null,"Foram realizados pelo menos dois exercícios anuais de evacuação do edifício, ainda que a regulamentação não o exija",2]
[null,"Foram realizados exercícios de evacuação do edifício com periodicidade adequada ao definido na regulamentação",1]
[null,"Não foram realizados exercícios de evacuação no edifício com periodicidade adequada ao definido na regulamentação",0]
[null,"Não foram realizados exercícios de evacuação no edifício, mas a regulamentação também não o exige","-"]
[]
["3.10","Simulacros de evacuação "]
[null,"Serão realizados pelo menos dois exercícios anuais de evacuação do edifício, ainda que a regulamentação não o exija",2]
[null,"A regulamentação estabelece as condições para a realização de exercícios de evacuação do edifício",1]
[null,"Não está previsto realizar exercícios de evacuação no edifício com periodicidade adequada ao definido na regulamentação",0]
[null,"Não está previsto realizar exercícios de evacuação no edifício, mas a regulamentação também não o exige","-"]
[null,"Tem de existir uma equipa de segurança"]
[null,"Tem de estar prevista uma equipa de segurança"]
[]
["4.","Combate ao incêndio"]
["4.1","Acessibilidade e meios de intervenção não automáticos"]
["4.1.1","Acessibilidade ao edifício"]
[null,"As características das vias de acesso ao edifício estão de acordo com o exigido na regulamentação",1]
[null,"As características das vias de acesso ao edifício não estão de acordo com o exigido na regulamentação, sendo este acesso apenas possível com recurso a viaturas de combate com dimensões reduzidas",0.8]
[null,"As características das vias de acesso ao edifício impedem o acesso ao edifício de quaisquer viaturas de combate",0.5]
[null,"A área de intervenção limita-se ao interior dos fogos ou dos locais de risco","-"]
[]
["4.1.2","Hidrantes exteriores"]
[null,"O edifício está localizado num arruamento acessível a viaturas de combate e é servido por hidrantes exteriores de acordo com o exigido na regulamentação",1]
[null,"O edifício está localizado num arruamento não acessível a viaturas de combate, mas existem no exterior postos de incêndio para primeira intervenção",0.65]
[null,"O edifício está localizado num arruamento não acessível a viaturas de combate, e não existem no exterior postos de incêndio para primeira intervenção",0.5]
[null,"O edifício está localizado num arruamento acessível a viaturas de combate e é servido por hidrantes exteriores de acordo com o exigido na regulamentação, exceto no que se refere às distâncias entre os hidrantes e (i) qualquer das saídas do edifício que façam parte dos caminhos de evacuação, e (ii) as bocas de alimentação das redes secas ou húmidas, quando existam",{"$f":"C202","v":"Fórmula"}]
[null,"A área de intervenção limita-se ao interior dos fogos ou dos locais de risco","-"]
[null,"Distância regulamentar entre um hidrante exterior e qualquer das saídas do edifício (m)"]
[null,"Menor distância entre um hidrante exterior e qualquer das saídas do edifício (m)"]
[null,"Mínimo",0.75]
[null,"Máximo",1]
[]
["4.1.3","Redes secas ou húmidas"]
[null,"O edifício está equipado com redes secas ou húmidas, ainda que a regulamentação não o exija",1.4]
[null,"O edifício está equipado com redes secas ou húmidas de acordo com o exigido na regulamentação",1]
[null,"O edifício não está equipado com redes secas ou húmidas, apesar da regulamentação o exigir",0.6]
[null,"O edifício não está equipado com redes secas ou húmidas, mas a regulamentação também não o exige","-"]
[]
["4.1.4","Extintores"]
[null,"A UA está equipada com extintores, ainda que a regulamentação não o exija",1.2]
[null,"A UA está equipada com extintores em número e quantidade de agente extintor superior ao exigido na regulamentação",1.1000000000000001]
[null,"A UA está equipada com extintores em número e com quantidade de agente extintor de acordo com o exigido na regulamentação",1]
[null,"A UA não está equipada com extintores, apesar da regulamentação o exigir",0.8]
[null,"A UA está equipada com extintores em número e/ou quantidade de agente extintor inferior ao exigido na regulamentação",{"$f":"C202","v":"Fórmula"}]
[null,"A UA não está equipada com extintores, mas a regulamentação também não o exige","-"]
[null,"Número total de extintores necessários para cumprir as exigências da regulamentação"]
[null,"Número total de extintores existentes na UA"]
[null,"Quantidade total de agente extintor exigido na regulament. (l)"]
[null,"Quantidade total de agente extintor existente na UA (l)"]
[null,"Mínimo",0.8]
[null,"Máximo",1]
[]
["4.1.5","Redes de incêndio armadas"]
[null,"A UA está equipada com uma rede de incêndio armada, ainda que a regulamentação não o exija",1.25]
[null,"A UA está equipada com uma rede de incêndio armada de acordo com o exigido na regulamentação",1]
[null,"A UA não está equipada com uma rede de incêndio armada, apesar da regulamentação o exigir",0.75]
[null,"A UA não está equipada com uma rede de incêndio armada, mas a regulamentação também não o exige","-"]
[]
["4.2","Meios de extinção automáticos"]
[null,"A UA está equipada com um sistema automático de extinção de resposta rápida, ainda que a regulamentação não o exija",6]
[null,"A UA está equipada com um sistema automático de extinção de resposta normal ainda que a regulamentação não o exija",5]
[null,"A UA está equipada com um sistema automático de extinção de acordo com o exigido na regulamentação",1]
[null,"A UA não está equipada um sistema automático de extinção, apesar da regulamentação o exigir",0]
[null,"A UA não está equipada com um sistema automático de extinção, mas a regulamentação também não o exige","-"]
[null,"Apenas se considera que a UA dispõe um sistema de extinção, se existir uma equipa de segurança ou um contrato de prestação de serviços para manutenção do sistema"]
[null,"Apenas se considera que a UA dispõe um sistema de extinção, se estiver prevista a constituição de uma equipa de segurança ou a celebração de um contrato de prestação de serviços para manutenção do sistema"]
[]
["4.3","Equipas de segurança"]
[]
[null,"PÁGINA 04"]
[]
[null,"Apenas preencher no caso de intervenção-tipo 4"]
[]
[null,"Justificação de incumprimento de exigências mínimas"]
[]
[null,"Extintores"]
[]
[null,"N.º"]
[null,"Agente extintor"]
[null,"Capacidade       (Kg)"]
[null,"Capacidade (litros)"]
[null,"Pó químico ",2]
[null,"CO2 ",1.34]
[null,"Espumas",1]